{"text_format":"3","workbook":"xlsx","n_sheets":15,"sheets":["Kako uporabiti to predlogo","Seznam študentov","Avgust","September","Oktober","November","December","Januar","Februar","Marec","April","Maj","Junij","Julij","Poročilo prisotnosti študentov"],"not_rendered":{"defined_names":16},"read":"whole","date_system":"1900"}

{"sheet":"Kako uporabiti to predlogo","index":0,"n_rows":25,"n_cols":5,"rows_kept":25,"merged":[[3,2,3,12],[4,4,4,12],[5,4,5,12],[6,4,6,12],[7,4,7,12],[8,4,8,7],[11,2,11,12],[12,4,12,12],[13,4,13,12],[14,4,14,12],[17,2,17,12],[18,4,18,12],[19,4,19,12],[20,4,20,12],[21,4,21,12],[24,2,24,12]]}
["UPORABA PREDLOGE"]
[]
[null,"KJE ZAČETI?"]
[null,null,"Pred beleženjem prisotnosti študentov je treba izvesti nekaj korakov:"]
[{"$nulls":3},"1.","Dodajanje študentov: Na list Seznam študentov vnesite podatke vseh študentov, na primer imena skrbnikov in kontaktne podatke. Pomembno je, da vnesete ID študenta, ki predstavlja enolični identifikator vsakega študenta. Uporablja se na vseh spustnih seznamih z ID-ji študentov in tako poenostavi vnos podatkov. Podatki, ki jih vnesete na »Seznam študentov«, so uporabljeni tudi v drugih listih, kot so evidenca prisotnosti študentov in mesečna poročila o prisotnosti."]
[{"$nulls":3},"2.","Sprememba študijskega koledarskega leta: Na listu prisotnosti za Avgust kliknite pomikalnik v zgornjem desnem robu glave, če želite posodobiti študijsko leto. S tem spremenite glave vseh mesečnih poročil o prisotnosti v delovnem zvezku. (Ne pozabite, da gumb kazalnika ne omogoča tiskanja.)"]
[{"$nulls":3},"3.","(Izbirno) Spreminjanje barv v delovnem zvezku: Najprej se pomaknite na zadnji list evidence prisotnosti študentov in na zavihku Pregled v skupini Spremembe kliknite Odstrani zaščito lista. Nato na zavihku Postavitev strani v skupini Teme kliknite Barve in nato v galeriji barv izberite drug nabor barv teme. Ko izberete želene barve in poljubne nastavitve teme, se vrnite na list Evidenca prisotnosti študentov in na zavihku Pregled v skupini Spremembe kliknite Zaščiti list in nato kliknite V redu."]
[{"$nulls":4},"Namig: Ustvarite nabor barv teme po meri, ki se bo ujemal z barvami vaše šole. To naredite tako, da na zavihku Postavitev strani v skupini Teme kliknete Barve in nato v spodnjem delu galerije barv kliknite Ustvari nove barve teme. Če želite več podatkov o tem, kako ustvariti nabor barv po meri, si oglejte to temo pomoči: "]
[{"$nulls":4},"Prilagodite temo dokumenta."]
[]
[null,"DODAL SEM ŠTUDENTE, KAJ NAJ NAREDIM NATO?"]
[null,null,"Ko vnesete študente na list s seznamom študentov, lahko začnete beležiti njihovo udeležbo v tekočem študijskem letu, tako da sledite tem korakom:"]
[{"$nulls":3},"1.","Če želite študenta dodati v evidenco prisotnosti, kliknite celico pod stolpcem ID študenta in na seznamu izberite ID. Ko izberete ID, se samodejno prikaže ime študenta."]
[{"$nulls":4},"Namig: Shranite korake vnosa podatkov. Ko dodate študente za en mesec, izberite vnesene ID-je študentov, jih kopirajte, nato pa jih prilepite v stolpec ID študenta še za preostale mesece. "]
[{"$nulls":3},"2.","Nato vnesite podatke o udeležbi za vsak dan v mesecu in označite vrsto prisotnosti po določenem barvnem ključu. Program samodejno izračunana prisotnost vsakega študenta glede na vrsto prisotnosti v stolpcu »Skupno«. Število vseh izostankov za vsak dan je samodejno izračunano na dnu tabele v vrstici »Skupno«."]
[]
[null,"KAKO V MESEČNO EVIDENCO PRISOTNOSTI DODAM VEČ ŠTUDENTOV?"]
[null,null,"Listi z mesečno evidenco prisotnosti in seznam študentov so tabele programa Excel. Če želite v katero koli tabelo dodati nove vrstice, naredite nekaj od tega:"]
[{"$nulls":3},"● ","Če tabela nima vrstice »Skupno«, začnite vnašati pod tabelo in ta se bo samodejno razširila, ko boste pritisnili tipko Enter ali Tab."]
[{"$nulls":3},"● ","Kazalec celic postavite v zadnjo celico nad vrstico »Skupno«, na primer vrstico z dnevi odsotnosti zadnjega študenta, in nato pritisnite tipko Tab."]
[{"$nulls":3},"● ","Z desno tipko miške kliknite tabelo, nato na pojavnem meniju pokažite na Vstavi in nato kliknite Vrstice tabele zgoraj ali Vrstice tabele spodaj. "]
[{"$nulls":3},"● ","Če želite povečati število vrstic v tabeli, se v spodnjem desnem kotu tabele z miško postavite na ročico za spreminjanje velikosti tabele in jo povlecite navzdol."]
[]
[null,"SI LAHKO OGLEDAM UDELEŽBO ŠTUDENTA ZA CELOTNO ŠTUDIJSKO LETO?"]
[null,null,"Zadnji list v tem delovnem zvezku, evidenca prisotnosti študentov, beleži zapise letošnjega leta do danes. Če si želite ogledati poročilo za določenega študenta, kliknite celico pod ID študenta in nato na spustnem seznamu izberite želeni ID. Podatki, ki ste jih za izbranega študenta vnesli na seznam študentov, bodo samodejno prikazani. Ko prvič uporabite poročilo za vodenje evidence prisotnosti študentov, je treba vnesti podatke o ustanovi, oceni, učitelju in sobi. Te informacije se ne spremenijo, če izberete drugega študenta."]

{"sheet":"Seznam študentov","index":1,"n_rows":8,"n_cols":19,"rows_kept":8}
["SEZNAM ŠTUDENTOV"]
[]
[null,"ID študenta","Ime študenta","Priimek študenta","Spol","Datum rojstva","Starši ali skrbnik 1","Odnos: starši/skrbnik 1","Službena številka staršev/skrbnika 1","Domača številka staršev/skrbnika 1","Starši/skrbnik 2","Odnos: starši/skrbnik 2","Službena številka staršev/skrbnika 2","Domača številka staršev/skrbnika 2","Stik v sili","Odnos: stik v sili","Službena številka stika v sili","Domača številka stika v sili","Polno ime študenta"]
[null,"Š001","Erik","Novak","M","1997-03-28","Metka","Novak",1235550134,2345550134,"Miha Novak","Oče",1235550134,2345550134,"Franci Župančič","Dedek",7895550189,7895550134,{"$f":"SeznamUčencev[[#This Row],[Ime študenta]]&\" \" &SeznamUčencev[[#This Row],[Priimek študenta]]","v":"Erik Novak"}]
[null,"Š002","Študent",2,{"$nulls":14},{"$f":"SeznamUčencev[[#This Row],[Ime študenta]]&\" \" &SeznamUčencev[[#This Row],[Priimek študenta]]","v":"Študent 2"}]
[null,"Š003","Študent",3,{"$nulls":14},{"$f":"SeznamUčencev[[#This Row],[Ime študenta]]&\" \" &SeznamUčencev[[#This Row],[Priimek študenta]]","v":"Študent 3"}]
[null,"Š004","Študent",4,{"$nulls":14},{"$f":"SeznamUčencev[[#This Row],[Ime študenta]]&\" \" &SeznamUčencev[[#This Row],[Priimek študenta]]","v":"Študent 4"}]
[null,"Š005","Študent",5,{"$nulls":14},{"$f":"SeznamUčencev[[#This Row],[Ime študenta]]&\" \" &SeznamUčencev[[#This Row],[Priimek študenta]]","v":"Študent 5"}]

{"sheet":"Avgust","index":2,"n_rows":12,"n_cols":39,"rows_kept":12,"merged":[[4,34,4,38]]}
["EVIDENCA PRISOTNOSTI ŠTUDENTOV",{"$nulls":36},"Začetek študijskega leta",2012]
[]
[null,null,"BARVNI KLJUČ","Po","Pozen",null,null,"E","Opravičen",null,null,"N","Neopravičen",null,null,"P","Prisoten",null,null,"Ni","Ni pouka"]
[]
[null,{"$f":"DATE(KoledarskoLeto,8,1)","v":"2012-08-01"},null,{"$f":"TEXT(WEEKDAY(DATE(KoledarskoLeto,8,1),1),\"aaa\")","v":"sre"},{"$f":"TEXT(WEEKDAY(DATE(KoledarskoLeto,8,2),1),\"aaa\")","v":"čet"},{"$f":"TEXT(WEEKDAY(DATE(KoledarskoLeto,8,3),1),\"aaa\")","v":"pet"},{"$f":"TEXT(WEEKDAY(DATE(KoledarskoLeto,8,4),1),\"aaa\")","v":"sob"},{"$f":"TEXT(WEEKDAY(DATE(KoledarskoLeto,8,5),1),\"aaa\")","v":"ned"},{"$f":"TEXT(WEEKDAY(DATE(KoledarskoLeto,8,6),1),\"aaa\")","v":"pon"},{"$f":"TEXT(WEEKDAY(DATE(KoledarskoLeto,8,7),1),\"aaa\")","v":"tor"},{"$f":"TEXT(WEEKDAY(DATE(KoledarskoLeto,8,8),1),\"aaa\")","v":"sre"},{"$f":"TEXT(WEEKDAY(DATE(KoledarskoLeto,8,9),1),\"aaa\")","v":"čet"},{"$f":"TEXT(WEEKDAY(DATE(KoledarskoLeto,8,10),1),\"aaa\")","v":"pet"},{"$f":"TEXT(WEEKDAY(DATE(KoledarskoLeto,8,11),1),\"aaa\")","v":"sob"},{"$f":"TEXT(WEEKDAY(DATE(KoledarskoLeto,8,12),1),\"aaa\")","v":"ned"},{"$f":"TEXT(WEEKDAY(DATE(KoledarskoLeto,8,13),1),\"aaa\")","v":"pon"},{"$f":"TEXT(WEEKDAY(DATE(KoledarskoLeto,8,14),1),\"aaa\")","v":"tor"},{"$f":"TEXT(WEEKDAY(DATE(KoledarskoLeto,8,15),1),\"aaa\")","v":"sre"},{"$f":"TEXT(WEEKDAY(DATE(KoledarskoLeto,8,16),1),\"aaa\")","v":"čet"},{"$f":"TEXT(WEEKDAY(DATE(KoledarskoLeto,8,17),1),\"aaa\")","v":"pet"},{"$f":"TEXT(WEEKDAY(DATE(KoledarskoLeto,8,18),1),\"aaa\")","v":"sob"},{"$f":"TEXT(WEEKDAY(DATE(KoledarskoLeto,8,19),1),\"aaa\")","v":"ned"},{"$f":"TEXT(WEEKDAY(DATE(KoledarskoLeto,8,20),1),\"aaa\")","v":"pon"},{"$f":"TEXT(WEEKDAY(DATE(KoledarskoLeto,8,21),1),\"aaa\")","v":"tor"},{"$f":"TEXT(WEEKDAY(DATE(KoledarskoLeto,8,22),1),\"aaa\")","v":"sre"},{"$f":"TEXT(WEEKDAY(DATE(KoledarskoLeto,8,23),1),\"aaa\")","v":"čet"},{"$f":"TEXT(WEEKDAY(DATE(KoledarskoLeto,8,24),1),\"aaa\")","v":"pet"},{"$f":"TEXT(WEEKDAY(DATE(KoledarskoLeto,8,25),1),\"aaa\")","v":"sob"},{"$f":"TEXT(WEEKDAY(DATE(KoledarskoLeto,8,26),1),\"aaa\")","v":"ned"},{"$f":"TEXT(WEEKDAY(DATE(KoledarskoLeto,8,27),1),\"aaa\")","v":"pon"},{"$f":"TEXT(WEEKDAY(DATE(KoledarskoLeto,8,28),1),\"aaa\")","v":"tor"},{"$f":"TEXT(WEEKDAY(DATE(KoledarskoLeto,8,29),1),\"aaa\")","v":"sre"},{"$f":"TEXT(WEEKDAY(DATE(KoledarskoLeto,8,30),1),\"aaa\")","v":"čet"},{"$f":"TEXT(WEEKDAY(DATE(KoledarskoLeto,8,31),1),\"aaa\")","v":"pet"},"Skupaj"]
[null,"ID študenta","Ime študenta","1","2","3","4","5","6","7","8","9","10","11","12","13","14","15","16","17","18","19","20","21","22","23","24","25","26","27","28","29","30","31","Po","E","N","P","Dni odsoten"]
[null,"Š001",{"$f":"IFERROR(VLOOKUP(PrisotnostAvgusta[[#This Row],[ID študenta]],SeznamUčencev[],18,FALSE),\"\")","v":"Erik Novak"},"P","P","K","K","P","Ni","Ni","P","P","E","P","P","Ni","NI","P","P","P","P","P","NI","NI","P","P","P","P","P","NI","NI","P","P","P",{"$f":"COUNTIF(PrisotnostAvgusta[[#This Row],[1]:[31]],Koda1)","v":0},{"$f":"COUNTIF(PrisotnostAvgusta[[#This Row],[1]:[31]],Koda2)","v":1},{"$f":"COUNTIF(PrisotnostAvgusta[[#This Row],[1]:[31]],Koda3)","v":0},{"$f":"COUNTIF(PrisotnostAvgusta[[#This Row],[1]:[31]],Koda4)","v":20},{"$f":"SUM(PrisotnostAvgusta[[#This Row],[E]:[N]])","v":1}]
[null,"Š002",{"$f":"IFERROR(VLOOKUP(PrisotnostAvgusta[[#This Row],[ID študenta]],SeznamUčencev[],18,FALSE),\"\")","v":"Študent 2"},"P","N","P","P","P","Ni","Ni","P","E","E","E","E","NI","NI","P","P","P","P","P","NI","NI","P","P","P","K","K","NI","NI","P","P","P",{"$f":"COUNTIF(PrisotnostAvgusta[[#This Row],[1]:[31]],Koda1)","v":0},{"$f":"COUNTIF(PrisotnostAvgusta[[#This Row],[1]:[31]],Koda2)","v":4},{"$f":"COUNTIF(PrisotnostAvgusta[[#This Row],[1]:[31]],Koda3)","v":1},{"$f":"COUNTIF(PrisotnostAvgusta[[#This Row],[1]:[31]],Koda4)","v":16},{"$f":"SUM(PrisotnostAvgusta[[#This Row],[E]:[N]])","v":5}]
[null,"Š003",{"$f":"IFERROR(VLOOKUP(PrisotnostAvgusta[[#This Row],[ID študenta]],SeznamUčencev[],18,FALSE),\"\")","v":"Študent 3"},"P","E","P","P","P","Ni","Ni","P","P","N","P","P","NI","NI","P","P","P","P","P","NI","NI","P","P","E","E","P","NI","NI","P","P","P",{"$f":"COUNTIF(PrisotnostAvgusta[[#This Row],[1]:[31]],Koda1)","v":0},{"$f":"COUNTIF(PrisotnostAvgusta[[#This Row],[1]:[31]],Koda2)","v":3},{"$f":"COUNTIF(PrisotnostAvgusta[[#This Row],[1]:[31]],Koda3)","v":1},{"$f":"COUNTIF(PrisotnostAvgusta[[#This Row],[1]:[31]],Koda4)","v":19},{"$f":"SUM(PrisotnostAvgusta[[#This Row],[E]:[N]])","v":4}]
[null,"Š004",{"$f":"IFERROR(VLOOKUP(PrisotnostAvgusta[[#This Row],[ID študenta]],SeznamUčencev[],18,FALSE),\"\")","v":"Študent 4"},"P","P","P","P","P","Ni","Ni","P","P","P","P","P","NI","NI","P","P","P","P","P","NI","NI","P","N","P","P","E","NI","NI","P","E","P",{"$f":"COUNTIF(PrisotnostAvgusta[[#This Row],[1]:[31]],Koda1)","v":0},{"$f":"COUNTIF(PrisotnostAvgusta[[#This Row],[1]:[31]],Koda2)","v":2},{"$f":"COUNTIF(PrisotnostAvgusta[[#This Row],[1]:[31]],Koda3)","v":1},{"$f":"COUNTIF(PrisotnostAvgusta[[#This Row],[1]:[31]],Koda4)","v":20},{"$f":"SUM(PrisotnostAvgusta[[#This Row],[E]:[N]])","v":3}]
[null,"Š005",{"$f":"IFERROR(VLOOKUP(PrisotnostAvgusta[[#This Row],[ID študenta]],SeznamUčencev[],18,FALSE),\"\")","v":"Študent 5"},"P","P","P","P","P","Ni","Ni","P","P","P","P","P","NI","NI","P","P","P","P","P","NI","NI","P","P","P","P","P","NI","NI","P","P","P",{"$f":"COUNTIF(PrisotnostAvgusta[[#This Row],[1]:[31]],Koda1)","v":0},{"$f":"COUNTIF(PrisotnostAvgusta[[#This Row],[1]:[31]],Koda2)","v":0},{"$f":"COUNTIF(PrisotnostAvgusta[[#This Row],[1]:[31]],Koda3)","v":0},{"$f":"COUNTIF(PrisotnostAvgusta[[#This Row],[1]:[31]],Koda4)","v":23},{"$f":"SUM(PrisotnostAvgusta[[#This Row],[E]:[N]])","v":0}]
[null,null,"Skupno odsoten dni",{"$f":"COUNTIF(PrisotnostAvgusta[1],\"N\")+COUNTIF(PrisotnostAvgusta[1],\"E\")","v":0},{"$f":"COUNTIF(PrisotnostAvgusta[2],\"N\")+COUNTIF(PrisotnostAvgusta[2],\"E\")","v":2},{"$f":"COUNTIF(PrisotnostAvgusta[3],\"N\")+COUNTIF(PrisotnostAvgusta[3],\"E\")","v":0},{"$f":"COUNTIF(PrisotnostAvgusta[4],\"N\")+COUNTIF(PrisotnostAvgusta[4],\"E\")","v":0},{"$f":"COUNTIF(PrisotnostAvgusta[5],\"N\")+COUNTIF(PrisotnostAvgusta[5],\"E\")","v":0},{"$f":"COUNTIF(PrisotnostAvgusta[6],\"N\")+COUNTIF(PrisotnostAvgusta[6],\"E\")","v":0},{"$f":"COUNTIF(PrisotnostAvgusta[7],\"N\")+COUNTIF(PrisotnostAvgusta[7],\"E\")","v":0},{"$f":"COUNTIF(PrisotnostAvgusta[8],\"N\")+COUNTIF(PrisotnostAvgusta[8],\"E\")","v":0},{"$f":"COUNTIF(PrisotnostAvgusta[9],\"N\")+COUNTIF(PrisotnostAvgusta[9],\"E\")","v":1},{"$f":"COUNTIF(PrisotnostAvgusta[10],\"N\")+COUNTIF(PrisotnostAvgusta[10],\"E\")","v":3},{"$f":"COUNTIF(PrisotnostAvgusta[11],\"N\")+COUNTIF(PrisotnostAvgusta[11],\"E\")","v":1},{"$f":"COUNTIF(PrisotnostAvgusta[12],\"N\")+COUNTIF(PrisotnostAvgusta[12],\"E\")","v":1},{"$f":"COUNTIF(PrisotnostAvgusta[13],\"N\")+COUNTIF(PrisotnostAvgusta[13],\"E\")","v":0},{"$f":"COUNTIF(PrisotnostAvgusta[14],\"N\")+COUNTIF(PrisotnostAvgusta[14],\"E\")","v":0},{"$f":"COUNTIF(PrisotnostAvgusta[15],\"N\")+COUNTIF(PrisotnostAvgusta[15],\"E\")","v":0},{"$f":"COUNTIF(PrisotnostAvgusta[16],\"N\")+COUNTIF(PrisotnostAvgusta[16],\"E\")","v":0},{"$f":"COUNTIF(PrisotnostAvgusta[17],\"N\")+COUNTIF(PrisotnostAvgusta[17],\"E\")","v":0},{"$f":"COUNTIF(PrisotnostAvgusta[18],\"N\")+COUNTIF(PrisotnostAvgusta[18],\"E\")","v":0},{"$f":"COUNTIF(PrisotnostAvgusta[19],\"N\")+COUNTIF(PrisotnostAvgusta[19],\"E\")","v":0},{"$f":"COUNTIF(PrisotnostAvgusta[20],\"N\")+COUNTIF(PrisotnostAvgusta[20],\"E\")","v":0},{"$f":"COUNTIF(PrisotnostAvgusta[21],\"N\")+COUNTIF(PrisotnostAvgusta[21],\"E\")","v":0},{"$f":"COUNTIF(PrisotnostAvgusta[22],\"N\")+COUNTIF(PrisotnostAvgusta[22],\"E\")","v":0},{"$f":"COUNTIF(PrisotnostAvgusta[23],\"N\")+COUNTIF(PrisotnostAvgusta[23],\"E\")","v":1},{"$f":"COUNTIF(PrisotnostAvgusta[24],\"N\")+COUNTIF(PrisotnostAvgusta[24],\"E\")","v":1},{"$f":"COUNTIF(PrisotnostAvgusta[25],\"N\")+COUNTIF(PrisotnostAvgusta[25],\"E\")","v":1},{"$f":"COUNTIF(PrisotnostAvgusta[26],\"N\")+COUNTIF(PrisotnostAvgusta[26],\"E\")","v":1},{"$f":"COUNTIF(PrisotnostAvgusta[27],\"N\")+COUNTIF(PrisotnostAvgusta[27],\"E\")","v":0},{"$f":"COUNTIF(PrisotnostAvgusta[28],\"N\")+COUNTIF(PrisotnostAvgusta[28],\"E\")","v":0},{"$f":"COUNTIF(PrisotnostAvgusta[29],\"N\")+COUNTIF(PrisotnostAvgusta[29],\"E\")","v":0},{"$f":"COUNTIF(PrisotnostAvgusta[30],\"N\")+COUNTIF(PrisotnostAvgusta[30],\"E\")","v":1},{"$f":"COUNTIF(PrisotnostAvgusta[31],\"N\")+COUNTIF(PrisotnostAvgusta[31],\"E\")","v":0},{"$f":"SUBTOTAL(109,PrisotnostAvgusta[Po])","v":0},{"$f":"SUBTOTAL(109,PrisotnostAvgusta[E])","v":10},{"$f":"SUBTOTAL(109,PrisotnostAvgusta[N])","v":3},{"$f":"SUBTOTAL(109,PrisotnostAvgusta[P])","v":98},{"$f":"SUBTOTAL(109,PrisotnostAvgusta[Dni odsoten])","v":13}]

{"sheet":"September","index":3,"n_rows":12,"n_cols":39,"rows_kept":12,"merged":[[4,34,4,38]]}
["EVIDENCA PRISOTNOSTI ŠTUDENTOV",{"$nulls":36},"Začetek študijskega leta",{"$f":"KoledarskoLeto","v":2012}]
[]
[null,null,{"$f":"BesediloBarvnegaKljuča","v":"BARVNI KLJUČ"},{"$f":"Koda1","v":"Po"},{"$f":"BesediloKode1","v":"Pozen"},null,null,{"$f":"Koda2","v":"E"},{"$f":"BesediloKode2","v":"Opravičen"},null,null,{"$f":"Koda3","v":"N"},{"$f":"BesediloKode3","v":"Neopravičen"},null,null,{"$f":"Koda4","v":"P"},{"$f":"BesediloKode4","v":"Prisoten"},null,null,{"$f":"Koda5","v":"Ni"},{"$f":"BesediloKode5","v":"Ni pouka"}]
[]
[null,{"$f":"DATE(KoledarskoLeto,9,1)","v":"2012-09-01"},null,{"$f":"TEXT(WEEKDAY(DATE(KoledarskoLeto,9,1),1),\"aaa\")","v":"sob"},{"$f":"TEXT(WEEKDAY(DATE(KoledarskoLeto,9,2),1),\"aaa\")","v":"ned"},{"$f":"TEXT(WEEKDAY(DATE(KoledarskoLeto,9,3),1),\"aaa\")","v":"pon"},{"$f":"TEXT(WEEKDAY(DATE(KoledarskoLeto,9,4),1),\"aaa\")","v":"tor"},{"$f":"TEXT(WEEKDAY(DATE(KoledarskoLeto,9,5),1),\"aaa\")","v":"sre"},{"$f":"TEXT(WEEKDAY(DATE(KoledarskoLeto,9,6),1),\"aaa\")","v":"čet"},{"$f":"TEXT(WEEKDAY(DATE(KoledarskoLeto,9,7),1),\"aaa\")","v":"pet"},{"$f":"TEXT(WEEKDAY(DATE(KoledarskoLeto,9,8),1),\"aaa\")","v":"sob"},{"$f":"TEXT(WEEKDAY(DATE(KoledarskoLeto,9,9),1),\"aaa\")","v":"ned"},{"$f":"TEXT(WEEKDAY(DATE(KoledarskoLeto,9,10),1),\"aaa\")","v":"pon"},{"$f":"TEXT(WEEKDAY(DATE(KoledarskoLeto,9,11),1),\"aaa\")","v":"tor"},{"$f":"TEXT(WEEKDAY(DATE(KoledarskoLeto,9,12),1),\"aaa\")","v":"sre"},{"$f":"TEXT(WEEKDAY(DATE(KoledarskoLeto,9,13),1),\"aaa\")","v":"čet"},{"$f":"TEXT(WEEKDAY(DATE(KoledarskoLeto,9,14),1),\"aaa\")","v":"pet"},{"$f":"TEXT(WEEKDAY(DATE(KoledarskoLeto,9,15),1),\"aaa\")","v":"sob"},{"$f":"TEXT(WEEKDAY(DATE(KoledarskoLeto,9,16),1),\"aaa\")","v":"ned"},{"$f":"TEXT(WEEKDAY(DATE(KoledarskoLeto,9,17),1),\"aaa\")","v":"pon"},{"$f":"TEXT(WEEKDAY(DATE(KoledarskoLeto,9,18),1),\"aaa\")","v":"tor"},{"$f":"TEXT(WEEKDAY(DATE(KoledarskoLeto,9,19),1),\"aaa\")","v":"sre"},{"$f":"TEXT(WEEKDAY(DATE(KoledarskoLeto,9,20),1),\"aaa\")","v":"čet"},{"$f":"TEXT(WEEKDAY(DATE(KoledarskoLeto,9,21),1),\"aaa\")","v":"pet"},{"$f":"TEXT(WEEKDAY(DATE(KoledarskoLeto,9,22),1),\"aaa\")","v":"sob"},{"$f":"TEXT(WEEKDAY(DATE(KoledarskoLeto,9,23),1),\"aaa\")","v":"ned"},{"$f":"TEXT(WEEKDAY(DATE(KoledarskoLeto,9,24),1),\"aaa\")","v":"pon"},{"$f":"TEXT(WEEKDAY(DATE(KoledarskoLeto,9,25),1),\"aaa\")","v":"tor"},{"$f":"TEXT(WEEKDAY(DATE(KoledarskoLeto,9,26),1),\"aaa\")","v":"sre"},{"$f":"TEXT(WEEKDAY(DATE(KoledarskoLeto,9,27),1),\"aaa\")","v":"čet"},{"$f":"TEXT(WEEKDAY(DATE(KoledarskoLeto,9,28),1),\"aaa\")","v":"pet"},{"$f":"TEXT(WEEKDAY(DATE(KoledarskoLeto,9,29),1),\"aaa\")","v":"sob"},{"$f":"TEXT(WEEKDAY(DATE(KoledarskoLeto,9,30),1),\"aaa\")","v":"ned"},null,"Skupaj"]
[null,"ID študenta","Ime študenta","1","2","3","4","5","6","7","8","9","10","11","12","13","14","15","16","17","18","19","20","21","22","23","24","25","26","27","28","29","30"," ","Po","E","N","P","Dni odsoten"]
[null,null,{"$f":"IFERROR(VLOOKUP(PrisotnostSeptembra[[#This Row],[ID študenta]],SeznamUčencev[],18,FALSE),\"\")","v":""},{"$nulls":31},{"$f":"COUNTIF(PrisotnostSeptembra[[#This Row],[1]:[ ]],Koda1)","v":0},{"$f":"COUNTIF(PrisotnostSeptembra[[#This Row],[1]:[ ]],Koda2)","v":0},{"$f":"COUNTIF(PrisotnostSeptembra[[#This Row],[1]:[ ]],Koda3)","v":0},{"$f":"COUNTIF(PrisotnostSeptembra[[#This Row],[1]:[ ]],Koda4)","v":0},{"$f":"SUM(PrisotnostSeptembra[[#This Row],[E]:[N]])","v":0}]
[null,null,{"$f":"IFERROR(VLOOKUP(PrisotnostSeptembra[[#This Row],[ID študenta]],SeznamUčencev[],18,FALSE),\"\")","v":""},{"$nulls":31},{"$f":"COUNTIF(PrisotnostSeptembra[[#This Row],[1]:[ ]],Koda1)","v":0},{"$f":"COUNTIF(PrisotnostSeptembra[[#This Row],[1]:[ ]],Koda2)","v":0},{"$f":"COUNTIF(PrisotnostSeptembra[[#This Row],[1]:[ ]],Koda3)","v":0},{"$f":"COUNTIF(PrisotnostSeptembra[[#This Row],[1]:[ ]],Koda4)","v":0},{"$f":"SUM(PrisotnostSeptembra[[#This Row],[E]:[N]])","v":0}]
[null,null,{"$f":"IFERROR(VLOOKUP(PrisotnostSeptembra[[#This Row],[ID študenta]],SeznamUčencev[],18,FALSE),\"\")","v":""},{"$nulls":31},{"$f":"COUNTIF(PrisotnostSeptembra[[#This Row],[1]:[ ]],Koda1)","v":0},{"$f":"COUNTIF(PrisotnostSeptembra[[#This Row],[1]:[ ]],Koda2)","v":0},{"$f":"COUNTIF(PrisotnostSeptembra[[#This Row],[1]:[ ]],Koda3)","v":0},{"$f":"COUNTIF(PrisotnostSeptembra[[#This Row],[1]:[ ]],Koda4)","v":0},{"$f":"SUM(PrisotnostSeptembra[[#This Row],[E]:[N]])","v":0}]
[null,null,{"$f":"IFERROR(VLOOKUP(PrisotnostSeptembra[[#This Row],[ID študenta]],SeznamUčencev[],18,FALSE),\"\")","v":""},{"$nulls":31},{"$f":"COUNTIF(PrisotnostSeptembra[[#This Row],[1]:[ ]],Koda1)","v":0},{"$f":"COUNTIF(PrisotnostSeptembra[[#This Row],[1]:[ ]],Koda2)","v":0},{"$f":"COUNTIF(PrisotnostSeptembra[[#This Row],[1]:[ ]],Koda3)","v":0},{"$f":"COUNTIF(PrisotnostSeptembra[[#This Row],[1]:[ ]],Koda4)","v":0},{"$f":"SUM(PrisotnostSeptembra[[#This Row],[E]:[N]])","v":0}]
[null,null,{"$f":"IFERROR(VLOOKUP(PrisotnostSeptembra[[#This Row],[ID študenta]],SeznamUčencev[],18,FALSE),\"\")","v":""},{"$nulls":31},{"$f":"COUNTIF(PrisotnostSeptembra[[#This Row],[1]:[ ]],Koda1)","v":0},{"$f":"COUNTIF(PrisotnostSeptembra[[#This Row],[1]:[ ]],Koda2)","v":0},{"$f":"COUNTIF(PrisotnostSeptembra[[#This Row],[1]:[ ]],Koda3)","v":0},{"$f":"COUNTIF(PrisotnostSeptembra[[#This Row],[1]:[ ]],Koda4)","v":0},{"$f":"SUM(PrisotnostSeptembra[[#This Row],[E]:[N]])","v":0}]
[null,null,"Skupno odsoten dni",{"$f":"COUNTIF(PrisotnostSeptembra[1],\"N\")+COUNTIF(PrisotnostSeptembra[1],\"E\")","v":0},{"$f":"COUNTIF(PrisotnostSeptembra[2],\"N\")+COUNTIF(PrisotnostSeptembra[2],\"E\")","v":0},{"$f":"COUNTIF(PrisotnostSeptembra[3],\"N\")+COUNTIF(PrisotnostSeptembra[3],\"E\")","v":0},{"$f":"COUNTIF(PrisotnostSeptembra[4],\"N\")+COUNTIF(PrisotnostSeptembra[4],\"E\")","v":0},{"$f":"COUNTIF(PrisotnostSeptembra[5],\"N\")+COUNTIF(PrisotnostSeptembra[5],\"E\")","v":0},{"$f":"COUNTIF(PrisotnostSeptembra[6],\"N\")+COUNTIF(PrisotnostSeptembra[6],\"E\")","v":0},{"$f":"COUNTIF(PrisotnostSeptembra[7],\"N\")+COUNTIF(PrisotnostSeptembra[7],\"E\")","v":0},{"$f":"COUNTIF(PrisotnostSeptembra[8],\"N\")+COUNTIF(PrisotnostSeptembra[8],\"E\")","v":0},{"$f":"COUNTIF(PrisotnostSeptembra[9],\"N\")+COUNTIF(PrisotnostSeptembra[9],\"E\")","v":0},{"$f":"COUNTIF(PrisotnostSeptembra[10],\"N\")+COUNTIF(PrisotnostSeptembra[10],\"E\")","v":0},{"$f":"COUNTIF(PrisotnostSeptembra[11],\"N\")+COUNTIF(PrisotnostSeptembra[11],\"E\")","v":0},{"$f":"COUNTIF(PrisotnostSeptembra[12],\"N\")+COUNTIF(PrisotnostSeptembra[12],\"E\")","v":0},{"$f":"COUNTIF(PrisotnostSeptembra[13],\"N\")+COUNTIF(PrisotnostSeptembra[13],\"E\")","v":0},{"$f":"COUNTIF(PrisotnostSeptembra[14],\"N\")+COUNTIF(PrisotnostSeptembra[14],\"E\")","v":0},{"$f":"COUNTIF(PrisotnostSeptembra[15],\"N\")+COUNTIF(PrisotnostSeptembra[15],\"E\")","v":0},{"$f":"COUNTIF(PrisotnostSeptembra[16],\"N\")+COUNTIF(PrisotnostSeptembra[16],\"E\")","v":0},{"$f":"COUNTIF(PrisotnostSeptembra[17],\"N\")+COUNTIF(PrisotnostSeptembra[17],\"E\")","v":0},{"$f":"COUNTIF(PrisotnostSeptembra[18],\"N\")+COUNTIF(PrisotnostSeptembra[18],\"E\")","v":0},{"$f":"COUNTIF(PrisotnostSeptembra[19],\"N\")+COUNTIF(PrisotnostSeptembra[19],\"E\")","v":0},{"$f":"COUNTIF(PrisotnostSeptembra[20],\"N\")+COUNTIF(PrisotnostSeptembra[20],\"E\")","v":0},{"$f":"COUNTIF(PrisotnostSeptembra[21],\"N\")+COUNTIF(PrisotnostSeptembra[21],\"E\")","v":0},{"$f":"COUNTIF(PrisotnostSeptembra[22],\"N\")+COUNTIF(PrisotnostSeptembra[22],\"E\")","v":0},{"$f":"COUNTIF(PrisotnostSeptembra[23],\"N\")+COUNTIF(PrisotnostSeptembra[23],\"E\")","v":0},{"$f":"COUNTIF(PrisotnostSeptembra[24],\"N\")+COUNTIF(PrisotnostSeptembra[24],\"E\")","v":0},{"$f":"COUNTIF(PrisotnostSeptembra[25],\"N\")+COUNTIF(PrisotnostSeptembra[25],\"E\")","v":0},{"$f":"COUNTIF(PrisotnostSeptembra[26],\"N\")+COUNTIF(PrisotnostSeptembra[26],\"E\")","v":0},{"$f":"COUNTIF(PrisotnostSeptembra[27],\"N\")+COUNTIF(PrisotnostSeptembra[27],\"E\")","v":0},{"$f":"COUNTIF(PrisotnostSeptembra[28],\"N\")+COUNTIF(PrisotnostSeptembra[28],\"E\")","v":0},{"$f":"COUNTIF(PrisotnostSeptembra[29],\"N\")+COUNTIF(PrisotnostSeptembra[29],\"E\")","v":0},{"$f":"COUNTIF(PrisotnostSeptembra[30],\"N\")+COUNTIF(PrisotnostSeptembra[30],\"E\")","v":0},{"$f":"COUNTIF(PrisotnostSeptembra[[ ]],\"N\")+COUNTIF(PrisotnostSeptembra[[ ]],\"E\")","v":0},{"$f":"SUBTOTAL(109,PrisotnostSeptembra[Po])","v":0},{"$f":"SUBTOTAL(109,PrisotnostSeptembra[E])","v":0},{"$f":"SUBTOTAL(109,PrisotnostSeptembra[N])","v":0},{"$f":"SUBTOTAL(109,PrisotnostSeptembra[P])","v":0},{"$f":"SUBTOTAL(109,PrisotnostSeptembra[Dni odsoten])","v":0}]

{"sheet":"Oktober","index":4,"n_rows":12,"n_cols":39,"rows_kept":12,"merged":[[4,34,4,38]]}
["EVIDENCA PRISOTNOSTI ŠTUDENTOV",{"$nulls":36},"Začetek študijskega leta",{"$f":"KoledarskoLeto","v":2012}]
[]
[null,null,{"$f":"BesediloBarvnegaKljuča","v":"BARVNI KLJUČ"},{"$f":"Koda1","v":"Po"},{"$f":"BesediloKode1","v":"Pozen"},null,null,{"$f":"Koda2","v":"E"},{"$f":"BesediloKode2","v":"Opravičen"},null,null,{"$f":"Koda3","v":"N"},{"$f":"BesediloKode3","v":"Neopravičen"},null,null,{"$f":"Koda4","v":"P"},{"$f":"BesediloKode4","v":"Prisoten"},null,null,{"$f":"Koda5","v":"Ni"},{"$f":"BesediloKode5","v":"Ni pouka"}]
[]
[null,{"$f":"DATE(KoledarskoLeto,10,1)","v":"2012-10-01"},null,{"$f":"TEXT(WEEKDAY(DATE(KoledarskoLeto,10,1),1),\"aaa\")","v":"pon"},{"$f":"TEXT(WEEKDAY(DATE(KoledarskoLeto,10,2),1),\"aaa\")","v":"tor"},{"$f":"TEXT(WEEKDAY(DATE(KoledarskoLeto,10,3),1),\"aaa\")","v":"sre"},{"$f":"TEXT(WEEKDAY(DATE(KoledarskoLeto,10,4),1),\"aaa\")","v":"čet"},{"$f":"TEXT(WEEKDAY(DATE(KoledarskoLeto,10,5),1),\"aaa\")","v":"pet"},{"$f":"TEXT(WEEKDAY(DATE(KoledarskoLeto,10,6),1),\"aaa\")","v":"sob"},{"$f":"TEXT(WEEKDAY(DATE(KoledarskoLeto,10,7),1),\"aaa\")","v":"ned"},{"$f":"TEXT(WEEKDAY(DATE(KoledarskoLeto,10,8),1),\"aaa\")","v":"pon"},{"$f":"TEXT(WEEKDAY(DATE(KoledarskoLeto,10,9),1),\"aaa\")","v":"tor"},{"$f":"TEXT(WEEKDAY(DATE(KoledarskoLeto,10,10),1),\"aaa\")","v":"sre"},{"$f":"TEXT(WEEKDAY(DATE(KoledarskoLeto,10,11),1),\"aaa\")","v":"čet"},{"$f":"TEXT(WEEKDAY(DATE(KoledarskoLeto,10,12),1),\"aaa\")","v":"pet"},{"$f":"TEXT(WEEKDAY(DATE(KoledarskoLeto,10,13),1),\"aaa\")","v":"sob"},{"$f":"TEXT(WEEKDAY(DATE(KoledarskoLeto,10,14),1),\"aaa\")","v":"ned"},{"$f":"TEXT(WEEKDAY(DATE(KoledarskoLeto,10,15),1),\"aaa\")","v":"pon"},{"$f":"TEXT(WEEKDAY(DATE(KoledarskoLeto,10,16),1),\"aaa\")","v":"tor"},{"$f":"TEXT(WEEKDAY(DATE(KoledarskoLeto,10,17),1),\"aaa\")","v":"sre"},{"$f":"TEXT(WEEKDAY(DATE(KoledarskoLeto,10,18),1),\"aaa\")","v":"čet"},{"$f":"TEXT(WEEKDAY(DATE(KoledarskoLeto,10,19),1),\"aaa\")","v":"pet"},{"$f":"TEXT(WEEKDAY(DATE(KoledarskoLeto,10,20),1),\"aaa\")","v":"sob"},{"$f":"TEXT(WEEKDAY(DATE(KoledarskoLeto,10,21),1),\"aaa\")","v":"ned"},{"$f":"TEXT(WEEKDAY(DATE(KoledarskoLeto,10,22),1),\"aaa\")","v":"pon"},{"$f":"TEXT(WEEKDAY(DATE(KoledarskoLeto,10,23),1),\"aaa\")","v":"tor"},{"$f":"TEXT(WEEKDAY(DATE(KoledarskoLeto,10,24),1),\"aaa\")","v":"sre"},{"$f":"TEXT(WEEKDAY(DATE(KoledarskoLeto,10,25),1),\"aaa\")","v":"čet"},{"$f":"TEXT(WEEKDAY(DATE(KoledarskoLeto,10,26),1),\"aaa\")","v":"pet"},{"$f":"TEXT(WEEKDAY(DATE(KoledarskoLeto,10,27),1),\"aaa\")","v":"sob"},{"$f":"TEXT(WEEKDAY(DATE(KoledarskoLeto,10,28),1),\"aaa\")","v":"ned"},{"$f":"TEXT(WEEKDAY(DATE(KoledarskoLeto,10,29),1),\"aaa\")","v":"pon"},{"$f":"TEXT(WEEKDAY(DATE(KoledarskoLeto,10,30),1),\"aaa\")","v":"tor"},{"$f":"TEXT(WEEKDAY(DATE(KoledarskoLeto,10,31),1),\"aaa\")","v":"sre"},"Skupaj"]
[null,"ID študenta","Ime študenta","1","2","3","4","5","6","7","8","9","10","11","12","13","14","15","16","17","18","19","20","21","22","23","24","25","26","27","28","29","30","31","Po","E","N","P","Dni odsoten"]
[null,null,{"$f":"IFERROR(VLOOKUP(PrisotnostOktobra[[#This Row],[ID študenta]],SeznamUčencev[],18,FALSE),\"\")","v":""},{"$nulls":31},{"$f":"COUNTIF(PrisotnostOktobra[[#This Row],[1]:[31]],Koda1)","v":0},{"$f":"COUNTIF(PrisotnostOktobra[[#This Row],[1]:[31]],Koda2)","v":0},{"$f":"COUNTIF(PrisotnostOktobra[[#This Row],[1]:[31]],Koda3)","v":0},{"$f":"COUNTIF(PrisotnostOktobra[[#This Row],[1]:[31]],Koda4)","v":0},{"$f":"SUM(PrisotnostOktobra[[#This Row],[E]:[N]])","v":0}]
[null,null,{"$f":"IFERROR(VLOOKUP(PrisotnostOktobra[[#This Row],[ID študenta]],SeznamUčencev[],18,FALSE),\"\")","v":""},{"$nulls":31},{"$f":"COUNTIF(PrisotnostOktobra[[#This Row],[1]:[31]],Koda1)","v":0},{"$f":"COUNTIF(PrisotnostOktobra[[#This Row],[1]:[31]],Koda2)","v":0},{"$f":"COUNTIF(PrisotnostOktobra[[#This Row],[1]:[31]],Koda3)","v":0},{"$f":"COUNTIF(PrisotnostOktobra[[#This Row],[1]:[31]],Koda4)","v":0},{"$f":"SUM(PrisotnostOktobra[[#This Row],[E]:[N]])","v":0}]
[null,null,{"$f":"IFERROR(VLOOKUP(PrisotnostOktobra[[#This Row],[ID študenta]],SeznamUčencev[],18,FALSE),\"\")","v":""},{"$nulls":31},{"$f":"COUNTIF(PrisotnostOktobra[[#This Row],[1]:[31]],Koda1)","v":0},{"$f":"COUNTIF(PrisotnostOktobra[[#This Row],[1]:[31]],Koda2)","v":0},{"$f":"COUNTIF(PrisotnostOktobra[[#This Row],[1]:[31]],Koda3)","v":0},{"$f":"COUNTIF(PrisotnostOktobra[[#This Row],[1]:[31]],Koda4)","v":0},{"$f":"SUM(PrisotnostOktobra[[#This Row],[E]:[N]])","v":0}]
[null,null,{"$f":"IFERROR(VLOOKUP(PrisotnostOktobra[[#This Row],[ID študenta]],SeznamUčencev[],18,FALSE),\"\")","v":""},{"$nulls":31},{"$f":"COUNTIF(PrisotnostOktobra[[#This Row],[1]:[31]],Koda1)","v":0},{"$f":"COUNTIF(PrisotnostOktobra[[#This Row],[1]:[31]],Koda2)","v":0},{"$f":"COUNTIF(PrisotnostOktobra[[#This Row],[1]:[31]],Koda3)","v":0},{"$f":"COUNTIF(PrisotnostOktobra[[#This Row],[1]:[31]],Koda4)","v":0},{"$f":"SUM(PrisotnostOktobra[[#This Row],[E]:[N]])","v":0}]
[null,null,{"$f":"IFERROR(VLOOKUP(PrisotnostOktobra[[#This Row],[ID študenta]],SeznamUčencev[],18,FALSE),\"\")","v":""},{"$nulls":31},{"$f":"COUNTIF(PrisotnostOktobra[[#This Row],[1]:[31]],Koda1)","v":0},{"$f":"COUNTIF(PrisotnostOktobra[[#This Row],[1]:[31]],Koda2)","v":0},{"$f":"COUNTIF(PrisotnostOktobra[[#This Row],[1]:[31]],Koda3)","v":0},{"$f":"COUNTIF(PrisotnostOktobra[[#This Row],[1]:[31]],Koda4)","v":0},{"$f":"SUM(PrisotnostOktobra[[#This Row],[E]:[N]])","v":0}]
[null,null,"Skupno odsoten dni",{"$f":"COUNTIF(PrisotnostOktobra[1],\"N\")+COUNTIF(PrisotnostOktobra[1],\"E\")","v":0},{"$f":"COUNTIF(PrisotnostOktobra[2],\"N\")+COUNTIF(PrisotnostOktobra[2],\"E\")","v":0},{"$f":"COUNTIF(PrisotnostOktobra[3],\"N\")+COUNTIF(PrisotnostOktobra[3],\"E\")","v":0},{"$f":"COUNTIF(PrisotnostOktobra[4],\"N\")+COUNTIF(PrisotnostOktobra[4],\"E\")","v":0},{"$f":"COUNTIF(PrisotnostOktobra[5],\"N\")+COUNTIF(PrisotnostOktobra[5],\"E\")","v":0},{"$f":"COUNTIF(PrisotnostOktobra[6],\"N\")+COUNTIF(PrisotnostOktobra[6],\"E\")","v":0},{"$f":"COUNTIF(PrisotnostOktobra[7],\"N\")+COUNTIF(PrisotnostOktobra[7],\"E\")","v":0},{"$f":"COUNTIF(PrisotnostOktobra[8],\"N\")+COUNTIF(PrisotnostOktobra[8],\"E\")","v":0},{"$f":"COUNTIF(PrisotnostOktobra[9],\"N\")+COUNTIF(PrisotnostOktobra[9],\"E\")","v":0},{"$f":"COUNTIF(PrisotnostOktobra[10],\"N\")+COUNTIF(PrisotnostOktobra[10],\"E\")","v":0},{"$f":"COUNTIF(PrisotnostOktobra[11],\"N\")+COUNTIF(PrisotnostOktobra[11],\"E\")","v":0},{"$f":"COUNTIF(PrisotnostOktobra[12],\"N\")+COUNTIF(PrisotnostOktobra[12],\"E\")","v":0},{"$f":"COUNTIF(PrisotnostOktobra[13],\"N\")+COUNTIF(PrisotnostOktobra[13],\"E\")","v":0},{"$f":"COUNTIF(PrisotnostOktobra[14],\"N\")+COUNTIF(PrisotnostOktobra[14],\"E\")","v":0},{"$f":"COUNTIF(PrisotnostOktobra[15],\"N\")+COUNTIF(PrisotnostOktobra[15],\"E\")","v":0},{"$f":"COUNTIF(PrisotnostOktobra[16],\"N\")+COUNTIF(PrisotnostOktobra[16],\"E\")","v":0},{"$f":"COUNTIF(PrisotnostOktobra[17],\"N\")+COUNTIF(PrisotnostOktobra[17],\"E\")","v":0},{"$f":"COUNTIF(PrisotnostOktobra[18],\"N\")+COUNTIF(PrisotnostOktobra[18],\"E\")","v":0},{"$f":"COUNTIF(PrisotnostOktobra[19],\"N\")+COUNTIF(PrisotnostOktobra[19],\"E\")","v":0},{"$f":"COUNTIF(PrisotnostOktobra[20],\"N\")+COUNTIF(PrisotnostOktobra[20],\"E\")","v":0},{"$f":"COUNTIF(PrisotnostOktobra[21],\"N\")+COUNTIF(PrisotnostOktobra[21],\"E\")","v":0},{"$f":"COUNTIF(PrisotnostOktobra[22],\"N\")+COUNTIF(PrisotnostOktobra[22],\"E\")","v":0},{"$f":"COUNTIF(PrisotnostOktobra[23],\"N\")+COUNTIF(PrisotnostOktobra[23],\"E\")","v":0},{"$f":"COUNTIF(PrisotnostOktobra[24],\"N\")+COUNTIF(PrisotnostOktobra[24],\"E\")","v":0},{"$f":"COUNTIF(PrisotnostOktobra[25],\"N\")+COUNTIF(PrisotnostOktobra[25],\"E\")","v":0},{"$f":"COUNTIF(PrisotnostOktobra[26],\"N\")+COUNTIF(PrisotnostOktobra[26],\"E\")","v":0},{"$f":"COUNTIF(PrisotnostOktobra[27],\"N\")+COUNTIF(PrisotnostOktobra[27],\"E\")","v":0},{"$f":"COUNTIF(PrisotnostOktobra[28],\"N\")+COUNTIF(PrisotnostOktobra[28],\"E\")","v":0},{"$f":"COUNTIF(PrisotnostOktobra[29],\"N\")+COUNTIF(PrisotnostOktobra[29],\"E\")","v":0},{"$f":"COUNTIF(PrisotnostOktobra[30],\"N\")+COUNTIF(PrisotnostOktobra[30],\"E\")","v":0},{"$f":"COUNTIF(PrisotnostOktobra[31],\"N\")+COUNTIF(PrisotnostOktobra[31],\"E\")","v":0},{"$f":"SUBTOTAL(109,PrisotnostOktobra[Po])","v":0},{"$f":"SUBTOTAL(109,PrisotnostOktobra[E])","v":0},{"$f":"SUBTOTAL(109,PrisotnostOktobra[N])","v":0},{"$f":"SUBTOTAL(109,PrisotnostOktobra[P])","v":0},{"$f":"SUBTOTAL(109,PrisotnostOktobra[Dni odsoten])","v":0}]

{"sheet":"November","index":5,"n_rows":12,"n_cols":39,"rows_kept":12,"merged":[[4,34,4,38]]}
["EVIDENCA PRISOTNOSTI ŠTUDENTOV",{"$nulls":36},"Začetek študijskega leta",{"$f":"KoledarskoLeto","v":2012}]
[]
[null,null,{"$f":"BesediloBarvnegaKljuča","v":"BARVNI KLJUČ"},{"$f":"Koda1","v":"Po"},{"$f":"BesediloKode1","v":"Pozen"},null,null,{"$f":"Koda2","v":"E"},{"$f":"BesediloKode2","v":"Opravičen"},null,null,{"$f":"Koda3","v":"N"},{"$f":"BesediloKode3","v":"Neopravičen"},null,null,{"$f":"Koda4","v":"P"},{"$f":"BesediloKode4","v":"Prisoten"},null,null,{"$f":"Koda5","v":"Ni"},{"$f":"BesediloKode5","v":"Ni pouka"}]
[]
[null,{"$f":"DATE(KoledarskoLeto,11,1)","v":"2012-11-01"},null,{"$f":"TEXT(WEEKDAY(DATE(KoledarskoLeto,11,1),1),\"aaa\")","v":"čet"},{"$f":"TEXT(WEEKDAY(DATE(KoledarskoLeto,11,2),1),\"aaa\")","v":"pet"},{"$f":"TEXT(WEEKDAY(DATE(KoledarskoLeto,11,3),1),\"aaa\")","v":"sob"},{"$f":"TEXT(WEEKDAY(DATE(KoledarskoLeto,11,4),1),\"aaa\")","v":"ned"},{"$f":"TEXT(WEEKDAY(DATE(KoledarskoLeto,11,5),1),\"aaa\")","v":"pon"},{"$f":"TEXT(WEEKDAY(DATE(KoledarskoLeto,11,6),1),\"aaa\")","v":"tor"},{"$f":"TEXT(WEEKDAY(DATE(KoledarskoLeto,11,7),1),\"aaa\")","v":"sre"},{"$f":"TEXT(WEEKDAY(DATE(KoledarskoLeto,11,8),1),\"aaa\")","v":"čet"},{"$f":"TEXT(WEEKDAY(DATE(KoledarskoLeto,11,9),1),\"aaa\")","v":"pet"},{"$f":"TEXT(WEEKDAY(DATE(KoledarskoLeto,11,10),1),\"aaa\")","v":"sob"},{"$f":"TEXT(WEEKDAY(DATE(KoledarskoLeto,11,11),1),\"aaa\")","v":"ned"},{"$f":"TEXT(WEEKDAY(DATE(KoledarskoLeto,11,12),1),\"aaa\")","v":"pon"},{"$f":"TEXT(WEEKDAY(DATE(KoledarskoLeto,11,13),1),\"aaa\")","v":"tor"},{"$f":"TEXT(WEEKDAY(DATE(KoledarskoLeto,11,14),1),\"aaa\")","v":"sre"},{"$f":"TEXT(WEEKDAY(DATE(KoledarskoLeto,11,15),1),\"aaa\")","v":"čet"},{"$f":"TEXT(WEEKDAY(DATE(KoledarskoLeto,11,16),1),\"aaa\")","v":"pet"},{"$f":"TEXT(WEEKDAY(DATE(KoledarskoLeto,11,17),1),\"aaa\")","v":"sob"},{"$f":"TEXT(WEEKDAY(DATE(KoledarskoLeto,11,18),1),\"aaa\")","v":"ned"},{"$f":"TEXT(WEEKDAY(DATE(KoledarskoLeto,11,19),1),\"aaa\")","v":"pon"},{"$f":"TEXT(WEEKDAY(DATE(KoledarskoLeto,11,20),1),\"aaa\")","v":"tor"},{"$f":"TEXT(WEEKDAY(DATE(KoledarskoLeto,11,21),1),\"aaa\")","v":"sre"},{"$f":"TEXT(WEEKDAY(DATE(KoledarskoLeto,11,22),1),\"aaa\")","v":"čet"},{"$f":"TEXT(WEEKDAY(DATE(KoledarskoLeto,11,23),1),\"aaa\")","v":"pet"},{"$f":"TEXT(WEEKDAY(DATE(KoledarskoLeto,11,24),1),\"aaa\")","v":"sob"},{"$f":"TEXT(WEEKDAY(DATE(KoledarskoLeto,11,25),1),\"aaa\")","v":"ned"},{"$f":"TEXT(WEEKDAY(DATE(KoledarskoLeto,11,26),1),\"aaa\")","v":"pon"},{"$f":"TEXT(WEEKDAY(DATE(KoledarskoLeto,11,27),1),\"aaa\")","v":"tor"},{"$f":"TEXT(WEEKDAY(DATE(KoledarskoLeto,11,28),1),\"aaa\")","v":"sre"},{"$f":"TEXT(WEEKDAY(DATE(KoledarskoLeto,11,29),1),\"aaa\")","v":"čet"},{"$f":"TEXT(WEEKDAY(DATE(KoledarskoLeto,11,30),1),\"aaa\")","v":"pet"},null,"Skupaj"]
[null,"ID študenta","Ime študenta","1","2","3","4","5","6","7","8","9","10","11","12","13","14","15","16","17","18","19","20","21","22","23","24","25","26","27","28","29","30"," ","Po","E","N","P","Dni odsoten"]
[null,null,{"$f":"IFERROR(VLOOKUP(PrisotnostNovembra[[#This Row],[ID študenta]],SeznamUčencev[],18,FALSE),\"\")","v":""},{"$nulls":31},{"$f":"COUNTIF(PrisotnostNovembra[[#This Row],[1]:[ ]],Koda1)","v":0},{"$f":"COUNTIF(PrisotnostNovembra[[#This Row],[1]:[ ]],Koda2)","v":0},{"$f":"COUNTIF(PrisotnostNovembra[[#This Row],[1]:[ ]],Koda3)","v":0},{"$f":"COUNTIF(PrisotnostNovembra[[#This Row],[1]:[ ]],Koda4)","v":0},{"$f":"SUM(PrisotnostNovembra[[#This Row],[E]:[N]])","v":0}]
[null,null,{"$f":"IFERROR(VLOOKUP(PrisotnostNovembra[[#This Row],[ID študenta]],SeznamUčencev[],18,FALSE),\"\")","v":""},{"$nulls":31},{"$f":"COUNTIF(PrisotnostNovembra[[#This Row],[1]:[ ]],Koda1)","v":0},{"$f":"COUNTIF(PrisotnostNovembra[[#This Row],[1]:[ ]],Koda2)","v":0},{"$f":"COUNTIF(PrisotnostNovembra[[#This Row],[1]:[ ]],Koda3)","v":0},{"$f":"COUNTIF(PrisotnostNovembra[[#This Row],[1]:[ ]],Koda4)","v":0},{"$f":"SUM(PrisotnostNovembra[[#This Row],[E]:[N]])","v":0}]
[null,null,{"$f":"IFERROR(VLOOKUP(PrisotnostNovembra[[#This Row],[ID študenta]],SeznamUčencev[],18,FALSE),\"\")","v":""},{"$nulls":31},{"$f":"COUNTIF(PrisotnostNovembra[[#This Row],[1]:[ ]],Koda1)","v":0},{"$f":"COUNTIF(PrisotnostNovembra[[#This Row],[1]:[ ]],Koda2)","v":0},{"$f":"COUNTIF(PrisotnostNovembra[[#This Row],[1]:[ ]],Koda3)","v":0},{"$f":"COUNTIF(PrisotnostNovembra[[#This Row],[1]:[ ]],Koda4)","v":0},{"$f":"SUM(PrisotnostNovembra[[#This Row],[E]:[N]])","v":0}]
[null,null,{"$f":"IFERROR(VLOOKUP(PrisotnostNovembra[[#This Row],[ID študenta]],SeznamUčencev[],18,FALSE),\"\")","v":""},{"$nulls":31},{"$f":"COUNTIF(PrisotnostNovembra[[#This Row],[1]:[ ]],Koda1)","v":0},{"$f":"COUNTIF(PrisotnostNovembra[[#This Row],[1]:[ ]],Koda2)","v":0},{"$f":"COUNTIF(PrisotnostNovembra[[#This Row],[1]:[ ]],Koda3)","v":0},{"$f":"COUNTIF(PrisotnostNovembra[[#This Row],[1]:[ ]],Koda4)","v":0},{"$f":"SUM(PrisotnostNovembra[[#This Row],[E]:[N]])","v":0}]
[null,null,{"$f":"IFERROR(VLOOKUP(PrisotnostNovembra[[#This Row],[ID študenta]],SeznamUčencev[],18,FALSE),\"\")","v":""},{"$nulls":31},{"$f":"COUNTIF(PrisotnostNovembra[[#This Row],[1]:[ ]],Koda1)","v":0},{"$f":"COUNTIF(PrisotnostNovembra[[#This Row],[1]:[ ]],Koda2)","v":0},{"$f":"COUNTIF(PrisotnostNovembra[[#This Row],[1]:[ ]],Koda3)","v":0},{"$f":"COUNTIF(PrisotnostNovembra[[#This Row],[1]:[ ]],Koda4)","v":0},{"$f":"SUM(PrisotnostNovembra[[#This Row],[E]:[N]])","v":0}]
[null,null,"Skupno odsoten dni",{"$f":"COUNTIF(PrisotnostNovembra[1],\"N\")+COUNTIF(PrisotnostNovembra[1],\"E\")","v":0},{"$f":"COUNTIF(PrisotnostNovembra[2],\"N\")+COUNTIF(PrisotnostNovembra[2],\"E\")","v":0},{"$f":"COUNTIF(PrisotnostNovembra[3],\"N\")+COUNTIF(PrisotnostNovembra[3],\"E\")","v":0},{"$f":"COUNTIF(PrisotnostNovembra[4],\"N\")+COUNTIF(PrisotnostNovembra[4],\"E\")","v":0},{"$f":"COUNTIF(PrisotnostNovembra[5],\"N\")+COUNTIF(PrisotnostNovembra[5],\"E\")","v":0},{"$f":"COUNTIF(PrisotnostNovembra[6],\"N\")+COUNTIF(PrisotnostNovembra[6],\"E\")","v":0},{"$f":"COUNTIF(PrisotnostNovembra[7],\"N\")+COUNTIF(PrisotnostNovembra[7],\"E\")","v":0},{"$f":"COUNTIF(PrisotnostNovembra[8],\"N\")+COUNTIF(PrisotnostNovembra[8],\"E\")","v":0},{"$f":"COUNTIF(PrisotnostNovembra[9],\"N\")+COUNTIF(PrisotnostNovembra[9],\"E\")","v":0},{"$f":"COUNTIF(PrisotnostNovembra[10],\"N\")+COUNTIF(PrisotnostNovembra[10],\"E\")","v":0},{"$f":"COUNTIF(PrisotnostNovembra[11],\"N\")+COUNTIF(PrisotnostNovembra[11],\"E\")","v":0},{"$f":"COUNTIF(PrisotnostNovembra[12],\"N\")+COUNTIF(PrisotnostNovembra[12],\"E\")","v":0},{"$f":"COUNTIF(PrisotnostNovembra[13],\"N\")+COUNTIF(PrisotnostNovembra[13],\"E\")","v":0},{"$f":"COUNTIF(PrisotnostNovembra[14],\"N\")+COUNTIF(PrisotnostNovembra[14],\"E\")","v":0},{"$f":"COUNTIF(PrisotnostNovembra[15],\"N\")+COUNTIF(PrisotnostNovembra[15],\"E\")","v":0},{"$f":"COUNTIF(PrisotnostNovembra[16],\"N\")+COUNTIF(PrisotnostNovembra[16],\"E\")","v":0},{"$f":"COUNTIF(PrisotnostNovembra[17],\"N\")+COUNTIF(PrisotnostNovembra[17],\"E\")","v":0},{"$f":"COUNTIF(PrisotnostNovembra[18],\"N\")+COUNTIF(PrisotnostNovembra[18],\"E\")","v":0},{"$f":"COUNTIF(PrisotnostNovembra[19],\"N\")+COUNTIF(PrisotnostNovembra[19],\"E\")","v":0},{"$f":"COUNTIF(PrisotnostNovembra[20],\"N\")+COUNTIF(PrisotnostNovembra[20],\"E\")","v":0},{"$f":"COUNTIF(PrisotnostNovembra[21],\"N\")+COUNTIF(PrisotnostNovembra[21],\"E\")","v":0},{"$f":"COUNTIF(PrisotnostNovembra[22],\"N\")+COUNTIF(PrisotnostNovembra[22],\"E\")","v":0},{"$f":"COUNTIF(PrisotnostNovembra[23],\"N\")+COUNTIF(PrisotnostNovembra[23],\"E\")","v":0},{"$f":"COUNTIF(PrisotnostNovembra[24],\"N\")+COUNTIF(PrisotnostNovembra[24],\"E\")","v":0},{"$f":"COUNTIF(PrisotnostNovembra[25],\"N\")+COUNTIF(PrisotnostNovembra[25],\"E\")","v":0},{"$f":"COUNTIF(PrisotnostNovembra[26],\"N\")+COUNTIF(PrisotnostNovembra[26],\"E\")","v":0},{"$f":"COUNTIF(PrisotnostNovembra[27],\"N\")+COUNTIF(PrisotnostNovembra[27],\"E\")","v":0},{"$f":"COUNTIF(PrisotnostNovembra[28],\"N\")+COUNTIF(PrisotnostNovembra[28],\"E\")","v":0},{"$f":"COUNTIF(PrisotnostNovembra[29],\"N\")+COUNTIF(PrisotnostNovembra[29],\"E\")","v":0},{"$f":"COUNTIF(PrisotnostNovembra[30],\"N\")+COUNTIF(PrisotnostNovembra[30],\"E\")","v":0},{"$f":"COUNTIF(PrisotnostNovembra[[ ]],\"N\")+COUNTIF(PrisotnostNovembra[[ ]],\"E\")","v":0},{"$f":"SUBTOTAL(109,PrisotnostNovembra[Po])","v":0},{"$f":"SUBTOTAL(109,PrisotnostNovembra[E])","v":0},{"$f":"SUBTOTAL(109,PrisotnostNovembra[N])","v":0},{"$f":"SUBTOTAL(109,PrisotnostNovembra[P])","v":0},{"$f":"SUBTOTAL(109,PrisotnostNovembra[Dni odsoten])","v":0}]

{"sheet":"December","index":6,"n_rows":12,"n_cols":39,"rows_kept":12,"merged":[[4,34,4,38]]}
["EVIDENCA PRISOTNOSTI ŠTUDENTOV",{"$nulls":36},"Začetek študijskega leta",{"$f":"KoledarskoLeto","v":2012}]
[]
[null,null,{"$f":"BesediloBarvnegaKljuča","v":"BARVNI KLJUČ"},{"$f":"Koda1","v":"Po"},{"$f":"BesediloKode1","v":"Pozen"},null,null,{"$f":"Koda2","v":"E"},{"$f":"BesediloKode2","v":"Opravičen"},null,null,{"$f":"Koda3","v":"N"},{"$f":"BesediloKode3","v":"Neopravičen"},null,null,{"$f":"Koda4","v":"P"},{"$f":"BesediloKode4","v":"Prisoten"},null,null,{"$f":"Koda5","v":"Ni"},{"$f":"BesediloKode5","v":"Ni pouka"}]
[]
[null,{"$f":"DATE(KoledarskoLeto,12,1)","v":"2012-12-01"},null,{"$f":"TEXT(WEEKDAY(DATE(KoledarskoLeto,12,1),1),\"aaa\")","v":"sob"},{"$f":"TEXT(WEEKDAY(DATE(KoledarskoLeto,12,2),1),\"aaa\")","v":"ned"},{"$f":"TEXT(WEEKDAY(DATE(KoledarskoLeto,12,3),1),\"aaa\")","v":"pon"},{"$f":"TEXT(WEEKDAY(DATE(KoledarskoLeto,12,4),1),\"aaa\")","v":"tor"},{"$f":"TEXT(WEEKDAY(DATE(KoledarskoLeto,12,5),1),\"aaa\")","v":"sre"},{"$f":"TEXT(WEEKDAY(DATE(KoledarskoLeto,12,6),1),\"aaa\")","v":"čet"},{"$f":"TEXT(WEEKDAY(DATE(KoledarskoLeto,12,7),1),\"aaa\")","v":"pet"},{"$f":"TEXT(WEEKDAY(DATE(KoledarskoLeto,12,8),1),\"aaa\")","v":"sob"},{"$f":"TEXT(WEEKDAY(DATE(KoledarskoLeto,12,9),1),\"aaa\")","v":"ned"},{"$f":"TEXT(WEEKDAY(DATE(KoledarskoLeto,12,10),1),\"aaa\")","v":"pon"},{"$f":"TEXT(WEEKDAY(DATE(KoledarskoLeto,12,11),1),\"aaa\")","v":"tor"},{"$f":"TEXT(WEEKDAY(DATE(KoledarskoLeto,12,12),1),\"aaa\")","v":"sre"},{"$f":"TEXT(WEEKDAY(DATE(KoledarskoLeto,12,13),1),\"aaa\")","v":"čet"},{"$f":"TEXT(WEEKDAY(DATE(KoledarskoLeto,12,14),1),\"aaa\")","v":"pet"},{"$f":"TEXT(WEEKDAY(DATE(KoledarskoLeto,12,15),1),\"aaa\")","v":"sob"},{"$f":"TEXT(WEEKDAY(DATE(KoledarskoLeto,12,16),1),\"aaa\")","v":"ned"},{"$f":"TEXT(WEEKDAY(DATE(KoledarskoLeto,12,17),1),\"aaa\")","v":"pon"},{"$f":"TEXT(WEEKDAY(DATE(KoledarskoLeto,12,18),1),\"aaa\")","v":"tor"},{"$f":"TEXT(WEEKDAY(DATE(KoledarskoLeto,12,19),1),\"aaa\")","v":"sre"},{"$f":"TEXT(WEEKDAY(DATE(KoledarskoLeto,12,20),1),\"aaa\")","v":"čet"},{"$f":"TEXT(WEEKDAY(DATE(KoledarskoLeto,12,21),1),\"aaa\")","v":"pet"},{"$f":"TEXT(WEEKDAY(DATE(KoledarskoLeto,12,22),1),\"aaa\")","v":"sob"},{"$f":"TEXT(WEEKDAY(DATE(KoledarskoLeto,12,23),1),\"aaa\")","v":"ned"},{"$f":"TEXT(WEEKDAY(DATE(KoledarskoLeto,12,24),1),\"aaa\")","v":"pon"},{"$f":"TEXT(WEEKDAY(DATE(KoledarskoLeto,12,25),1),\"aaa\")","v":"tor"},{"$f":"TEXT(WEEKDAY(DATE(KoledarskoLeto,12,26),1),\"aaa\")","v":"sre"},{"$f":"TEXT(WEEKDAY(DATE(KoledarskoLeto,12,27),1),\"aaa\")","v":"čet"},{"$f":"TEXT(WEEKDAY(DATE(KoledarskoLeto,12,28),1),\"aaa\")","v":"pet"},{"$f":"TEXT(WEEKDAY(DATE(KoledarskoLeto,12,29),1),\"aaa\")","v":"sob"},{"$f":"TEXT(WEEKDAY(DATE(KoledarskoLeto,12,30),1),\"aaa\")","v":"ned"},{"$f":"TEXT(WEEKDAY(DATE(KoledarskoLeto,12,31),1),\"aaa\")","v":"pon"},"Skupaj"]
[null,"ID študenta","Ime študenta","1","2","3","4","5","6","7","8","9","10","11","12","13","14","15","16","17","18","19","20","21","22","23","24","25","26","27","28","29","30","31","Po","E","N","P","Dni odsoten"]
[null,null,{"$f":"IFERROR(VLOOKUP(PrisotnostDecembra[[#This Row],[ID študenta]],SeznamUčencev[],18,FALSE),\"\")","v":""},{"$nulls":31},{"$f":"COUNTIF(PrisotnostDecembra[[#This Row],[1]:[31]],Koda1)","v":0},{"$f":"COUNTIF(PrisotnostDecembra[[#This Row],[1]:[31]],Koda2)","v":0},{"$f":"COUNTIF(PrisotnostDecembra[[#This Row],[1]:[31]],Koda3)","v":0},{"$f":"COUNTIF(PrisotnostDecembra[[#This Row],[1]:[31]],Koda4)","v":0},{"$f":"SUM(PrisotnostDecembra[[#This Row],[E]:[N]])","v":0}]
[null,null,{"$f":"IFERROR(VLOOKUP(PrisotnostDecembra[[#This Row],[ID študenta]],SeznamUčencev[],18,FALSE),\"\")","v":""},{"$nulls":31},{"$f":"COUNTIF(PrisotnostDecembra[[#This Row],[1]:[31]],Koda1)","v":0},{"$f":"COUNTIF(PrisotnostDecembra[[#This Row],[1]:[31]],Koda2)","v":0},{"$f":"COUNTIF(PrisotnostDecembra[[#This Row],[1]:[31]],Koda3)","v":0},{"$f":"COUNTIF(PrisotnostDecembra[[#This Row],[1]:[31]],Koda4)","v":0},{"$f":"SUM(PrisotnostDecembra[[#This Row],[E]:[N]])","v":0}]
[null,null,{"$f":"IFERROR(VLOOKUP(PrisotnostDecembra[[#This Row],[ID študenta]],SeznamUčencev[],18,FALSE),\"\")","v":""},{"$nulls":31},{"$f":"COUNTIF(PrisotnostDecembra[[#This Row],[1]:[31]],Koda1)","v":0},{"$f":"COUNTIF(PrisotnostDecembra[[#This Row],[1]:[31]],Koda2)","v":0},{"$f":"COUNTIF(PrisotnostDecembra[[#This Row],[1]:[31]],Koda3)","v":0},{"$f":"COUNTIF(PrisotnostDecembra[[#This Row],[1]:[31]],Koda4)","v":0},{"$f":"SUM(PrisotnostDecembra[[#This Row],[E]:[N]])","v":0}]
[null,null,{"$f":"IFERROR(VLOOKUP(PrisotnostDecembra[[#This Row],[ID študenta]],SeznamUčencev[],18,FALSE),\"\")","v":""},{"$nulls":31},{"$f":"COUNTIF(PrisotnostDecembra[[#This Row],[1]:[31]],Koda1)","v":0},{"$f":"COUNTIF(PrisotnostDecembra[[#This Row],[1]:[31]],Koda2)","v":0},{"$f":"COUNTIF(PrisotnostDecembra[[#This Row],[1]:[31]],Koda3)","v":0},{"$f":"COUNTIF(PrisotnostDecembra[[#This Row],[1]:[31]],Koda4)","v":0},{"$f":"SUM(PrisotnostDecembra[[#This Row],[E]:[N]])","v":0}]
[null,null,{"$f":"IFERROR(VLOOKUP(PrisotnostDecembra[[#This Row],[ID študenta]],SeznamUčencev[],18,FALSE),\"\")","v":""},{"$nulls":31},{"$f":"COUNTIF(PrisotnostDecembra[[#This Row],[1]:[31]],Koda1)","v":0},{"$f":"COUNTIF(PrisotnostDecembra[[#This Row],[1]:[31]],Koda2)","v":0},{"$f":"COUNTIF(PrisotnostDecembra[[#This Row],[1]:[31]],Koda3)","v":0},{"$f":"COUNTIF(PrisotnostDecembra[[#This Row],[1]:[31]],Koda4)","v":0},{"$f":"SUM(PrisotnostDecembra[[#This Row],[E]:[N]])","v":0}]
[null,null,"Skupno odsoten dni",{"$f":"COUNTIF(PrisotnostDecembra[1],\"N\")+COUNTIF(PrisotnostDecembra[1],\"E\")","v":0},{"$f":"COUNTIF(PrisotnostDecembra[2],\"N\")+COUNTIF(PrisotnostDecembra[2],\"E\")","v":0},{"$f":"COUNTIF(PrisotnostDecembra[3],\"N\")+COUNTIF(PrisotnostDecembra[3],\"E\")","v":0},{"$f":"COUNTIF(PrisotnostDecembra[4],\"N\")+COUNTIF(PrisotnostDecembra[4],\"E\")","v":0},{"$f":"COUNTIF(PrisotnostDecembra[5],\"N\")+COUNTIF(PrisotnostDecembra[5],\"E\")","v":0},{"$f":"COUNTIF(PrisotnostDecembra[6],\"N\")+COUNTIF(PrisotnostDecembra[6],\"E\")","v":0},{"$f":"COUNTIF(PrisotnostDecembra[7],\"N\")+COUNTIF(PrisotnostDecembra[7],\"E\")","v":0},{"$f":"COUNTIF(PrisotnostDecembra[8],\"N\")+COUNTIF(PrisotnostDecembra[8],\"E\")","v":0},{"$f":"COUNTIF(PrisotnostDecembra[9],\"N\")+COUNTIF(PrisotnostDecembra[9],\"E\")","v":0},{"$f":"COUNTIF(PrisotnostDecembra[10],\"N\")+COUNTIF(PrisotnostDecembra[10],\"E\")","v":0},{"$f":"COUNTIF(PrisotnostDecembra[11],\"N\")+COUNTIF(PrisotnostDecembra[11],\"E\")","v":0},{"$f":"COUNTIF(PrisotnostDecembra[12],\"N\")+COUNTIF(PrisotnostDecembra[12],\"E\")","v":0},{"$f":"COUNTIF(PrisotnostDecembra[13],\"N\")+COUNTIF(PrisotnostDecembra[13],\"E\")","v":0},{"$f":"COUNTIF(PrisotnostDecembra[14],\"N\")+COUNTIF(PrisotnostDecembra[14],\"E\")","v":0},{"$f":"COUNTIF(PrisotnostDecembra[15],\"N\")+COUNTIF(PrisotnostDecembra[15],\"E\")","v":0},{"$f":"COUNTIF(PrisotnostDecembra[16],\"N\")+COUNTIF(PrisotnostDecembra[16],\"E\")","v":0},{"$f":"COUNTIF(PrisotnostDecembra[17],\"N\")+COUNTIF(PrisotnostDecembra[17],\"E\")","v":0},{"$f":"COUNTIF(PrisotnostDecembra[18],\"N\")+COUNTIF(PrisotnostDecembra[18],\"E\")","v":0},{"$f":"COUNTIF(PrisotnostDecembra[19],\"N\")+COUNTIF(PrisotnostDecembra[19],\"E\")","v":0},{"$f":"COUNTIF(PrisotnostDecembra[20],\"N\")+COUNTIF(PrisotnostDecembra[20],\"E\")","v":0},{"$f":"COUNTIF(PrisotnostDecembra[21],\"N\")+COUNTIF(PrisotnostDecembra[21],\"E\")","v":0},{"$f":"COUNTIF(PrisotnostDecembra[22],\"N\")+COUNTIF(PrisotnostDecembra[22],\"E\")","v":0},{"$f":"COUNTIF(PrisotnostDecembra[23],\"N\")+COUNTIF(PrisotnostDecembra[23],\"E\")","v":0},{"$f":"COUNTIF(PrisotnostDecembra[24],\"N\")+COUNTIF(PrisotnostDecembra[24],\"E\")","v":0},{"$f":"COUNTIF(PrisotnostDecembra[25],\"N\")+COUNTIF(PrisotnostDecembra[25],\"E\")","v":0},{"$f":"COUNTIF(PrisotnostDecembra[26],\"N\")+COUNTIF(PrisotnostDecembra[26],\"E\")","v":0},{"$f":"COUNTIF(PrisotnostDecembra[27],\"N\")+COUNTIF(PrisotnostDecembra[27],\"E\")","v":0},{"$f":"COUNTIF(PrisotnostDecembra[28],\"N\")+COUNTIF(PrisotnostDecembra[28],\"E\")","v":0},{"$f":"COUNTIF(PrisotnostDecembra[29],\"N\")+COUNTIF(PrisotnostDecembra[29],\"E\")","v":0},{"$f":"COUNTIF(PrisotnostDecembra[30],\"N\")+COUNTIF(PrisotnostDecembra[30],\"E\")","v":0},{"$f":"COUNTIF(PrisotnostDecembra[31],\"N\")+COUNTIF(PrisotnostDecembra[31],\"E\")","v":0},{"$f":"SUBTOTAL(109,PrisotnostDecembra[Po])","v":0},{"$f":"SUBTOTAL(109,PrisotnostDecembra[E])","v":0},{"$f":"SUBTOTAL(109,PrisotnostDecembra[N])","v":0},{"$f":"SUBTOTAL(109,PrisotnostDecembra[P])","v":0},{"$f":"SUBTOTAL(109,PrisotnostDecembra[Dni odsoten])","v":0}]

{"sheet":"Januar","index":7,"n_rows":12,"n_cols":39,"rows_kept":12,"merged":[[4,34,4,38]]}
["EVIDENCA PRISOTNOSTI ŠTUDENTOV",{"$nulls":36},"Začetek študijskega leta",{"$f":"KoledarskoLeto","v":2012}]
[]
[null,null,{"$f":"BesediloBarvnegaKljuča","v":"BARVNI KLJUČ"},{"$f":"Koda1","v":"Po"},{"$f":"BesediloKode1","v":"Pozen"},null,null,{"$f":"Koda2","v":"E"},{"$f":"BesediloKode2","v":"Opravičen"},null,null,{"$f":"Koda3","v":"N"},{"$f":"BesediloKode3","v":"Neopravičen"},null,null,{"$f":"Koda4","v":"P"},{"$f":"BesediloKode4","v":"Prisoten"},null,null,{"$f":"Koda5","v":"Ni"},{"$f":"BesediloKode5","v":"Ni pouka"}]
[]
[null,{"$f":"DATE(KoledarskoLeto+1,1,1)","v":"2013-01-01"},null,{"$f":"TEXT(WEEKDAY(DATE(KoledarskoLeto+1,1,1),1),\"aaa\")","v":"tor"},{"$f":"TEXT(WEEKDAY(DATE(KoledarskoLeto+1,1,2),1),\"aaa\")","v":"sre"},{"$f":"TEXT(WEEKDAY(DATE(KoledarskoLeto+1,1,3),1),\"aaa\")","v":"čet"},{"$f":"TEXT(WEEKDAY(DATE(KoledarskoLeto+1,1,4),1),\"aaa\")","v":"pet"},{"$f":"TEXT(WEEKDAY(DATE(KoledarskoLeto+1,1,5),1),\"aaa\")","v":"sob"},{"$f":"TEXT(WEEKDAY(DATE(KoledarskoLeto+1,1,6),1),\"aaa\")","v":"ned"},{"$f":"TEXT(WEEKDAY(DATE(KoledarskoLeto+1,1,7),1),\"aaa\")","v":"pon"},{"$f":"TEXT(WEEKDAY(DATE(KoledarskoLeto+1,1,8),1),\"aaa\")","v":"tor"},{"$f":"TEXT(WEEKDAY(DATE(KoledarskoLeto+1,1,9),1),\"aaa\")","v":"sre"},{"$f":"TEXT(WEEKDAY(DATE(KoledarskoLeto+1,1,10),1),\"aaa\")","v":"čet"},{"$f":"TEXT(WEEKDAY(DATE(KoledarskoLeto+1,1,11),1),\"aaa\")","v":"pet"},{"$f":"TEXT(WEEKDAY(DATE(KoledarskoLeto+1,1,12),1),\"aaa\")","v":"sob"},{"$f":"TEXT(WEEKDAY(DATE(KoledarskoLeto+1,1,13),1),\"aaa\")","v":"ned"},{"$f":"TEXT(WEEKDAY(DATE(KoledarskoLeto+1,1,14),1),\"aaa\")","v":"pon"},{"$f":"TEXT(WEEKDAY(DATE(KoledarskoLeto+1,1,15),1),\"aaa\")","v":"tor"},{"$f":"TEXT(WEEKDAY(DATE(KoledarskoLeto+1,1,16),1),\"aaa\")","v":"sre"},{"$f":"TEXT(WEEKDAY(DATE(KoledarskoLeto+1,1,17),1),\"aaa\")","v":"čet"},{"$f":"TEXT(WEEKDAY(DATE(KoledarskoLeto+1,1,18),1),\"aaa\")","v":"pet"},{"$f":"TEXT(WEEKDAY(DATE(KoledarskoLeto+1,1,19),1),\"aaa\")","v":"sob"},{"$f":"TEXT(WEEKDAY(DATE(KoledarskoLeto+1,1,20),1),\"aaa\")","v":"ned"},{"$f":"TEXT(WEEKDAY(DATE(KoledarskoLeto+1,1,21),1),\"aaa\")","v":"pon"},{"$f":"TEXT(WEEKDAY(DATE(KoledarskoLeto+1,1,22),1),\"aaa\")","v":"tor"},{"$f":"TEXT(WEEKDAY(DATE(KoledarskoLeto+1,1,23),1),\"aaa\")","v":"sre"},{"$f":"TEXT(WEEKDAY(DATE(KoledarskoLeto+1,1,24),1),\"aaa\")","v":"čet"},{"$f":"TEXT(WEEKDAY(DATE(KoledarskoLeto+1,1,25),1),\"aaa\")","v":"pet"},{"$f":"TEXT(WEEKDAY(DATE(KoledarskoLeto+1,1,26),1),\"aaa\")","v":"sob"},{"$f":"TEXT(WEEKDAY(DATE(KoledarskoLeto+1,1,27),1),\"aaa\")","v":"ned"},{"$f":"TEXT(WEEKDAY(DATE(KoledarskoLeto+1,1,28),1),\"aaa\")","v":"pon"},{"$f":"TEXT(WEEKDAY(DATE(KoledarskoLeto+1,1,29),1),\"aaa\")","v":"tor"},{"$f":"TEXT(WEEKDAY(DATE(KoledarskoLeto+1,1,30),1),\"aaa\")","v":"sre"},{"$f":"TEXT(WEEKDAY(DATE(KoledarskoLeto+1,1,31),1),\"aaa\")","v":"čet"},"Skupaj"]
[null,"ID študenta","Ime študenta","1","2","3","4","5","6","7","8","9","10","11","12","13","14","15","16","17","18","19","20","21","22","23","24","25","26","27","28","29","30","31","Po","E","N","P","Dni odsoten"]
[null,null,{"$f":"IFERROR(VLOOKUP(PrisotnostJanuarja[[#This Row],[ID študenta]],SeznamUčencev[],18,FALSE),\"\")","v":""},{"$nulls":31},{"$f":"COUNTIF(PrisotnostJanuarja[[#This Row],[1]:[31]],Koda1)","v":0},{"$f":"COUNTIF(PrisotnostJanuarja[[#This Row],[1]:[31]],Koda2)","v":0},{"$f":"COUNTIF(PrisotnostJanuarja[[#This Row],[1]:[31]],Koda3)","v":0},{"$f":"COUNTIF(PrisotnostJanuarja[[#This Row],[1]:[31]],Koda4)","v":0},{"$f":"SUM(PrisotnostJanuarja[[#This Row],[E]:[N]])","v":0}]
[null,null,{"$f":"IFERROR(VLOOKUP(PrisotnostJanuarja[[#This Row],[ID študenta]],SeznamUčencev[],18,FALSE),\"\")","v":""},{"$nulls":31},{"$f":"COUNTIF(PrisotnostJanuarja[[#This Row],[1]:[31]],Koda1)","v":0},{"$f":"COUNTIF(PrisotnostJanuarja[[#This Row],[1]:[31]],Koda2)","v":0},{"$f":"COUNTIF(PrisotnostJanuarja[[#This Row],[1]:[31]],Koda3)","v":0},{"$f":"COUNTIF(PrisotnostJanuarja[[#This Row],[1]:[31]],Koda4)","v":0},{"$f":"SUM(PrisotnostJanuarja[[#This Row],[E]:[N]])","v":0}]
[null,null,{"$f":"IFERROR(VLOOKUP(PrisotnostJanuarja[[#This Row],[ID študenta]],SeznamUčencev[],18,FALSE),\"\")","v":""},{"$nulls":31},{"$f":"COUNTIF(PrisotnostJanuarja[[#This Row],[1]:[31]],Koda1)","v":0},{"$f":"COUNTIF(PrisotnostJanuarja[[#This Row],[1]:[31]],Koda2)","v":0},{"$f":"COUNTIF(PrisotnostJanuarja[[#This Row],[1]:[31]],Koda3)","v":0},{"$f":"COUNTIF(PrisotnostJanuarja[[#This Row],[1]:[31]],Koda4)","v":0},{"$f":"SUM(PrisotnostJanuarja[[#This Row],[E]:[N]])","v":0}]
[null,null,{"$f":"IFERROR(VLOOKUP(PrisotnostJanuarja[[#This Row],[ID študenta]],SeznamUčencev[],18,FALSE),\"\")","v":""},{"$nulls":31},{"$f":"COUNTIF(PrisotnostJanuarja[[#This Row],[1]:[31]],Koda1)","v":0},{"$f":"COUNTIF(PrisotnostJanuarja[[#This Row],[1]:[31]],Koda2)","v":0},{"$f":"COUNTIF(PrisotnostJanuarja[[#This Row],[1]:[31]],Koda3)","v":0},{"$f":"COUNTIF(PrisotnostJanuarja[[#This Row],[1]:[31]],Koda4)","v":0},{"$f":"SUM(PrisotnostJanuarja[[#This Row],[E]:[N]])","v":0}]
[null,null,{"$f":"IFERROR(VLOOKUP(PrisotnostJanuarja[[#This Row],[ID študenta]],SeznamUčencev[],18,FALSE),\"\")","v":""},{"$nulls":31},{"$f":"COUNTIF(PrisotnostJanuarja[[#This Row],[1]:[31]],Koda1)","v":0},{"$f":"COUNTIF(PrisotnostJanuarja[[#This Row],[1]:[31]],Koda2)","v":0},{"$f":"COUNTIF(PrisotnostJanuarja[[#This Row],[1]:[31]],Koda3)","v":0},{"$f":"COUNTIF(PrisotnostJanuarja[[#This Row],[1]:[31]],Koda4)","v":0},{"$f":"SUM(PrisotnostJanuarja[[#This Row],[E]:[N]])","v":0}]
[null,null,"Skupno odsoten dni",{"$f":"COUNTIF(PrisotnostJanuarja[1],\"N\")+COUNTIF(PrisotnostJanuarja[1],\"E\")","v":0},{"$f":"COUNTIF(PrisotnostJanuarja[2],\"N\")+COUNTIF(PrisotnostJanuarja[2],\"E\")","v":0},{"$f":"COUNTIF(PrisotnostJanuarja[3],\"N\")+COUNTIF(PrisotnostJanuarja[3],\"E\")","v":0},{"$f":"COUNTIF(PrisotnostJanuarja[4],\"N\")+COUNTIF(PrisotnostJanuarja[4],\"E\")","v":0},{"$f":"COUNTIF(PrisotnostJanuarja[5],\"N\")+COUNTIF(PrisotnostJanuarja[5],\"E\")","v":0},{"$f":"COUNTIF(PrisotnostJanuarja[6],\"N\")+COUNTIF(PrisotnostJanuarja[6],\"E\")","v":0},{"$f":"COUNTIF(PrisotnostJanuarja[7],\"N\")+COUNTIF(PrisotnostJanuarja[7],\"E\")","v":0},{"$f":"COUNTIF(PrisotnostJanuarja[8],\"N\")+COUNTIF(PrisotnostJanuarja[8],\"E\")","v":0},{"$f":"COUNTIF(PrisotnostJanuarja[9],\"N\")+COUNTIF(PrisotnostJanuarja[9],\"E\")","v":0},{"$f":"COUNTIF(PrisotnostJanuarja[10],\"N\")+COUNTIF(PrisotnostJanuarja[10],\"E\")","v":0},{"$f":"COUNTIF(PrisotnostJanuarja[11],\"N\")+COUNTIF(PrisotnostJanuarja[11],\"E\")","v":0},{"$f":"COUNTIF(PrisotnostJanuarja[12],\"N\")+COUNTIF(PrisotnostJanuarja[12],\"E\")","v":0},{"$f":"COUNTIF(PrisotnostJanuarja[13],\"N\")+COUNTIF(PrisotnostJanuarja[13],\"E\")","v":0},{"$f":"COUNTIF(PrisotnostJanuarja[14],\"N\")+COUNTIF(PrisotnostJanuarja[14],\"E\")","v":0},{"$f":"COUNTIF(PrisotnostJanuarja[15],\"N\")+COUNTIF(PrisotnostJanuarja[15],\"E\")","v":0},{"$f":"COUNTIF(PrisotnostJanuarja[16],\"N\")+COUNTIF(PrisotnostJanuarja[16],\"E\")","v":0},{"$f":"COUNTIF(PrisotnostJanuarja[17],\"N\")+COUNTIF(PrisotnostJanuarja[17],\"E\")","v":0},{"$f":"COUNTIF(PrisotnostJanuarja[18],\"N\")+COUNTIF(PrisotnostJanuarja[18],\"E\")","v":0},{"$f":"COUNTIF(PrisotnostJanuarja[19],\"N\")+COUNTIF(PrisotnostJanuarja[19],\"E\")","v":0},{"$f":"COUNTIF(PrisotnostJanuarja[20],\"N\")+COUNTIF(PrisotnostJanuarja[20],\"E\")","v":0},{"$f":"COUNTIF(PrisotnostJanuarja[21],\"N\")+COUNTIF(PrisotnostJanuarja[21],\"E\")","v":0},{"$f":"COUNTIF(PrisotnostJanuarja[22],\"N\")+COUNTIF(PrisotnostJanuarja[22],\"E\")","v":0},{"$f":"COUNTIF(PrisotnostJanuarja[23],\"N\")+COUNTIF(PrisotnostJanuarja[23],\"E\")","v":0},{"$f":"COUNTIF(PrisotnostJanuarja[24],\"N\")+COUNTIF(PrisotnostJanuarja[24],\"E\")","v":0},{"$f":"COUNTIF(PrisotnostJanuarja[25],\"N\")+COUNTIF(PrisotnostJanuarja[25],\"E\")","v":0},{"$f":"COUNTIF(PrisotnostJanuarja[26],\"N\")+COUNTIF(PrisotnostJanuarja[26],\"E\")","v":0},{"$f":"COUNTIF(PrisotnostJanuarja[27],\"N\")+COUNTIF(PrisotnostJanuarja[27],\"E\")","v":0},{"$f":"COUNTIF(PrisotnostJanuarja[28],\"N\")+COUNTIF(PrisotnostJanuarja[28],\"E\")","v":0},{"$f":"COUNTIF(PrisotnostJanuarja[29],\"N\")+COUNTIF(PrisotnostJanuarja[29],\"E\")","v":0},null,null,{"$f":"SUBTOTAL(109,PrisotnostJanuarja[Po])","v":0},{"$f":"SUBTOTAL(109,PrisotnostJanuarja[N])","v":0},{"$f":"SUBTOTAL(109,PrisotnostJanuarja[N])","v":0},{"$f":"SUBTOTAL(109,PrisotnostJanuarja[P])","v":0},{"$f":"SUBTOTAL(109,PrisotnostJanuarja[Dni odsoten])","v":0}]

{"sheet":"Februar","index":8,"n_rows":12,"n_cols":39,"rows_kept":12,"merged":[[4,34,4,38]]}
["EVIDENCA PRISOTNOSTI ŠTUDENTOV",{"$nulls":36},"Začetek študijskega leta",{"$f":"KoledarskoLeto","v":2012}]
[]
[null,null,{"$f":"BesediloBarvnegaKljuča","v":"BARVNI KLJUČ"},{"$f":"Koda1","v":"Po"},{"$f":"BesediloKode1","v":"Pozen"},null,null,{"$f":"Koda2","v":"E"},{"$f":"BesediloKode2","v":"Opravičen"},null,null,{"$f":"Koda3","v":"N"},{"$f":"BesediloKode3","v":"Neopravičen"},null,null,{"$f":"Koda4","v":"P"},{"$f":"BesediloKode4","v":"Prisoten"},null,null,{"$f":"Koda5","v":"Ni"},{"$f":"BesediloKode5","v":"Ni pouka"}]
[]
[null,{"$f":"DATE(KoledarskoLeto+1,2,1)","v":"2013-02-01"},null,{"$f":"TEXT(WEEKDAY(DATE(KoledarskoLeto+1,2,1),1),\"aaa\")","v":"pet"},{"$f":"TEXT(WEEKDAY(DATE(KoledarskoLeto+1,2,2),1),\"aaa\")","v":"sob"},{"$f":"TEXT(WEEKDAY(DATE(KoledarskoLeto+1,2,3),1),\"aaa\")","v":"ned"},{"$f":"TEXT(WEEKDAY(DATE(KoledarskoLeto+1,2,4),1),\"aaa\")","v":"pon"},{"$f":"TEXT(WEEKDAY(DATE(KoledarskoLeto+1,2,5),1),\"aaa\")","v":"tor"},{"$f":"TEXT(WEEKDAY(DATE(KoledarskoLeto+1,2,6),1),\"aaa\")","v":"sre"},{"$f":"TEXT(WEEKDAY(DATE(KoledarskoLeto+1,2,7),1),\"aaa\")","v":"čet"},{"$f":"TEXT(WEEKDAY(DATE(KoledarskoLeto+1,2,8),1),\"aaa\")","v":"pet"},{"$f":"TEXT(WEEKDAY(DATE(KoledarskoLeto+1,2,9),1),\"aaa\")","v":"sob"},{"$f":"TEXT(WEEKDAY(DATE(KoledarskoLeto+1,2,10),1),\"aaa\")","v":"ned"},{"$f":"TEXT(WEEKDAY(DATE(KoledarskoLeto+1,2,11),1),\"aaa\")","v":"pon"},{"$f":"TEXT(WEEKDAY(DATE(KoledarskoLeto+1,2,12),1),\"aaa\")","v":"tor"},{"$f":"TEXT(WEEKDAY(DATE(KoledarskoLeto+1,2,13),1),\"aaa\")","v":"sre"},{"$f":"TEXT(WEEKDAY(DATE(KoledarskoLeto+1,2,14),1),\"aaa\")","v":"čet"},{"$f":"TEXT(WEEKDAY(DATE(KoledarskoLeto+1,2,15),1),\"aaa\")","v":"pet"},{"$f":"TEXT(WEEKDAY(DATE(KoledarskoLeto+1,2,16),1),\"aaa\")","v":"sob"},{"$f":"TEXT(WEEKDAY(DATE(KoledarskoLeto+1,2,17),1),\"aaa\")","v":"ned"},{"$f":"TEXT(WEEKDAY(DATE(KoledarskoLeto+1,2,18),1),\"aaa\")","v":"pon"},{"$f":"TEXT(WEEKDAY(DATE(KoledarskoLeto+1,2,19),1),\"aaa\")","v":"tor"},{"$f":"TEXT(WEEKDAY(DATE(KoledarskoLeto+1,2,20),1),\"aaa\")","v":"sre"},{"$f":"TEXT(WEEKDAY(DATE(KoledarskoLeto+1,2,21),1),\"aaa\")","v":"čet"},{"$f":"TEXT(WEEKDAY(DATE(KoledarskoLeto+1,2,22),1),\"aaa\")","v":"pet"},{"$f":"TEXT(WEEKDAY(DATE(KoledarskoLeto+1,2,23),1),\"aaa\")","v":"sob"},{"$f":"TEXT(WEEKDAY(DATE(KoledarskoLeto+1,2,24),1),\"aaa\")","v":"ned"},{"$f":"TEXT(WEEKDAY(DATE(KoledarskoLeto+1,2,25),1),\"aaa\")","v":"pon"},{"$f":"TEXT(WEEKDAY(DATE(KoledarskoLeto+1,2,26),1),\"aaa\")","v":"tor"},{"$f":"TEXT(WEEKDAY(DATE(KoledarskoLeto+1,2,27),1),\"aaa\")","v":"sre"},{"$f":"TEXT(WEEKDAY(DATE(KoledarskoLeto+1,2,28),1),\"aaa\")","v":"čet"},{"$f":"TEXT(WEEKDAY(DATE(KoledarskoLeto+1,2,29),1),\"aaa\")","v":"pet"},null,null,"Skupaj"]
[null,"ID študenta","Ime študenta","1","2","3","4","5","6","7","8","9","10","11","12","13","14","15","16","17","18","19","20","21","22","23","24","25","26","27","28","29","30","31","Po","E","N","P","Dni odsoten"]
[null,null,{"$f":"IFERROR(VLOOKUP(PrisotnostFebruarja[[#This Row],[ID študenta]],SeznamUčencev[],18,FALSE),\"\")","v":""},{"$nulls":31},{"$f":"COUNTIF(PrisotnostFebruarja[[#This Row],[1]:[31]],Koda1)","v":0},{"$f":"COUNTIF(PrisotnostFebruarja[[#This Row],[1]:[31]],Koda2)","v":0},{"$f":"COUNTIF(PrisotnostFebruarja[[#This Row],[1]:[31]],Koda3)","v":0},{"$f":"COUNTIF(PrisotnostFebruarja[[#This Row],[1]:[31]],Koda4)","v":0},{"$f":"SUM(PrisotnostFebruarja[[#This Row],[E]:[N]])","v":0}]
[null,null,{"$f":"IFERROR(VLOOKUP(PrisotnostFebruarja[[#This Row],[ID študenta]],SeznamUčencev[],18,FALSE),\"\")","v":""},{"$nulls":31},{"$f":"COUNTIF(PrisotnostFebruarja[[#This Row],[1]:[31]],Koda1)","v":0},{"$f":"COUNTIF(PrisotnostFebruarja[[#This Row],[1]:[31]],Koda2)","v":0},{"$f":"COUNTIF(PrisotnostFebruarja[[#This Row],[1]:[31]],Koda3)","v":0},{"$f":"COUNTIF(PrisotnostFebruarja[[#This Row],[1]:[31]],Koda4)","v":0},{"$f":"SUM(PrisotnostFebruarja[[#This Row],[E]:[N]])","v":0}]
[null,null,{"$f":"IFERROR(VLOOKUP(PrisotnostFebruarja[[#This Row],[ID študenta]],SeznamUčencev[],18,FALSE),\"\")","v":""},{"$nulls":31},{"$f":"COUNTIF(PrisotnostFebruarja[[#This Row],[1]:[31]],Koda1)","v":0},{"$f":"COUNTIF(PrisotnostFebruarja[[#This Row],[1]:[31]],Koda2)","v":0},{"$f":"COUNTIF(PrisotnostFebruarja[[#This Row],[1]:[31]],Koda3)","v":0},{"$f":"COUNTIF(PrisotnostFebruarja[[#This Row],[1]:[31]],Koda4)","v":0},{"$f":"SUM(PrisotnostFebruarja[[#This Row],[E]:[N]])","v":0}]
[null,null,{"$f":"IFERROR(VLOOKUP(PrisotnostFebruarja[[#This Row],[ID študenta]],SeznamUčencev[],18,FALSE),\"\")","v":""},{"$nulls":31},{"$f":"COUNTIF(PrisotnostFebruarja[[#This Row],[1]:[31]],Koda1)","v":0},{"$f":"COUNTIF(PrisotnostFebruarja[[#This Row],[1]:[31]],Koda2)","v":0},{"$f":"COUNTIF(PrisotnostFebruarja[[#This Row],[1]:[31]],Koda3)","v":0},{"$f":"COUNTIF(PrisotnostFebruarja[[#This Row],[1]:[31]],Koda4)","v":0},{"$f":"SUM(PrisotnostFebruarja[[#This Row],[E]:[N]])","v":0}]
[null,null,{"$f":"IFERROR(VLOOKUP(PrisotnostFebruarja[[#This Row],[ID študenta]],SeznamUčencev[],18,FALSE),\"\")","v":""},{"$nulls":31},{"$f":"COUNTIF(PrisotnostFebruarja[[#This Row],[1]:[31]],Koda1)","v":0},{"$f":"COUNTIF(PrisotnostFebruarja[[#This Row],[1]:[31]],Koda2)","v":0},{"$f":"COUNTIF(PrisotnostFebruarja[[#This Row],[1]:[31]],Koda3)","v":0},{"$f":"COUNTIF(PrisotnostFebruarja[[#This Row],[1]:[31]],Koda4)","v":0},{"$f":"SUM(PrisotnostFebruarja[[#This Row],[E]:[N]])","v":0}]
[null,null,"Skupno odsoten dni",{"$f":"COUNTIF(PrisotnostFebruarja[1],\"N\")+COUNTIF(PrisotnostFebruarja[1],\"E\")","v":0},{"$f":"COUNTIF(PrisotnostFebruarja[2],\"N\")+COUNTIF(PrisotnostFebruarja[2],\"E\")","v":0},{"$f":"COUNTIF(PrisotnostFebruarja[3],\"N\")+COUNTIF(PrisotnostFebruarja[3],\"E\")","v":0},{"$f":"COUNTIF(PrisotnostFebruarja[4],\"N\")+COUNTIF(PrisotnostFebruarja[4],\"E\")","v":0},{"$f":"COUNTIF(PrisotnostFebruarja[5],\"N\")+COUNTIF(PrisotnostFebruarja[5],\"E\")","v":0},{"$f":"COUNTIF(PrisotnostFebruarja[6],\"N\")+COUNTIF(PrisotnostFebruarja[6],\"E\")","v":0},{"$f":"COUNTIF(PrisotnostFebruarja[7],\"N\")+COUNTIF(PrisotnostFebruarja[7],\"E\")","v":0},{"$f":"COUNTIF(PrisotnostFebruarja[8],\"N\")+COUNTIF(PrisotnostFebruarja[8],\"E\")","v":0},{"$f":"COUNTIF(PrisotnostFebruarja[9],\"N\")+COUNTIF(PrisotnostFebruarja[9],\"E\")","v":0},{"$f":"COUNTIF(PrisotnostFebruarja[10],\"N\")+COUNTIF(PrisotnostFebruarja[10],\"E\")","v":0},{"$f":"COUNTIF(PrisotnostFebruarja[11],\"N\")+COUNTIF(PrisotnostFebruarja[11],\"E\")","v":0},{"$f":"COUNTIF(PrisotnostFebruarja[12],\"N\")+COUNTIF(PrisotnostFebruarja[12],\"E\")","v":0},{"$f":"COUNTIF(PrisotnostFebruarja[13],\"N\")+COUNTIF(PrisotnostFebruarja[13],\"E\")","v":0},{"$f":"COUNTIF(PrisotnostFebruarja[14],\"N\")+COUNTIF(PrisotnostFebruarja[14],\"E\")","v":0},{"$f":"COUNTIF(PrisotnostFebruarja[15],\"N\")+COUNTIF(PrisotnostFebruarja[15],\"E\")","v":0},{"$f":"COUNTIF(PrisotnostFebruarja[16],\"N\")+COUNTIF(PrisotnostFebruarja[16],\"E\")","v":0},{"$f":"COUNTIF(PrisotnostFebruarja[17],\"N\")+COUNTIF(PrisotnostFebruarja[17],\"E\")","v":0},{"$f":"COUNTIF(PrisotnostFebruarja[18],\"N\")+COUNTIF(PrisotnostFebruarja[18],\"E\")","v":0},{"$f":"COUNTIF(PrisotnostFebruarja[19],\"N\")+COUNTIF(PrisotnostFebruarja[19],\"E\")","v":0},{"$f":"COUNTIF(PrisotnostFebruarja[20],\"N\")+COUNTIF(PrisotnostFebruarja[20],\"E\")","v":0},{"$f":"COUNTIF(PrisotnostFebruarja[21],\"N\")+COUNTIF(PrisotnostFebruarja[21],\"E\")","v":0},{"$f":"COUNTIF(PrisotnostFebruarja[22],\"N\")+COUNTIF(PrisotnostFebruarja[22],\"E\")","v":0},{"$f":"COUNTIF(PrisotnostFebruarja[23],\"N\")+COUNTIF(PrisotnostFebruarja[23],\"E\")","v":0},{"$f":"COUNTIF(PrisotnostFebruarja[24],\"N\")+COUNTIF(PrisotnostFebruarja[24],\"E\")","v":0},{"$f":"COUNTIF(PrisotnostFebruarja[25],\"N\")+COUNTIF(PrisotnostFebruarja[25],\"E\")","v":0},{"$f":"COUNTIF(PrisotnostFebruarja[26],\"N\")+COUNTIF(PrisotnostFebruarja[26],\"E\")","v":0},{"$f":"COUNTIF(PrisotnostFebruarja[27],\"N\")+COUNTIF(PrisotnostFebruarja[27],\"E\")","v":0},{"$f":"COUNTIF(PrisotnostFebruarja[28],\"N\")+COUNTIF(PrisotnostFebruarja[28],\"E\")","v":0},{"$f":"COUNTIF(PrisotnostFebruarja[29],\"N\")+COUNTIF(PrisotnostFebruarja[29],\"E\")","v":0},null,null,{"$f":"SUBTOTAL(109,PrisotnostFebruarja[Po])","v":0},{"$f":"SUBTOTAL(109,PrisotnostFebruarja[E])","v":0},{"$f":"SUBTOTAL(109,PrisotnostFebruarja[N])","v":0},{"$f":"SUBTOTAL(109,PrisotnostFebruarja[P])","v":0},{"$f":"SUBTOTAL(109,PrisotnostFebruarja[Dni odsoten])","v":0}]

{"sheet":"Marec","index":9,"n_rows":12,"n_cols":39,"rows_kept":12,"merged":[[4,34,4,38]]}
["EVIDENCA PRISOTNOSTI ŠTUDENTOV",{"$nulls":36},"Začetek študijskega leta",{"$f":"KoledarskoLeto","v":2012}]
[]
[null,null,{"$f":"BesediloBarvnegaKljuča","v":"BARVNI KLJUČ"},{"$f":"Koda1","v":"Po"},{"$f":"BesediloKode1","v":"Pozen"},null,null,{"$f":"Koda2","v":"E"},{"$f":"BesediloKode2","v":"Opravičen"},null,null,{"$f":"Koda3","v":"N"},{"$f":"BesediloKode3","v":"Neopravičen"},null,null,{"$f":"Koda4","v":"P"},{"$f":"BesediloKode4","v":"Prisoten"},null,null,{"$f":"Koda5","v":"Ni"},{"$f":"BesediloKode5","v":"Ni pouka"}]
[]
[null,{"$f":"DATE(KoledarskoLeto+1,3,1)","v":"2013-03-01"},null,{"$f":"TEXT(WEEKDAY(DATE(KoledarskoLeto+1,3,1),1),\"aaa\")","v":"pet"},{"$f":"TEXT(WEEKDAY(DATE(KoledarskoLeto+1,3,2),1),\"aaa\")","v":"sob"},{"$f":"TEXT(WEEKDAY(DATE(KoledarskoLeto+1,3,3),1),\"aaa\")","v":"ned"},{"$f":"TEXT(WEEKDAY(DATE(KoledarskoLeto+1,3,4),1),\"aaa\")","v":"pon"},{"$f":"TEXT(WEEKDAY(DATE(KoledarskoLeto+1,3,5),1),\"aaa\")","v":"tor"},{"$f":"TEXT(WEEKDAY(DATE(KoledarskoLeto+1,3,6),1),\"aaa\")","v":"sre"},{"$f":"TEXT(WEEKDAY(DATE(KoledarskoLeto+1,3,7),1),\"aaa\")","v":"čet"},{"$f":"TEXT(WEEKDAY(DATE(KoledarskoLeto+1,3,8),1),\"aaa\")","v":"pet"},{"$f":"TEXT(WEEKDAY(DATE(KoledarskoLeto+1,3,9),1),\"aaa\")","v":"sob"},{"$f":"TEXT(WEEKDAY(DATE(KoledarskoLeto+1,3,10),1),\"aaa\")","v":"ned"},{"$f":"TEXT(WEEKDAY(DATE(KoledarskoLeto+1,3,11),1),\"aaa\")","v":"pon"},{"$f":"TEXT(WEEKDAY(DATE(KoledarskoLeto+1,3,12),1),\"aaa\")","v":"tor"},{"$f":"TEXT(WEEKDAY(DATE(KoledarskoLeto+1,3,13),1),\"aaa\")","v":"sre"},{"$f":"TEXT(WEEKDAY(DATE(KoledarskoLeto+1,3,14),1),\"aaa\")","v":"čet"},{"$f":"TEXT(WEEKDAY(DATE(KoledarskoLeto+1,3,15),1),\"aaa\")","v":"pet"},{"$f":"TEXT(WEEKDAY(DATE(KoledarskoLeto+1,3,16),1),\"aaa\")","v":"sob"},{"$f":"TEXT(WEEKDAY(DATE(KoledarskoLeto+1,3,17),1),\"aaa\")","v":"ned"},{"$f":"TEXT(WEEKDAY(DATE(KoledarskoLeto+1,3,18),1),\"aaa\")","v":"pon"},{"$f":"TEXT(WEEKDAY(DATE(KoledarskoLeto+1,3,19),1),\"aaa\")","v":"tor"},{"$f":"TEXT(WEEKDAY(DATE(KoledarskoLeto+1,3,20),1),\"aaa\")","v":"sre"},{"$f":"TEXT(WEEKDAY(DATE(KoledarskoLeto+1,3,21),1),\"aaa\")","v":"čet"},{"$f":"TEXT(WEEKDAY(DATE(KoledarskoLeto+1,3,22),1),\"aaa\")","v":"pet"},{"$f":"TEXT(WEEKDAY(DATE(KoledarskoLeto+1,3,23),1),\"aaa\")","v":"sob"},{"$f":"TEXT(WEEKDAY(DATE(KoledarskoLeto+1,3,24),1),\"aaa\")","v":"ned"},{"$f":"TEXT(WEEKDAY(DATE(KoledarskoLeto+1,3,25),1),\"aaa\")","v":"pon"},{"$f":"TEXT(WEEKDAY(DATE(KoledarskoLeto+1,3,26),1),\"aaa\")","v":"tor"},{"$f":"TEXT(WEEKDAY(DATE(KoledarskoLeto+1,3,27),1),\"aaa\")","v":"sre"},{"$f":"TEXT(WEEKDAY(DATE(KoledarskoLeto+1,3,28),1),\"aaa\")","v":"čet"},{"$f":"TEXT(WEEKDAY(DATE(KoledarskoLeto+1,3,29),1),\"aaa\")","v":"pet"},{"$f":"TEXT(WEEKDAY(DATE(KoledarskoLeto+1,3,30),1),\"aaa\")","v":"sob"},{"$f":"TEXT(WEEKDAY(DATE(KoledarskoLeto+1,3,31),1),\"aaa\")","v":"ned"},"Skupaj"]
[null,"ID študenta","Ime študenta","1","2","3","4","5","6","7","8","9","10","11","12","13","14","15","16","17","18","19","20","21","22","23","24","25","26","27","28","29","30","31","Po","E","N","P","Dni odsoten"]
[null,null,{"$f":"IFERROR(VLOOKUP(PrisotnostMarca[[#This Row],[ID študenta]],SeznamUčencev[],18,FALSE),\"\")","v":""},{"$nulls":31},{"$f":"COUNTIF(PrisotnostMarca[[#This Row],[1]:[31]],Koda1)","v":0},{"$f":"COUNTIF(PrisotnostMarca[[#This Row],[1]:[31]],Koda2)","v":0},{"$f":"COUNTIF(PrisotnostMarca[[#This Row],[1]:[31]],Koda3)","v":0},{"$f":"COUNTIF(PrisotnostMarca[[#This Row],[1]:[31]],Koda4)","v":0},{"$f":"SUM(PrisotnostMarca[[#This Row],[E]:[N]])","v":0}]
[null,null,{"$f":"IFERROR(VLOOKUP(PrisotnostMarca[[#This Row],[ID študenta]],SeznamUčencev[],18,FALSE),\"\")","v":""},{"$nulls":31},{"$f":"COUNTIF(PrisotnostMarca[[#This Row],[1]:[31]],Koda1)","v":0},{"$f":"COUNTIF(PrisotnostMarca[[#This Row],[1]:[31]],Koda2)","v":0},{"$f":"COUNTIF(PrisotnostMarca[[#This Row],[1]:[31]],Koda3)","v":0},{"$f":"COUNTIF(PrisotnostMarca[[#This Row],[1]:[31]],Koda4)","v":0},{"$f":"SUM(PrisotnostMarca[[#This Row],[E]:[N]])","v":0}]
[null,null,{"$f":"IFERROR(VLOOKUP(PrisotnostMarca[[#This Row],[ID študenta]],SeznamUčencev[],18,FALSE),\"\")","v":""},{"$nulls":31},{"$f":"COUNTIF(PrisotnostMarca[[#This Row],[1]:[31]],Koda1)","v":0},{"$f":"COUNTIF(PrisotnostMarca[[#This Row],[1]:[31]],Koda2)","v":0},{"$f":"COUNTIF(PrisotnostMarca[[#This Row],[1]:[31]],Koda3)","v":0},{"$f":"COUNTIF(PrisotnostMarca[[#This Row],[1]:[31]],Koda4)","v":0},{"$f":"SUM(PrisotnostMarca[[#This Row],[E]:[N]])","v":0}]
[null,null,{"$f":"IFERROR(VLOOKUP(PrisotnostMarca[[#This Row],[ID študenta]],SeznamUčencev[],18,FALSE),\"\")","v":""},{"$nulls":31},{"$f":"COUNTIF(PrisotnostMarca[[#This Row],[1]:[31]],Koda1)","v":0},{"$f":"COUNTIF(PrisotnostMarca[[#This Row],[1]:[31]],Koda2)","v":0},{"$f":"COUNTIF(PrisotnostMarca[[#This Row],[1]:[31]],Koda3)","v":0},{"$f":"COUNTIF(PrisotnostMarca[[#This Row],[1]:[31]],Koda4)","v":0},{"$f":"SUM(PrisotnostMarca[[#This Row],[E]:[N]])","v":0}]
[null,null,{"$f":"IFERROR(VLOOKUP(PrisotnostMarca[[#This Row],[ID študenta]],SeznamUčencev[],18,FALSE),\"\")","v":""},{"$nulls":31},{"$f":"COUNTIF(PrisotnostMarca[[#This Row],[1]:[31]],Koda1)","v":0},{"$f":"COUNTIF(PrisotnostMarca[[#This Row],[1]:[31]],Koda2)","v":0},{"$f":"COUNTIF(PrisotnostMarca[[#This Row],[1]:[31]],Koda3)","v":0},{"$f":"COUNTIF(PrisotnostMarca[[#This Row],[1]:[31]],Koda4)","v":0},{"$f":"SUM(PrisotnostMarca[[#This Row],[E]:[N]])","v":0}]
[null,null,"Skupno odsoten dni",{"$f":"COUNTIF(PrisotnostMarca[1],\"N\")+COUNTIF(PrisotnostMarca[1],\"E\")","v":0},{"$f":"COUNTIF(PrisotnostMarca[2],\"N\")+COUNTIF(PrisotnostMarca[2],\"E\")","v":0},{"$f":"COUNTIF(PrisotnostMarca[3],\"N\")+COUNTIF(PrisotnostMarca[3],\"E\")","v":0},{"$f":"COUNTIF(PrisotnostMarca[4],\"N\")+COUNTIF(PrisotnostMarca[4],\"E\")","v":0},{"$f":"COUNTIF(PrisotnostMarca[5],\"N\")+COUNTIF(PrisotnostMarca[5],\"E\")","v":0},{"$f":"COUNTIF(PrisotnostMarca[6],\"N\")+COUNTIF(PrisotnostMarca[6],\"E\")","v":0},{"$f":"COUNTIF(PrisotnostMarca[7],\"N\")+COUNTIF(PrisotnostMarca[7],\"E\")","v":0},{"$f":"COUNTIF(PrisotnostMarca[8],\"N\")+COUNTIF(PrisotnostMarca[8],\"E\")","v":0},{"$f":"COUNTIF(PrisotnostMarca[9],\"N\")+COUNTIF(PrisotnostMarca[9],\"E\")","v":0},{"$f":"COUNTIF(PrisotnostMarca[10],\"N\")+COUNTIF(PrisotnostMarca[10],\"E\")","v":0},{"$f":"COUNTIF(PrisotnostMarca[11],\"N\")+COUNTIF(PrisotnostMarca[11],\"E\")","v":0},{"$f":"COUNTIF(PrisotnostMarca[12],\"N\")+COUNTIF(PrisotnostMarca[12],\"E\")","v":0},{"$f":"COUNTIF(PrisotnostMarca[13],\"N\")+COUNTIF(PrisotnostMarca[13],\"E\")","v":0},{"$f":"COUNTIF(PrisotnostMarca[14],\"N\")+COUNTIF(PrisotnostMarca[14],\"E\")","v":0},{"$f":"COUNTIF(PrisotnostMarca[15],\"N\")+COUNTIF(PrisotnostMarca[15],\"E\")","v":0},{"$f":"COUNTIF(PrisotnostMarca[16],\"N\")+COUNTIF(PrisotnostMarca[16],\"E\")","v":0},{"$f":"COUNTIF(PrisotnostMarca[17],\"N\")+COUNTIF(PrisotnostMarca[17],\"E\")","v":0},{"$f":"COUNTIF(PrisotnostMarca[18],\"N\")+COUNTIF(PrisotnostMarca[18],\"E\")","v":0},{"$f":"COUNTIF(PrisotnostMarca[19],\"N\")+COUNTIF(PrisotnostMarca[19],\"E\")","v":0},{"$f":"COUNTIF(PrisotnostMarca[20],\"N\")+COUNTIF(PrisotnostMarca[20],\"E\")","v":0},{"$f":"COUNTIF(PrisotnostMarca[21],\"N\")+COUNTIF(PrisotnostMarca[21],\"E\")","v":0},{"$f":"COUNTIF(PrisotnostMarca[22],\"N\")+COUNTIF(PrisotnostMarca[22],\"E\")","v":0},{"$f":"COUNTIF(PrisotnostMarca[23],\"N\")+COUNTIF(PrisotnostMarca[23],\"E\")","v":0},{"$f":"COUNTIF(PrisotnostMarca[24],\"N\")+COUNTIF(PrisotnostMarca[24],\"E\")","v":0},{"$f":"COUNTIF(PrisotnostMarca[25],\"N\")+COUNTIF(PrisotnostMarca[25],\"E\")","v":0},{"$f":"COUNTIF(PrisotnostMarca[26],\"N\")+COUNTIF(PrisotnostMarca[26],\"E\")","v":0},{"$f":"COUNTIF(PrisotnostMarca[27],\"N\")+COUNTIF(PrisotnostMarca[27],\"E\")","v":0},{"$f":"COUNTIF(PrisotnostMarca[28],\"N\")+COUNTIF(PrisotnostMarca[28],\"E\")","v":0},{"$f":"COUNTIF(PrisotnostMarca[29],\"N\")+COUNTIF(PrisotnostMarca[29],\"E\")","v":0},null,null,{"$f":"SUBTOTAL(109,PrisotnostMarca[Po])","v":0},{"$f":"SUBTOTAL(109,PrisotnostMarca[E])","v":0},{"$f":"SUBTOTAL(109,PrisotnostMarca[N])","v":0},{"$f":"SUBTOTAL(109,PrisotnostMarca[P])","v":0},{"$f":"SUBTOTAL(109,PrisotnostMarca[Dni odsoten])","v":0}]

{"sheet":"April","index":10,"n_rows":12,"n_cols":39,"rows_kept":12,"merged":[[4,34,4,38]]}
["EVIDENCA PRISOTNOSTI ŠTUDENTOV",{"$nulls":36},"Začetek študijskega leta",{"$f":"KoledarskoLeto","v":2012}]
[]
[null,null,{"$f":"BesediloBarvnegaKljuča","v":"BARVNI KLJUČ"},{"$f":"Koda1","v":"Po"},{"$f":"BesediloKode1","v":"Pozen"},null,null,{"$f":"Koda2","v":"E"},{"$f":"BesediloKode2","v":"Opravičen"},null,null,{"$f":"Koda3","v":"N"},{"$f":"BesediloKode3","v":"Neopravičen"},null,null,{"$f":"Koda4","v":"P"},{"$f":"BesediloKode4","v":"Prisoten"},null,null,{"$f":"Koda5","v":"Ni"},{"$f":"BesediloKode5","v":"Ni pouka"}]
[]
[null,{"$f":"DATE(KoledarskoLeto+1,4,1)","v":"2013-04-01"},null,{"$f":"TEXT(WEEKDAY(DATE(KoledarskoLeto+1,4,1),1),\"aaa\")","v":"pon"},{"$f":"TEXT(WEEKDAY(DATE(KoledarskoLeto+1,4,2),1),\"aaa\")","v":"tor"},{"$f":"TEXT(WEEKDAY(DATE(KoledarskoLeto+1,4,3),1),\"aaa\")","v":"sre"},{"$f":"TEXT(WEEKDAY(DATE(KoledarskoLeto+1,4,4),1),\"aaa\")","v":"čet"},{"$f":"TEXT(WEEKDAY(DATE(KoledarskoLeto+1,4,5),1),\"aaa\")","v":"pet"},{"$f":"TEXT(WEEKDAY(DATE(KoledarskoLeto+1,4,6),1),\"aaa\")","v":"sob"},{"$f":"TEXT(WEEKDAY(DATE(KoledarskoLeto+1,4,7),1),\"aaa\")","v":"ned"},{"$f":"TEXT(WEEKDAY(DATE(KoledarskoLeto+1,4,8),1),\"aaa\")","v":"pon"},{"$f":"TEXT(WEEKDAY(DATE(KoledarskoLeto+1,4,9),1),\"aaa\")","v":"tor"},{"$f":"TEXT(WEEKDAY(DATE(KoledarskoLeto+1,4,10),1),\"aaa\")","v":"sre"},{"$f":"TEXT(WEEKDAY(DATE(KoledarskoLeto+1,4,11),1),\"aaa\")","v":"čet"},{"$f":"TEXT(WEEKDAY(DATE(KoledarskoLeto+1,4,12),1),\"aaa\")","v":"pet"},{"$f":"TEXT(WEEKDAY(DATE(KoledarskoLeto+1,4,13),1),\"aaa\")","v":"sob"},{"$f":"TEXT(WEEKDAY(DATE(KoledarskoLeto+1,4,14),1),\"aaa\")","v":"ned"},{"$f":"TEXT(WEEKDAY(DATE(KoledarskoLeto+1,4,15),1),\"aaa\")","v":"pon"},{"$f":"TEXT(WEEKDAY(DATE(KoledarskoLeto+1,4,16),1),\"aaa\")","v":"tor"},{"$f":"TEXT(WEEKDAY(DATE(KoledarskoLeto+1,4,17),1),\"aaa\")","v":"sre"},{"$f":"TEXT(WEEKDAY(DATE(KoledarskoLeto+1,4,18),1),\"aaa\")","v":"čet"},{"$f":"TEXT(WEEKDAY(DATE(KoledarskoLeto+1,4,19),1),\"aaa\")","v":"pet"},{"$f":"TEXT(WEEKDAY(DATE(KoledarskoLeto+1,4,20),1),\"aaa\")","v":"sob"},{"$f":"TEXT(WEEKDAY(DATE(KoledarskoLeto+1,4,21),1),\"aaa\")","v":"ned"},{"$f":"TEXT(WEEKDAY(DATE(KoledarskoLeto+1,4,22),1),\"aaa\")","v":"pon"},{"$f":"TEXT(WEEKDAY(DATE(KoledarskoLeto+1,4,23),1),\"aaa\")","v":"tor"},{"$f":"TEXT(WEEKDAY(DATE(KoledarskoLeto+1,4,24),1),\"aaa\")","v":"sre"},{"$f":"TEXT(WEEKDAY(DATE(KoledarskoLeto+1,4,25),1),\"aaa\")","v":"čet"},{"$f":"TEXT(WEEKDAY(DATE(KoledarskoLeto+1,4,26),1),\"aaa\")","v":"pet"},{"$f":"TEXT(WEEKDAY(DATE(KoledarskoLeto+1,4,27),1),\"aaa\")","v":"sob"},{"$f":"TEXT(WEEKDAY(DATE(KoledarskoLeto+1,4,28),1),\"aaa\")","v":"ned"},{"$f":"TEXT(WEEKDAY(DATE(KoledarskoLeto+1,4,29),1),\"aaa\")","v":"pon"},{"$f":"TEXT(WEEKDAY(DATE(KoledarskoLeto+1,4,30),1),\"aaa\")","v":"tor"},null,"Skupaj"]
[null,"ID študenta","Ime študenta","1","2","3","4","5","6","7","8","9","10","11","12","13","14","15","16","17","18","19","20","21","22","23","24","25","26","27","28","29","30"," ","Po","E","N","P","Dni odsoten"]
[null,null,{"$f":"IFERROR(VLOOKUP(PrisotnostAprila[[#This Row],[ID študenta]],SeznamUčencev[],18,FALSE),\"\")","v":""},{"$nulls":31},{"$f":"COUNTIF(PrisotnostAprila[[#This Row],[1]:[ ]],Koda1)","v":0},{"$f":"COUNTIF(PrisotnostAprila[[#This Row],[1]:[ ]],Koda2)","v":0},{"$f":"COUNTIF(PrisotnostAprila[[#This Row],[1]:[ ]],Koda3)","v":0},{"$f":"COUNTIF(PrisotnostAprila[[#This Row],[1]:[ ]],Koda4)","v":0},{"$f":"SUM(PrisotnostAprila[[#This Row],[E]:[N]])","v":0}]
[null,null,{"$f":"IFERROR(VLOOKUP(PrisotnostAprila[[#This Row],[ID študenta]],SeznamUčencev[],18,FALSE),\"\")","v":""},{"$nulls":31},{"$f":"COUNTIF(PrisotnostAprila[[#This Row],[1]:[ ]],Koda1)","v":0},{"$f":"COUNTIF(PrisotnostAprila[[#This Row],[1]:[ ]],Koda2)","v":0},{"$f":"COUNTIF(PrisotnostAprila[[#This Row],[1]:[ ]],Koda3)","v":0},{"$f":"COUNTIF(PrisotnostAprila[[#This Row],[1]:[ ]],Koda4)","v":0},{"$f":"SUM(PrisotnostAprila[[#This Row],[E]:[N]])","v":0}]
[null,null,{"$f":"IFERROR(VLOOKUP(PrisotnostAprila[[#This Row],[ID študenta]],SeznamUčencev[],18,FALSE),\"\")","v":""},{"$nulls":31},{"$f":"COUNTIF(PrisotnostAprila[[#This Row],[1]:[ ]],Koda1)","v":0},{"$f":"COUNTIF(PrisotnostAprila[[#This Row],[1]:[ ]],Koda2)","v":0},{"$f":"COUNTIF(PrisotnostAprila[[#This Row],[1]:[ ]],Koda3)","v":0},{"$f":"COUNTIF(PrisotnostAprila[[#This Row],[1]:[ ]],Koda4)","v":0},{"$f":"SUM(PrisotnostAprila[[#This Row],[E]:[N]])","v":0}]
[null,null,{"$f":"IFERROR(VLOOKUP(PrisotnostAprila[[#This Row],[ID študenta]],SeznamUčencev[],18,FALSE),\"\")","v":""},{"$nulls":31},{"$f":"COUNTIF(PrisotnostAprila[[#This Row],[1]:[ ]],Koda1)","v":0},{"$f":"COUNTIF(PrisotnostAprila[[#This Row],[1]:[ ]],Koda2)","v":0},{"$f":"COUNTIF(PrisotnostAprila[[#This Row],[1]:[ ]],Koda3)","v":0},{"$f":"COUNTIF(PrisotnostAprila[[#This Row],[1]:[ ]],Koda4)","v":0},{"$f":"SUM(PrisotnostAprila[[#This Row],[E]:[N]])","v":0}]
[null,null,{"$f":"IFERROR(VLOOKUP(PrisotnostAprila[[#This Row],[ID študenta]],SeznamUčencev[],18,FALSE),\"\")","v":""},{"$nulls":31},{"$f":"COUNTIF(PrisotnostAprila[[#This Row],[1]:[ ]],Koda1)","v":0},{"$f":"COUNTIF(PrisotnostAprila[[#This Row],[1]:[ ]],Koda2)","v":0},{"$f":"COUNTIF(PrisotnostAprila[[#This Row],[1]:[ ]],Koda3)","v":0},{"$f":"COUNTIF(PrisotnostAprila[[#This Row],[1]:[ ]],Koda4)","v":0},{"$f":"SUM(PrisotnostAprila[[#This Row],[E]:[N]])","v":0}]
[null,null,"Skupno odsoten dni",{"$f":"COUNTIF(PrisotnostAprila[1],\"N\")+COUNTIF(PrisotnostAprila[1],\"E\")","v":0},{"$f":"COUNTIF(PrisotnostAprila[2],\"N\")+COUNTIF(PrisotnostAprila[2],\"E\")","v":0},{"$f":"COUNTIF(PrisotnostAprila[3],\"N\")+COUNTIF(PrisotnostAprila[3],\"E\")","v":0},{"$f":"COUNTIF(PrisotnostAprila[4],\"N\")+COUNTIF(PrisotnostAprila[4],\"E\")","v":0},{"$f":"COUNTIF(PrisotnostAprila[5],\"N\")+COUNTIF(PrisotnostAprila[5],\"E\")","v":0},{"$f":"COUNTIF(PrisotnostAprila[6],\"N\")+COUNTIF(PrisotnostAprila[6],\"E\")","v":0},{"$f":"COUNTIF(PrisotnostAprila[7],\"N\")+COUNTIF(PrisotnostAprila[7],\"E\")","v":0},{"$f":"COUNTIF(PrisotnostAprila[8],\"N\")+COUNTIF(PrisotnostAprila[8],\"E\")","v":0},{"$f":"COUNTIF(PrisotnostAprila[9],\"N\")+COUNTIF(PrisotnostAprila[9],\"E\")","v":0},{"$f":"COUNTIF(PrisotnostAprila[10],\"N\")+COUNTIF(PrisotnostAprila[10],\"E\")","v":0},{"$f":"COUNTIF(PrisotnostAprila[11],\"N\")+COUNTIF(PrisotnostAprila[11],\"E\")","v":0},{"$f":"COUNTIF(PrisotnostAprila[12],\"N\")+COUNTIF(PrisotnostAprila[12],\"E\")","v":0},{"$f":"COUNTIF(PrisotnostAprila[13],\"N\")+COUNTIF(PrisotnostAprila[13],\"E\")","v":0},{"$f":"COUNTIF(PrisotnostAprila[14],\"N\")+COUNTIF(PrisotnostAprila[14],\"E\")","v":0},{"$f":"COUNTIF(PrisotnostAprila[15],\"N\")+COUNTIF(PrisotnostAprila[15],\"E\")","v":0},{"$f":"COUNTIF(PrisotnostAprila[16],\"N\")+COUNTIF(PrisotnostAprila[16],\"E\")","v":0},{"$f":"COUNTIF(PrisotnostAprila[17],\"N\")+COUNTIF(PrisotnostAprila[17],\"E\")","v":0},{"$f":"COUNTIF(PrisotnostAprila[18],\"N\")+COUNTIF(PrisotnostAprila[18],\"E\")","v":0},{"$f":"COUNTIF(PrisotnostAprila[19],\"N\")+COUNTIF(PrisotnostAprila[19],\"E\")","v":0},{"$f":"COUNTIF(PrisotnostAprila[20],\"N\")+COUNTIF(PrisotnostAprila[20],\"E\")","v":0},{"$f":"COUNTIF(PrisotnostAprila[21],\"N\")+COUNTIF(PrisotnostAprila[21],\"E\")","v":0},{"$f":"COUNTIF(PrisotnostAprila[22],\"N\")+COUNTIF(PrisotnostAprila[22],\"E\")","v":0},{"$f":"COUNTIF(PrisotnostAprila[23],\"N\")+COUNTIF(PrisotnostAprila[23],\"E\")","v":0},{"$f":"COUNTIF(PrisotnostAprila[24],\"N\")+COUNTIF(PrisotnostAprila[24],\"E\")","v":0},{"$f":"COUNTIF(PrisotnostAprila[25],\"N\")+COUNTIF(PrisotnostAprila[25],\"E\")","v":0},{"$f":"COUNTIF(PrisotnostAprila[26],\"N\")+COUNTIF(PrisotnostAprila[26],\"E\")","v":0},{"$f":"COUNTIF(PrisotnostAprila[27],\"N\")+COUNTIF(PrisotnostAprila[27],\"E\")","v":0},{"$f":"COUNTIF(PrisotnostAprila[28],\"N\")+COUNTIF(PrisotnostAprila[28],\"E\")","v":0},{"$f":"COUNTIF(PrisotnostAprila[29],\"N\")+COUNTIF(PrisotnostAprila[29],\"E\")","v":0},null,null,{"$f":"SUBTOTAL(109,PrisotnostAprila[Po])","v":0},{"$f":"SUBTOTAL(109,PrisotnostAprila[E])","v":0},{"$f":"SUBTOTAL(109,PrisotnostAprila[N])","v":0},{"$f":"SUBTOTAL(109,PrisotnostAprila[P])","v":0},{"$f":"SUBTOTAL(109,PrisotnostAprila[Dni odsoten])","v":0}]

{"sheet":"Maj","index":11,"n_rows":12,"n_cols":39,"rows_kept":12,"merged":[[4,34,4,38]]}
["EVIDENCA PRISOTNOSTI ŠTUDENTOV",{"$nulls":36},"Začetek študijskega leta",{"$f":"KoledarskoLeto","v":2012}]
[]
[null,null,{"$f":"BesediloBarvnegaKljuča","v":"BARVNI KLJUČ"},{"$f":"Koda1","v":"Po"},{"$f":"BesediloKode1","v":"Pozen"},null,null,{"$f":"Koda2","v":"E"},{"$f":"BesediloKode2","v":"Opravičen"},null,null,{"$f":"Koda3","v":"N"},{"$f":"BesediloKode3","v":"Neopravičen"},null,null,{"$f":"Koda4","v":"P"},{"$f":"BesediloKode4","v":"Prisoten"},null,null,{"$f":"Koda5","v":"Ni"},{"$f":"BesediloKode5","v":"Ni pouka"}]
[]
[null,{"$f":"DATE(KoledarskoLeto+1,5,1)","v":"2013-05-01"},null,{"$f":"TEXT(WEEKDAY(DATE(KoledarskoLeto+1,5,1),1),\"aaa\")","v":"sre"},{"$f":"TEXT(WEEKDAY(DATE(KoledarskoLeto+1,5,2),1),\"aaa\")","v":"čet"},{"$f":"TEXT(WEEKDAY(DATE(KoledarskoLeto+1,5,3),1),\"aaa\")","v":"pet"},{"$f":"TEXT(WEEKDAY(DATE(KoledarskoLeto+1,5,4),1),\"aaa\")","v":"sob"},{"$f":"TEXT(WEEKDAY(DATE(KoledarskoLeto+1,5,5),1),\"aaa\")","v":"ned"},{"$f":"TEXT(WEEKDAY(DATE(KoledarskoLeto+1,5,6),1),\"aaa\")","v":"pon"},{"$f":"TEXT(WEEKDAY(DATE(KoledarskoLeto+1,5,7),1),\"aaa\")","v":"tor"},{"$f":"TEXT(WEEKDAY(DATE(KoledarskoLeto+1,5,8),1),\"aaa\")","v":"sre"},{"$f":"TEXT(WEEKDAY(DATE(KoledarskoLeto+1,5,9),1),\"aaa\")","v":"čet"},{"$f":"TEXT(WEEKDAY(DATE(KoledarskoLeto+1,5,10),1),\"aaa\")","v":"pet"},{"$f":"TEXT(WEEKDAY(DATE(KoledarskoLeto+1,5,11),1),\"aaa\")","v":"sob"},{"$f":"TEXT(WEEKDAY(DATE(KoledarskoLeto+1,5,12),1),\"aaa\")","v":"ned"},{"$f":"TEXT(WEEKDAY(DATE(KoledarskoLeto+1,5,13),1),\"aaa\")","v":"pon"},{"$f":"TEXT(WEEKDAY(DATE(KoledarskoLeto+1,5,14),1),\"aaa\")","v":"tor"},{"$f":"TEXT(WEEKDAY(DATE(KoledarskoLeto+1,5,15),1),\"aaa\")","v":"sre"},{"$f":"TEXT(WEEKDAY(DATE(KoledarskoLeto+1,5,16),1),\"aaa\")","v":"čet"},{"$f":"TEXT(WEEKDAY(DATE(KoledarskoLeto+1,5,17),1),\"aaa\")","v":"pet"},{"$f":"TEXT(WEEKDAY(DATE(KoledarskoLeto+1,5,18),1),\"aaa\")","v":"sob"},{"$f":"TEXT(WEEKDAY(DATE(KoledarskoLeto+1,5,19),1),\"aaa\")","v":"ned"},{"$f":"TEXT(WEEKDAY(DATE(KoledarskoLeto+1,5,20),1),\"aaa\")","v":"pon"},{"$f":"TEXT(WEEKDAY(DATE(KoledarskoLeto+1,5,21),1),\"aaa\")","v":"tor"},{"$f":"TEXT(WEEKDAY(DATE(KoledarskoLeto+1,5,22),1),\"aaa\")","v":"sre"},{"$f":"TEXT(WEEKDAY(DATE(KoledarskoLeto+1,5,23),1),\"aaa\")","v":"čet"},{"$f":"TEXT(WEEKDAY(DATE(KoledarskoLeto+1,5,24),1),\"aaa\")","v":"pet"},{"$f":"TEXT(WEEKDAY(DATE(KoledarskoLeto+1,5,25),1),\"aaa\")","v":"sob"},{"$f":"TEXT(WEEKDAY(DATE(KoledarskoLeto+1,5,26),1),\"aaa\")","v":"ned"},{"$f":"TEXT(WEEKDAY(DATE(KoledarskoLeto+1,5,27),1),\"aaa\")","v":"pon"},{"$f":"TEXT(WEEKDAY(DATE(KoledarskoLeto+1,5,28),1),\"aaa\")","v":"tor"},{"$f":"TEXT(WEEKDAY(DATE(KoledarskoLeto+1,5,29),1),\"aaa\")","v":"sre"},{"$f":"TEXT(WEEKDAY(DATE(KoledarskoLeto+1,5,30),1),\"aaa\")","v":"čet"},{"$f":"TEXT(WEEKDAY(DATE(KoledarskoLeto+1,5,31),1),\"aaa\")","v":"pet"},"Skupaj"]
[null,"ID študenta","Ime študenta","1","2","3","4","5","6","7","8","9","10","11","12","13","14","15","16","17","18","19","20","21","22","23","24","25","26","27","28","29","30","31","Po","E","N","P","Dni odsoten"]
[null,null,{"$f":"IFERROR(VLOOKUP(PrisotnostMaja[[#This Row],[ID študenta]],SeznamUčencev[],18,FALSE),\"\")","v":""},{"$nulls":31},{"$f":"COUNTIF(PrisotnostMaja[[#This Row],[1]:[31]],Koda1)","v":0},{"$f":"COUNTIF(PrisotnostMaja[[#This Row],[1]:[31]],Koda2)","v":0},{"$f":"COUNTIF(PrisotnostMaja[[#This Row],[1]:[31]],Koda3)","v":0},{"$f":"COUNTIF(PrisotnostMaja[[#This Row],[1]:[31]],Koda4)","v":0},{"$f":"SUM(PrisotnostMaja[[#This Row],[E]:[N]])","v":0}]
[null,null,{"$f":"IFERROR(VLOOKUP(PrisotnostMaja[[#This Row],[ID študenta]],SeznamUčencev[],18,FALSE),\"\")","v":""},{"$nulls":31},{"$f":"COUNTIF(PrisotnostMaja[[#This Row],[1]:[31]],Koda1)","v":0},{"$f":"COUNTIF(PrisotnostMaja[[#This Row],[1]:[31]],Koda2)","v":0},{"$f":"COUNTIF(PrisotnostMaja[[#This Row],[1]:[31]],Koda3)","v":0},{"$f":"COUNTIF(PrisotnostMaja[[#This Row],[1]:[31]],Koda4)","v":0},{"$f":"SUM(PrisotnostMaja[[#This Row],[E]:[N]])","v":0}]
[null,null,{"$f":"IFERROR(VLOOKUP(PrisotnostMaja[[#This Row],[ID študenta]],SeznamUčencev[],18,FALSE),\"\")","v":""},{"$nulls":31},{"$f":"COUNTIF(PrisotnostMaja[[#This Row],[1]:[31]],Koda1)","v":0},{"$f":"COUNTIF(PrisotnostMaja[[#This Row],[1]:[31]],Koda2)","v":0},{"$f":"COUNTIF(PrisotnostMaja[[#This Row],[1]:[31]],Koda3)","v":0},{"$f":"COUNTIF(PrisotnostMaja[[#This Row],[1]:[31]],Koda4)","v":0},{"$f":"SUM(PrisotnostMaja[[#This Row],[E]:[N]])","v":0}]
[null,null,{"$f":"IFERROR(VLOOKUP(PrisotnostMaja[[#This Row],[ID študenta]],SeznamUčencev[],18,FALSE),\"\")","v":""},{"$nulls":31},{"$f":"COUNTIF(PrisotnostMaja[[#This Row],[1]:[31]],Koda1)","v":0},{"$f":"COUNTIF(PrisotnostMaja[[#This Row],[1]:[31]],Koda2)","v":0},{"$f":"COUNTIF(PrisotnostMaja[[#This Row],[1]:[31]],Koda3)","v":0},{"$f":"COUNTIF(PrisotnostMaja[[#This Row],[1]:[31]],Koda4)","v":0},{"$f":"SUM(PrisotnostMaja[[#This Row],[E]:[N]])","v":0}]
[null,null,{"$f":"IFERROR(VLOOKUP(PrisotnostMaja[[#This Row],[ID študenta]],SeznamUčencev[],18,FALSE),\"\")","v":""},{"$nulls":31},{"$f":"COUNTIF(PrisotnostMaja[[#This Row],[1]:[31]],Koda1)","v":0},{"$f":"COUNTIF(PrisotnostMaja[[#This Row],[1]:[31]],Koda2)","v":0},{"$f":"COUNTIF(PrisotnostMaja[[#This Row],[1]:[31]],Koda3)","v":0},{"$f":"COUNTIF(PrisotnostMaja[[#This Row],[1]:[31]],Koda4)","v":0},{"$f":"SUM(PrisotnostMaja[[#This Row],[E]:[N]])","v":0}]
[null,null,"Skupno odsoten dni",{"$f":"COUNTIF(PrisotnostMaja[1],\"N\")+COUNTIF(PrisotnostMaja[1],\"E\")","v":0},{"$f":"COUNTIF(PrisotnostMaja[2],\"N\")+COUNTIF(PrisotnostMaja[2],\"E\")","v":0},{"$f":"COUNTIF(PrisotnostMaja[3],\"N\")+COUNTIF(PrisotnostMaja[3],\"E\")","v":0},{"$f":"COUNTIF(PrisotnostMaja[4],\"N\")+COUNTIF(PrisotnostMaja[4],\"E\")","v":0},{"$f":"COUNTIF(PrisotnostMaja[5],\"N\")+COUNTIF(PrisotnostMaja[5],\"E\")","v":0},{"$f":"COUNTIF(PrisotnostMaja[6],\"N\")+COUNTIF(PrisotnostMaja[6],\"E\")","v":0},{"$f":"COUNTIF(PrisotnostMaja[7],\"N\")+COUNTIF(PrisotnostMaja[7],\"E\")","v":0},{"$f":"COUNTIF(PrisotnostMaja[8],\"N\")+COUNTIF(PrisotnostMaja[8],\"E\")","v":0},{"$f":"COUNTIF(PrisotnostMaja[9],\"N\")+COUNTIF(PrisotnostMaja[9],\"E\")","v":0},{"$f":"COUNTIF(PrisotnostMaja[10],\"N\")+COUNTIF(PrisotnostMaja[10],\"E\")","v":0},{"$f":"COUNTIF(PrisotnostMaja[11],\"N\")+COUNTIF(PrisotnostMaja[11],\"E\")","v":0},{"$f":"COUNTIF(PrisotnostMaja[12],\"N\")+COUNTIF(PrisotnostMaja[12],\"E\")","v":0},{"$f":"COUNTIF(PrisotnostMaja[13],\"N\")+COUNTIF(PrisotnostMaja[13],\"E\")","v":0},{"$f":"COUNTIF(PrisotnostMaja[14],\"N\")+COUNTIF(PrisotnostMaja[14],\"E\")","v":0},{"$f":"COUNTIF(PrisotnostMaja[15],\"N\")+COUNTIF(PrisotnostMaja[15],\"E\")","v":0},{"$f":"COUNTIF(PrisotnostMaja[16],\"N\")+COUNTIF(PrisotnostMaja[16],\"E\")","v":0},{"$f":"COUNTIF(PrisotnostMaja[17],\"N\")+COUNTIF(PrisotnostMaja[17],\"E\")","v":0},{"$f":"COUNTIF(PrisotnostMaja[18],\"N\")+COUNTIF(PrisotnostMaja[18],\"E\")","v":0},{"$f":"COUNTIF(PrisotnostMaja[19],\"N\")+COUNTIF(PrisotnostMaja[19],\"E\")","v":0},{"$f":"COUNTIF(PrisotnostMaja[20],\"N\")+COUNTIF(PrisotnostMaja[20],\"E\")","v":0},{"$f":"COUNTIF(PrisotnostMaja[21],\"N\")+COUNTIF(PrisotnostMaja[21],\"E\")","v":0},{"$f":"COUNTIF(PrisotnostMaja[22],\"N\")+COUNTIF(PrisotnostMaja[22],\"E\")","v":0},{"$f":"COUNTIF(PrisotnostMaja[23],\"N\")+COUNTIF(PrisotnostMaja[23],\"E\")","v":0},{"$f":"COUNTIF(PrisotnostMaja[24],\"N\")+COUNTIF(PrisotnostMaja[24],\"E\")","v":0},{"$f":"COUNTIF(PrisotnostMaja[25],\"N\")+COUNTIF(PrisotnostMaja[25],\"E\")","v":0},{"$f":"COUNTIF(PrisotnostMaja[26],\"N\")+COUNTIF(PrisotnostMaja[26],\"E\")","v":0},{"$f":"COUNTIF(PrisotnostMaja[27],\"N\")+COUNTIF(PrisotnostMaja[27],\"E\")","v":0},{"$f":"COUNTIF(PrisotnostMaja[28],\"N\")+COUNTIF(PrisotnostMaja[28],\"E\")","v":0},{"$f":"COUNTIF(PrisotnostMaja[29],\"N\")+COUNTIF(PrisotnostMaja[29],\"E\")","v":0},null,null,{"$f":"SUBTOTAL(109,PrisotnostMaja[Po])","v":0},{"$f":"SUBTOTAL(109,PrisotnostMaja[E])","v":0},{"$f":"SUBTOTAL(109,PrisotnostMaja[N])","v":0},{"$f":"SUBTOTAL(109,PrisotnostMaja[P])","v":0},{"$f":"SUBTOTAL(109,PrisotnostMaja[Dni odsoten])","v":0}]

{"sheet":"Junij","index":12,"n_rows":12,"n_cols":39,"rows_kept":12,"merged":[[4,34,4,38]]}
["EVIDENCA PRISOTNOSTI ŠTUDENTOV",{"$nulls":36},"Začetek študijskega leta",{"$f":"KoledarskoLeto","v":2012}]
[]
[null,null,{"$f":"BesediloBarvnegaKljuča","v":"BARVNI KLJUČ"},{"$f":"Koda1","v":"Po"},{"$f":"BesediloKode1","v":"Pozen"},null,null,{"$f":"Koda2","v":"E"},{"$f":"BesediloKode2","v":"Opravičen"},null,null,{"$f":"Koda3","v":"N"},{"$f":"BesediloKode3","v":"Neopravičen"},null,null,{"$f":"Koda4","v":"P"},{"$f":"BesediloKode4","v":"Prisoten"},null,null,{"$f":"Koda5","v":"Ni"},{"$f":"BesediloKode5","v":"Ni pouka"}]
[]
[null,{"$f":"DATE(KoledarskoLeto+1,6,1)","v":"2013-06-01"},null,{"$f":"TEXT(WEEKDAY(DATE(KoledarskoLeto+1,6,1),1),\"aaa\")","v":"sob"},{"$f":"TEXT(WEEKDAY(DATE(KoledarskoLeto+1,6,2),1),\"aaa\")","v":"ned"},{"$f":"TEXT(WEEKDAY(DATE(KoledarskoLeto+1,6,3),1),\"aaa\")","v":"pon"},{"$f":"TEXT(WEEKDAY(DATE(KoledarskoLeto+1,6,4),1),\"aaa\")","v":"tor"},{"$f":"TEXT(WEEKDAY(DATE(KoledarskoLeto+1,6,5),1),\"aaa\")","v":"sre"},{"$f":"TEXT(WEEKDAY(DATE(KoledarskoLeto+1,6,6),1),\"aaa\")","v":"čet"},{"$f":"TEXT(WEEKDAY(DATE(KoledarskoLeto+1,6,7),1),\"aaa\")","v":"pet"},{"$f":"TEXT(WEEKDAY(DATE(KoledarskoLeto+1,6,8),1),\"aaa\")","v":"sob"},{"$f":"TEXT(WEEKDAY(DATE(KoledarskoLeto+1,6,9),1),\"aaa\")","v":"ned"},{"$f":"TEXT(WEEKDAY(DATE(KoledarskoLeto+1,6,10),1),\"aaa\")","v":"pon"},{"$f":"TEXT(WEEKDAY(DATE(KoledarskoLeto+1,6,11),1),\"aaa\")","v":"tor"},{"$f":"TEXT(WEEKDAY(DATE(KoledarskoLeto+1,6,12),1),\"aaa\")","v":"sre"},{"$f":"TEXT(WEEKDAY(DATE(KoledarskoLeto+1,6,13),1),\"aaa\")","v":"čet"},{"$f":"TEXT(WEEKDAY(DATE(KoledarskoLeto+1,6,14),1),\"aaa\")","v":"pet"},{"$f":"TEXT(WEEKDAY(DATE(KoledarskoLeto+1,6,15),1),\"aaa\")","v":"sob"},{"$f":"TEXT(WEEKDAY(DATE(KoledarskoLeto+1,6,16),1),\"aaa\")","v":"ned"},{"$f":"TEXT(WEEKDAY(DATE(KoledarskoLeto+1,6,17),1),\"aaa\")","v":"pon"},{"$f":"TEXT(WEEKDAY(DATE(KoledarskoLeto+1,6,18),1),\"aaa\")","v":"tor"},{"$f":"TEXT(WEEKDAY(DATE(KoledarskoLeto+1,6,19),1),\"aaa\")","v":"sre"},{"$f":"TEXT(WEEKDAY(DATE(KoledarskoLeto+1,6,20),1),\"aaa\")","v":"čet"},{"$f":"TEXT(WEEKDAY(DATE(KoledarskoLeto+1,6,21),1),\"aaa\")","v":"pet"},{"$f":"TEXT(WEEKDAY(DATE(KoledarskoLeto+1,6,22),1),\"aaa\")","v":"sob"},{"$f":"TEXT(WEEKDAY(DATE(KoledarskoLeto+1,6,23),1),\"aaa\")","v":"ned"},{"$f":"TEXT(WEEKDAY(DATE(KoledarskoLeto+1,6,24),1),\"aaa\")","v":"pon"},{"$f":"TEXT(WEEKDAY(DATE(KoledarskoLeto+1,6,25),1),\"aaa\")","v":"tor"},{"$f":"TEXT(WEEKDAY(DATE(KoledarskoLeto+1,6,26),1),\"aaa\")","v":"sre"},{"$f":"TEXT(WEEKDAY(DATE(KoledarskoLeto+1,6,27),1),\"aaa\")","v":"čet"},{"$f":"TEXT(WEEKDAY(DATE(KoledarskoLeto+1,6,28),1),\"aaa\")","v":"pet"},{"$f":"TEXT(WEEKDAY(DATE(KoledarskoLeto+1,6,29),1),\"aaa\")","v":"sob"},{"$f":"TEXT(WEEKDAY(DATE(KoledarskoLeto+1,6,30),1),\"aaa\")","v":"ned"},null,"Skupaj"]
[null,"ID študenta","Ime študenta","1","2","3","4","5","6","7","8","9","10","11","12","13","14","15","16","17","18","19","20","21","22","23","24","25","26","27","28","29","30"," ","Po","E","N","P","Dni odsoten"]
[null,null,{"$f":"IFERROR(VLOOKUP(PrisotnostJunija[[#This Row],[ID študenta]],SeznamUčencev[],18,FALSE),\"\")","v":""},{"$nulls":31},{"$f":"COUNTIF(PrisotnostJunija[[#This Row],[1]:[ ]],Koda1)","v":0},{"$f":"COUNTIF(PrisotnostJunija[[#This Row],[1]:[ ]],Koda2)","v":0},{"$f":"COUNTIF(PrisotnostJunija[[#This Row],[1]:[ ]],Koda3)","v":0},{"$f":"COUNTIF(PrisotnostJunija[[#This Row],[1]:[ ]],Koda4)","v":0},{"$f":"SUM(PrisotnostJunija[[#This Row],[E]:[N]])","v":0}]
[null,null,{"$f":"IFERROR(VLOOKUP(PrisotnostJunija[[#This Row],[ID študenta]],SeznamUčencev[],18,FALSE),\"\")","v":""},{"$nulls":31},{"$f":"COUNTIF(PrisotnostJunija[[#This Row],[1]:[ ]],Koda1)","v":0},{"$f":"COUNTIF(PrisotnostJunija[[#This Row],[1]:[ ]],Koda2)","v":0},{"$f":"COUNTIF(PrisotnostJunija[[#This Row],[1]:[ ]],Koda3)","v":0},{"$f":"COUNTIF(PrisotnostJunija[[#This Row],[1]:[ ]],Koda4)","v":0},{"$f":"SUM(PrisotnostJunija[[#This Row],[E]:[N]])","v":0}]
[null,null,{"$f":"IFERROR(VLOOKUP(PrisotnostJunija[[#This Row],[ID študenta]],SeznamUčencev[],18,FALSE),\"\")","v":""},{"$nulls":31},{"$f":"COUNTIF(PrisotnostJunija[[#This Row],[1]:[ ]],Koda1)","v":0},{"$f":"COUNTIF(PrisotnostJunija[[#This Row],[1]:[ ]],Koda2)","v":0},{"$f":"COUNTIF(PrisotnostJunija[[#This Row],[1]:[ ]],Koda3)","v":0},{"$f":"COUNTIF(PrisotnostJunija[[#This Row],[1]:[ ]],Koda4)","v":0},{"$f":"SUM(PrisotnostJunija[[#This Row],[E]:[N]])","v":0}]
[null,null,{"$f":"IFERROR(VLOOKUP(PrisotnostJunija[[#This Row],[ID študenta]],SeznamUčencev[],18,FALSE),\"\")","v":""},{"$nulls":31},{"$f":"COUNTIF(PrisotnostJunija[[#This Row],[1]:[ ]],Koda1)","v":0},{"$f":"COUNTIF(PrisotnostJunija[[#This Row],[1]:[ ]],Koda2)","v":0},{"$f":"COUNTIF(PrisotnostJunija[[#This Row],[1]:[ ]],Koda3)","v":0},{"$f":"COUNTIF(PrisotnostJunija[[#This Row],[1]:[ ]],Koda4)","v":0},{"$f":"SUM(PrisotnostJunija[[#This Row],[E]:[N]])","v":0}]
[null,null,{"$f":"IFERROR(VLOOKUP(PrisotnostJunija[[#This Row],[ID študenta]],SeznamUčencev[],18,FALSE),\"\")","v":""},{"$nulls":31},{"$f":"COUNTIF(PrisotnostJunija[[#This Row],[1]:[ ]],Koda1)","v":0},{"$f":"COUNTIF(PrisotnostJunija[[#This Row],[1]:[ ]],Koda2)","v":0},{"$f":"COUNTIF(PrisotnostJunija[[#This Row],[1]:[ ]],Koda3)","v":0},{"$f":"COUNTIF(PrisotnostJunija[[#This Row],[1]:[ ]],Koda4)","v":0},{"$f":"SUM(PrisotnostJunija[[#This Row],[E]:[N]])","v":0}]
[null,null,"Skupno odsoten dni",{"$f":"COUNTIF(PrisotnostJunija[1],\"N\")+COUNTIF(PrisotnostJunija[1],\"E\")","v":0},{"$f":"COUNTIF(PrisotnostJunija[2],\"N\")+COUNTIF(PrisotnostJunija[2],\"E\")","v":0},{"$f":"COUNTIF(PrisotnostJunija[3],\"N\")+COUNTIF(PrisotnostJunija[3],\"E\")","v":0},{"$f":"COUNTIF(PrisotnostJunija[4],\"N\")+COUNTIF(PrisotnostJunija[4],\"E\")","v":0},{"$f":"COUNTIF(PrisotnostJunija[5],\"N\")+COUNTIF(PrisotnostJunija[5],\"E\")","v":0},{"$f":"COUNTIF(PrisotnostJunija[6],\"N\")+COUNTIF(PrisotnostJunija[6],\"E\")","v":0},{"$f":"COUNTIF(PrisotnostJunija[7],\"N\")+COUNTIF(PrisotnostJunija[7],\"E\")","v":0},{"$f":"COUNTIF(PrisotnostJunija[8],\"N\")+COUNTIF(PrisotnostJunija[8],\"E\")","v":0},{"$f":"COUNTIF(PrisotnostJunija[9],\"N\")+COUNTIF(PrisotnostJunija[9],\"E\")","v":0},{"$f":"COUNTIF(PrisotnostJunija[10],\"N\")+COUNTIF(PrisotnostJunija[10],\"E\")","v":0},{"$f":"COUNTIF(PrisotnostJunija[11],\"N\")+COUNTIF(PrisotnostJunija[11],\"E\")","v":0},{"$f":"COUNTIF(PrisotnostJunija[12],\"N\")+COUNTIF(PrisotnostJunija[12],\"E\")","v":0},{"$f":"COUNTIF(PrisotnostJunija[13],\"N\")+COUNTIF(PrisotnostJunija[13],\"E\")","v":0},{"$f":"COUNTIF(PrisotnostJunija[14],\"N\")+COUNTIF(PrisotnostJunija[14],\"E\")","v":0},{"$f":"COUNTIF(PrisotnostJunija[15],\"N\")+COUNTIF(PrisotnostJunija[15],\"E\")","v":0},{"$f":"COUNTIF(PrisotnostJunija[16],\"N\")+COUNTIF(PrisotnostJunija[16],\"E\")","v":0},{"$f":"COUNTIF(PrisotnostJunija[17],\"N\")+COUNTIF(PrisotnostJunija[17],\"E\")","v":0},{"$f":"COUNTIF(PrisotnostJunija[18],\"N\")+COUNTIF(PrisotnostJunija[18],\"E\")","v":0},{"$f":"COUNTIF(PrisotnostJunija[19],\"N\")+COUNTIF(PrisotnostJunija[19],\"E\")","v":0},{"$f":"COUNTIF(PrisotnostJunija[20],\"N\")+COUNTIF(PrisotnostJunija[20],\"E\")","v":0},{"$f":"COUNTIF(PrisotnostJunija[21],\"N\")+COUNTIF(PrisotnostJunija[21],\"E\")","v":0},{"$f":"COUNTIF(PrisotnostJunija[22],\"N\")+COUNTIF(PrisotnostJunija[22],\"E\")","v":0},{"$f":"COUNTIF(PrisotnostJunija[23],\"N\")+COUNTIF(PrisotnostJunija[23],\"E\")","v":0},{"$f":"COUNTIF(PrisotnostJunija[24],\"N\")+COUNTIF(PrisotnostJunija[24],\"E\")","v":0},{"$f":"COUNTIF(PrisotnostJunija[25],\"N\")+COUNTIF(PrisotnostJunija[25],\"E\")","v":0},{"$f":"COUNTIF(PrisotnostJunija[26],\"N\")+COUNTIF(PrisotnostJunija[26],\"E\")","v":0},{"$f":"COUNTIF(PrisotnostJunija[27],\"N\")+COUNTIF(PrisotnostJunija[27],\"E\")","v":0},{"$f":"COUNTIF(PrisotnostJunija[28],\"N\")+COUNTIF(PrisotnostJunija[28],\"E\")","v":0},{"$f":"COUNTIF(PrisotnostJunija[29],\"N\")+COUNTIF(PrisotnostJunija[29],\"E\")","v":0},null,null,{"$f":"SUBTOTAL(109,PrisotnostJunija[Po])","v":0},{"$f":"SUBTOTAL(109,PrisotnostJunija[E])","v":0},{"$f":"SUBTOTAL(109,PrisotnostJunija[N])","v":0},{"$f":"SUBTOTAL(109,PrisotnostJunija[P])","v":0},{"$f":"SUBTOTAL(109,PrisotnostJunija[Dni odsoten])","v":0}]

{"sheet":"Julij","index":13,"n_rows":12,"n_cols":39,"rows_kept":12,"merged":[[4,34,4,38]]}
["EVIDENCA PRISOTNOSTI ŠTUDENTOV",{"$nulls":36},"Začetek študijskega leta",{"$f":"KoledarskoLeto","v":2012}]
[]
[null,null,{"$f":"BesediloBarvnegaKljuča","v":"BARVNI KLJUČ"},{"$f":"Koda1","v":"Po"},{"$f":"BesediloKode1","v":"Pozen"},null,null,{"$f":"Koda2","v":"E"},{"$f":"BesediloKode2","v":"Opravičen"},null,null,{"$f":"Koda3","v":"N"},{"$f":"BesediloKode3","v":"Neopravičen"},null,null,{"$f":"Koda4","v":"P"},{"$f":"BesediloKode4","v":"Prisoten"},null,null,{"$f":"Koda5","v":"Ni"},{"$f":"BesediloKode5","v":"Ni pouka"}]
[]
[null,{"$f":"DATE(KoledarskoLeto+1,7,1)","v":"2013-07-01"},null,{"$f":"TEXT(WEEKDAY(DATE(KoledarskoLeto+1,7,1),1),\"aaa\")","v":"pon"},{"$f":"TEXT(WEEKDAY(DATE(KoledarskoLeto+1,7,2),1),\"aaa\")","v":"tor"},{"$f":"TEXT(WEEKDAY(DATE(KoledarskoLeto+1,7,3),1),\"aaa\")","v":"sre"},{"$f":"TEXT(WEEKDAY(DATE(KoledarskoLeto+1,7,4),1),\"aaa\")","v":"čet"},{"$f":"TEXT(WEEKDAY(DATE(KoledarskoLeto+1,7,5),1),\"aaa\")","v":"pet"},{"$f":"TEXT(WEEKDAY(DATE(KoledarskoLeto+1,7,6),1),\"aaa\")","v":"sob"},{"$f":"TEXT(WEEKDAY(DATE(KoledarskoLeto+1,7,7),1),\"aaa\")","v":"ned"},{"$f":"TEXT(WEEKDAY(DATE(KoledarskoLeto+1,7,8),1),\"aaa\")","v":"pon"},{"$f":"TEXT(WEEKDAY(DATE(KoledarskoLeto+1,7,9),1),\"aaa\")","v":"tor"},{"$f":"TEXT(WEEKDAY(DATE(KoledarskoLeto+1,7,10),1),\"aaa\")","v":"sre"},{"$f":"TEXT(WEEKDAY(DATE(KoledarskoLeto+1,7,11),1),\"aaa\")","v":"čet"},{"$f":"TEXT(WEEKDAY(DATE(KoledarskoLeto+1,7,12),1),\"aaa\")","v":"pet"},{"$f":"TEXT(WEEKDAY(DATE(KoledarskoLeto+1,7,13),1),\"aaa\")","v":"sob"},{"$f":"TEXT(WEEKDAY(DATE(KoledarskoLeto+1,7,14),1),\"aaa\")","v":"ned"},{"$f":"TEXT(WEEKDAY(DATE(KoledarskoLeto+1,7,15),1),\"aaa\")","v":"pon"},{"$f":"TEXT(WEEKDAY(DATE(KoledarskoLeto+1,7,16),1),\"aaa\")","v":"tor"},{"$f":"TEXT(WEEKDAY(DATE(KoledarskoLeto+1,7,17),1),\"aaa\")","v":"sre"},{"$f":"TEXT(WEEKDAY(DATE(KoledarskoLeto+1,7,18),1),\"aaa\")","v":"čet"},{"$f":"TEXT(WEEKDAY(DATE(KoledarskoLeto+1,7,19),1),\"aaa\")","v":"pet"},{"$f":"TEXT(WEEKDAY(DATE(KoledarskoLeto+1,7,20),1),\"aaa\")","v":"sob"},{"$f":"TEXT(WEEKDAY(DATE(KoledarskoLeto+1,7,21),1),\"aaa\")","v":"ned"},{"$f":"TEXT(WEEKDAY(DATE(KoledarskoLeto+1,7,22),1),\"aaa\")","v":"pon"},{"$f":"TEXT(WEEKDAY(DATE(KoledarskoLeto+1,7,23),1),\"aaa\")","v":"tor"},{"$f":"TEXT(WEEKDAY(DATE(KoledarskoLeto+1,7,24),1),\"aaa\")","v":"sre"},{"$f":"TEXT(WEEKDAY(DATE(KoledarskoLeto+1,7,25),1),\"aaa\")","v":"čet"},{"$f":"TEXT(WEEKDAY(DATE(KoledarskoLeto+1,7,26),1),\"aaa\")","v":"pet"},{"$f":"TEXT(WEEKDAY(DATE(KoledarskoLeto+1,7,27),1),\"aaa\")","v":"sob"},{"$f":"TEXT(WEEKDAY(DATE(KoledarskoLeto+1,7,28),1),\"aaa\")","v":"ned"},{"$f":"TEXT(WEEKDAY(DATE(KoledarskoLeto+1,7,29),1),\"aaa\")","v":"pon"},{"$f":"TEXT(WEEKDAY(DATE(KoledarskoLeto+1,7,30),1),\"aaa\")","v":"tor"},{"$f":"TEXT(WEEKDAY(DATE(KoledarskoLeto+1,7,31),1),\"aaa\")","v":"sre"},"Skupaj"]
[null,"ID študenta","Ime študenta","1","2","3","4","5","6","7","8","9","10","11","12","13","14","15","16","17","18","19","20","21","22","23","24","25","26","27","28","29","30","31","Po","E","N","P","Dni odsoten"]
[null,null,{"$f":"IFERROR(VLOOKUP(PrisotnostJulija[[#This Row],[ID študenta]],SeznamUčencev[],18,FALSE),\"\")","v":""},{"$nulls":31},{"$f":"COUNTIF(PrisotnostJulija[[#This Row],[1]:[31]],Koda1)","v":0},{"$f":"COUNTIF(PrisotnostJulija[[#This Row],[1]:[31]],Koda2)","v":0},{"$f":"COUNTIF(PrisotnostJulija[[#This Row],[1]:[31]],Koda3)","v":0},{"$f":"COUNTIF(PrisotnostJulija[[#This Row],[1]:[31]],Koda4)","v":0},{"$f":"SUM(PrisotnostJulija[[#This Row],[E]:[N]])","v":0}]
[null,null,{"$f":"IFERROR(VLOOKUP(PrisotnostJulija[[#This Row],[ID študenta]],SeznamUčencev[],18,FALSE),\"\")","v":""},{"$nulls":31},{"$f":"COUNTIF(PrisotnostJulija[[#This Row],[1]:[31]],Koda1)","v":0},{"$f":"COUNTIF(PrisotnostJulija[[#This Row],[1]:[31]],Koda2)","v":0},{"$f":"COUNTIF(PrisotnostJulija[[#This Row],[1]:[31]],Koda3)","v":0},{"$f":"COUNTIF(PrisotnostJulija[[#This Row],[1]:[31]],Koda4)","v":0},{"$f":"SUM(PrisotnostJulija[[#This Row],[E]:[N]])","v":0}]
[null,null,{"$f":"IFERROR(VLOOKUP(PrisotnostJulija[[#This Row],[ID študenta]],SeznamUčencev[],18,FALSE),\"\")","v":""},{"$nulls":31},{"$f":"COUNTIF(PrisotnostJulija[[#This Row],[1]:[31]],Koda1)","v":0},{"$f":"COUNTIF(PrisotnostJulija[[#This Row],[1]:[31]],Koda2)","v":0},{"$f":"COUNTIF(PrisotnostJulija[[#This Row],[1]:[31]],Koda3)","v":0},{"$f":"COUNTIF(PrisotnostJulija[[#This Row],[1]:[31]],Koda4)","v":0},{"$f":"SUM(PrisotnostJulija[[#This Row],[E]:[N]])","v":0}]
[null,null,{"$f":"IFERROR(VLOOKUP(PrisotnostJulija[[#This Row],[ID študenta]],SeznamUčencev[],18,FALSE),\"\")","v":""},{"$nulls":31},{"$f":"COUNTIF(PrisotnostJulija[[#This Row],[1]:[31]],Koda1)","v":0},{"$f":"COUNTIF(PrisotnostJulija[[#This Row],[1]:[31]],Koda2)","v":0},{"$f":"COUNTIF(PrisotnostJulija[[#This Row],[1]:[31]],Koda3)","v":0},{"$f":"COUNTIF(PrisotnostJulija[[#This Row],[1]:[31]],Koda4)","v":0},{"$f":"SUM(PrisotnostJulija[[#This Row],[E]:[N]])","v":0}]
[null,null,{"$f":"IFERROR(VLOOKUP(PrisotnostJulija[[#This Row],[ID študenta]],SeznamUčencev[],18,FALSE),\"\")","v":""},{"$nulls":31},{"$f":"COUNTIF(PrisotnostJulija[[#This Row],[1]:[31]],Koda1)","v":0},{"$f":"COUNTIF(PrisotnostJulija[[#This Row],[1]:[31]],Koda2)","v":0},{"$f":"COUNTIF(PrisotnostJulija[[#This Row],[1]:[31]],Koda3)","v":0},{"$f":"COUNTIF(PrisotnostJulija[[#This Row],[1]:[31]],Koda4)","v":0},{"$f":"SUM(PrisotnostJulija[[#This Row],[E]:[N]])","v":0}]
[null,null,"Skupno odsoten dni",{"$f":"COUNTIF(PrisotnostJulija[1],\"N\")+COUNTIF(PrisotnostJulija[1],\"E\")","v":0},{"$f":"COUNTIF(PrisotnostJulija[2],\"N\")+COUNTIF(PrisotnostJulija[2],\"E\")","v":0},{"$f":"COUNTIF(PrisotnostJulija[3],\"N\")+COUNTIF(PrisotnostJulija[3],\"E\")","v":0},{"$f":"COUNTIF(PrisotnostJulija[4],\"N\")+COUNTIF(PrisotnostJulija[4],\"E\")","v":0},{"$f":"COUNTIF(PrisotnostJulija[5],\"N\")+COUNTIF(PrisotnostJulija[5],\"E\")","v":0},{"$f":"COUNTIF(PrisotnostJulija[6],\"N\")+COUNTIF(PrisotnostJulija[6],\"E\")","v":0},{"$f":"COUNTIF(PrisotnostJulija[7],\"N\")+COUNTIF(PrisotnostJulija[7],\"E\")","v":0},{"$f":"COUNTIF(PrisotnostJulija[8],\"N\")+COUNTIF(PrisotnostJulija[8],\"E\")","v":0},{"$f":"COUNTIF(PrisotnostJulija[9],\"N\")+COUNTIF(PrisotnostJulija[9],\"E\")","v":0},{"$f":"COUNTIF(PrisotnostJulija[10],\"N\")+COUNTIF(PrisotnostJulija[10],\"E\")","v":0},{"$f":"COUNTIF(PrisotnostJulija[11],\"N\")+COUNTIF(PrisotnostJulija[11],\"E\")","v":0},{"$f":"COUNTIF(PrisotnostJulija[12],\"N\")+COUNTIF(PrisotnostJulija[12],\"E\")","v":0},{"$f":"COUNTIF(PrisotnostJulija[13],\"N\")+COUNTIF(PrisotnostJulija[13],\"E\")","v":0},{"$f":"COUNTIF(PrisotnostJulija[14],\"N\")+COUNTIF(PrisotnostJulija[14],\"E\")","v":0},{"$f":"COUNTIF(PrisotnostJulija[15],\"N\")+COUNTIF(PrisotnostJulija[15],\"E\")","v":0},{"$f":"COUNTIF(PrisotnostJulija[16],\"N\")+COUNTIF(PrisotnostJulija[16],\"E\")","v":0},{"$f":"COUNTIF(PrisotnostJulija[17],\"N\")+COUNTIF(PrisotnostJulija[17],\"E\")","v":0},{"$f":"COUNTIF(PrisotnostJulija[18],\"N\")+COUNTIF(PrisotnostJulija[18],\"E\")","v":0},{"$f":"COUNTIF(PrisotnostJulija[19],\"N\")+COUNTIF(PrisotnostJulija[19],\"E\")","v":0},{"$f":"COUNTIF(PrisotnostJulija[20],\"N\")+COUNTIF(PrisotnostJulija[20],\"E\")","v":0},{"$f":"COUNTIF(PrisotnostJulija[21],\"N\")+COUNTIF(PrisotnostJulija[21],\"E\")","v":0},{"$f":"COUNTIF(PrisotnostJulija[22],\"N\")+COUNTIF(PrisotnostJulija[22],\"E\")","v":0},{"$f":"COUNTIF(PrisotnostJulija[23],\"N\")+COUNTIF(PrisotnostJulija[23],\"E\")","v":0},{"$f":"COUNTIF(PrisotnostJulija[24],\"N\")+COUNTIF(PrisotnostJulija[24],\"E\")","v":0},{"$f":"COUNTIF(PrisotnostJulija[25],\"N\")+COUNTIF(PrisotnostJulija[25],\"E\")","v":0},{"$f":"COUNTIF(PrisotnostJulija[26],\"N\")+COUNTIF(PrisotnostJulija[26],\"E\")","v":0},{"$f":"COUNTIF(PrisotnostJulija[27],\"N\")+COUNTIF(PrisotnostJulija[27],\"E\")","v":0},{"$f":"COUNTIF(PrisotnostJulija[28],\"N\")+COUNTIF(PrisotnostJulija[28],\"E\")","v":0},{"$f":"COUNTIF(PrisotnostJulija[29],\"N\")+COUNTIF(PrisotnostJulija[29],\"E\")","v":0},null,null,{"$f":"SUBTOTAL(109,PrisotnostJulija[Po])","v":0},{"$f":"SUBTOTAL(109,PrisotnostJulija[E])","v":0},{"$f":"SUBTOTAL(109,PrisotnostJulija[N])","v":0},{"$f":"SUBTOTAL(109,PrisotnostJulija[P])","v":0},{"$f":"SUBTOTAL(109,PrisotnostJulija[Dni odsoten])","v":0}]

{"sheet":"Poročilo prisotnosti študentov","index":14,"n_rows":40,"n_cols":37,"rows_kept":40,"merged":[[2,3,2,14],[2,15,2,17],[2,18,2,21],[2,22,2,29],[2,30,2,31],[2,32,2,35],[3,1,3,2],[3,3,3,14],[3,15,3,17],[3,18,3,21],[3,22,3,29],[3,30,3,31],[3,32,3,35],[4,1,4,9],[4,10,4,21],[4,22,4,29],[4,30,4,36],[5,1,5,9],[5,10,5,21],[5,22,5,29],[5,30,5,36],[6,1,6,9],[6,10,6,21],[6,22,6,29],[6,30,6,36],[7,1,7,9],[7,10,7,21],[7,22,7,29],[7,30,7,36],[8,1,8,9],[8,10,8,21],[8,22,8,29],[8,30,8,36],[9,1,9,9],[9,10,9,21],[9,22,9,29],[9,30,9,36],[13,1,14,32],[13,33,13,36],[15,1,16,1],[15,33,16,33],[15,34,16,34],[15,35,16,35],[15,36,16,36],[17,1,18,1],[17,33,18,33],[17,34,18,34],[17,35,18,35],[17,36,18,36],[19,1,20,1],[19,33,20,33],[19,34,20,34],[19,35,20,35],[19,36,20,36],[21,1,22,1],[21,33,22,33],[21,34,22,34],[21,35,22,35],[21,36,22,36],[23,1,24,1],[23,33,24,33],[23,34,24,34],[23,35,24,35],[23,36,24,36],[25,1,26,1],[25,33,26,33],[25,34,26,34],[25,35,26,35],[25,36,26,36],[27,1,28,1],[27,33,28,33],[27,34,28,34],[27,35,28,35],[27,36,28,36],[29,1,30,1],[29,33,30,33],[29,34,30,34],[29,35,30,35],[29,36,30,36],[31,1,32,1],[31,33,32,33],[31,34,32,34],[31,35,32,35],[31,36,32,36],[33,1,34,1],[33,33,34,33],[33,34,34,34],[33,35,34,35],[33,36,34,36],[35,1,36,1],[35,33,36,33],[35,34,36,34],[35,35,36,35],[35,36,36,36],[37,1,38,1],[37,33,38,33],[37,34,38,34],[37,35,38,35],[37,36,38,36],[39,30,39,32]]}
[{"$f":"\"Evidenca prisotnosti za \"","v":"Evidenca prisotnosti za "},{"$nulls":7},{"$f":"D4","v":"Erik Novak"}]
[]
[null,"ID študenta",null,"Ime študenta",{"$nulls":11},"Spol",null,null,"Datum rojstva",{"$nulls":3},"Šola",{"$nulls":7},"Ocena",null,"Učitelj",{"$nulls":3},"Soba"]
[null,"Š001",null,{"$f":"IFERROR(VLOOKUP(IskanjeUčencev,SeznamUčencev[],18,FALSE),\"\")","v":"Erik Novak"},{"$nulls":11},{"$f":"IFERROR(VLOOKUP(IskanjeUčencev,SeznamUčencev[],4,FALSE),\"\")","v":"M"},null,null,{"$f":"IFERROR(VLOOKUP(IskanjeUčencev,SeznamUčencev[],5,FALSE),\"\")","v":"1997-03-28"},{"$nulls":3},"Visoka šola za umetnost",{"$nulls":7},7,null,"Luka Breznik",{"$nulls":3},123]
[null,"Ime staršev ali skrbnika 1",{"$nulls":8},"Odnos",{"$nulls":11},"Službena številka",{"$nulls":7},"Domača številka"]
[null,{"$f":"IFERROR(VLOOKUP(IskanjeUčencev,SeznamUčencev[],6,FALSE),\"\")","v":"Metka"},{"$nulls":8},{"$f":"IFERROR(VLOOKUP(IskanjeUčencev,SeznamUčencev[],7,FALSE),\"\")","v":"Novak"},{"$nulls":11},{"$f":"IFERROR(VLOOKUP(IskanjeUčencev,SeznamUčencev[],8,FALSE),\"\")","v":1235550134},{"$nulls":7},{"$f":"IFERROR(VLOOKUP(IskanjeUčencev,SeznamUčencev[],9,FALSE),\"\")","v":2345550134}]
[null,"Ime staršev ali skrbnika 2",{"$nulls":8},"Odnos",{"$nulls":11},"Službena številka",{"$nulls":7},"Domača številka"]
[null,{"$f":"IFERROR(VLOOKUP(IskanjeUčencev,SeznamUčencev[],10,FALSE),\"\")","v":"Miha Novak"},{"$nulls":8},{"$f":"IFERROR(VLOOKUP(IskanjeUčencev,SeznamUčencev[],11,FALSE),\"\")","v":"Oče"},{"$nulls":11},{"$f":"IFERROR(VLOOKUP(IskanjeUčencev,SeznamUčencev[],12,FALSE),\"\")","v":1235550134},{"$nulls":7},{"$f":"IFERROR(VLOOKUP(IskanjeUčencev,SeznamUčencev[],13,FALSE),\"\")","v":2345550134}]
[null,"Stik v sili",{"$nulls":8},"Odnos",{"$nulls":11},"Službena številka",{"$nulls":7},"Domača številka"]
[null,{"$f":"IFERROR(VLOOKUP(IskanjeUčencev,SeznamUčencev[],14,FALSE),\"\")","v":"Franci Župančič"},{"$nulls":8},{"$f":"IFERROR(VLOOKUP(IskanjeUčencev,SeznamUčencev[],15,FALSE),\"\")","v":"Dedek"},{"$nulls":11},{"$f":"IFERROR(VLOOKUP(IskanjeUčencev,SeznamUčencev[],16,FALSE),\"\")","v":7895550189},{"$nulls":7},{"$f":"IFERROR(VLOOKUP(IskanjeUčencev,SeznamUčencev[],17,FALSE),\"\")","v":7895550134}]
[]
[null,{"$f":"Avgust!C3","v":"BARVNI KLJUČ"},{"$f":"Avgust!D3","v":"Po"},{"$f":"Avgust!E3","v":"Pozen"},null,null,{"$f":"Avgust!H3","v":"E"},{"$f":"Avgust!I3","v":"Opravičen"},null,null,{"$f":"Avgust!L3","v":"N"},{"$f":"Avgust!M3","v":"Neopravičen"},{"$nulls":3},{"$f":"Avgust!P3","v":"P"},{"$f":"Avgust!Q3","v":"Prisoten"},null,null,{"$f":"Avgust!T3","v":"Ni"},{"$f":"Avgust!U3","v":"Ni pouka"}]
[]
[null,"Udeležba",{"$nulls":31},"Udeležba – skupaj"]
[{"$nulls":33},"Po","E","N","P"]
[null,"Avgust",1,2,3,4,5,6,7,8,9,10,11,12,13,14,15,16,17,18,19,20,21,22,23,24,25,26,27,28,29,30,31,{"$f":"COUNTIF($D17:$AH17,Koda1)","v":0},{"$f":"COUNTIF($D17:$AH17,Koda2)","v":1},{"$f":"COUNTIF($D17:$AH17,Koda3)","v":0},{"$f":"COUNTIF($D17:$AH17,Koda4)","v":19}]
[null,null,{"$f":"IFERROR(VLOOKUP(IskanjeUčencev,PrisotnostAvgusta[],3,FALSE),\"\")","v":"P"},{"$f":"IFERROR(VLOOKUP(IskanjeUčencev,PrisotnostAvgusta[],4,FALSE),\"\")","v":"P"},{"$f":"IFERROR(VLOOKUP(IskanjeUčencev,PrisotnostAvgusta[],5,FALSE),\"\")","v":"K"},{"$f":"IFERROR(VLOOKUP(IskanjeUčencev,PrisotnostAvgusta[],6,FALSE),\"\")","v":"K"},{"$f":"IFERROR(VLOOKUP(IskanjeUčencev,PrisotnostAvgusta[],7,FALSE),\"\")","v":"P"},{"$f":"IFERROR(VLOOKUP(IskanjeUčencev,PrisotnostAvgusta[],8,FALSE),\"\")","v":"Ni"},{"$f":"IFERROR(VLOOKUP(IskanjeUčencev,PrisotnostAvgusta[],9,FALSE),\"\")","v":"Ni"},{"$f":"IFERROR(VLOOKUP(IskanjeUčencev,PrisotnostAvgusta[],10,FALSE),\"\")","v":"P"},{"$f":"IFERROR(VLOOKUP(IskanjeUčencev,PrisotnostAvgusta[],11,FALSE),\"\")","v":"P"},{"$f":"IFERROR(VLOOKUP(IskanjeUčencev,PrisotnostAvgusta[],12,FALSE),\"\")","v":"E"},{"$f":"IFERROR(VLOOKUP(IskanjeUčencev,PrisotnostAvgusta[],13,FALSE),\"\")","v":"P"},{"$f":"IFERROR(VLOOKUP(IskanjeUčencev,PrisotnostAvgusta[],14,FALSE),\"\")","v":"P"},{"$f":"IFERROR(VLOOKUP(IskanjeUčencev,PrisotnostAvgusta[],15,FALSE),\"\")","v":"Ni"},{"$f":"IFERROR(VLOOKUP(IskanjeUčencev,PrisotnostAvgusta[],16,FALSE),\"\")","v":"NI"},{"$f":"IFERROR(VLOOKUP(IskanjeUčencev,PrisotnostAvgusta[],17,FALSE),\"\")","v":"P"},{"$f":"IFERROR(VLOOKUP(IskanjeUčencev,PrisotnostAvgusta[],18,FALSE),\"\")","v":"P"},{"$f":"IFERROR(VLOOKUP(IskanjeUčencev,PrisotnostAvgusta[],19,FALSE),\"\")","v":"P"},{"$f":"IFERROR(VLOOKUP(IskanjeUčencev,PrisotnostAvgusta[],20,FALSE),\"\")","v":"P"},{"$f":"IFERROR(VLOOKUP(IskanjeUčencev,PrisotnostAvgusta[],21,FALSE),\"\")","v":"P"},{"$f":"IFERROR(VLOOKUP(IskanjeUčencev,PrisotnostAvgusta[],22,FALSE),\"\")","v":"NI"},{"$f":"IFERROR(VLOOKUP(IskanjeUčencev,PrisotnostAvgusta[],23,FALSE),\"\")","v":"NI"},{"$f":"IFERROR(VLOOKUP(IskanjeUčencev,PrisotnostAvgusta[],24,FALSE),\"\")","v":"P"},{"$f":"IFERROR(VLOOKUP(IskanjeUčencev,PrisotnostAvgusta[],25,FALSE),\"\")","v":"P"},{"$f":"IFERROR(VLOOKUP(IskanjeUčencev,PrisotnostAvgusta[],26,FALSE),\"\")","v":"P"},{"$f":"IFERROR(VLOOKUP(IskanjeUčencev,PrisotnostAvgusta[],27,FALSE),\"\")","v":"P"},{"$f":"IFERROR(VLOOKUP(IskanjeUčencev,PrisotnostAvgusta[],28,FALSE),\"\")","v":"P"},{"$f":"IFERROR(VLOOKUP(IskanjeUčencev,PrisotnostAvgusta[],29,FALSE),\"\")","v":"NI"},{"$f":"IFERROR(VLOOKUP(IskanjeUčencev,PrisotnostAvgusta[],30,FALSE),\"\")","v":"NI"},{"$f":"IFERROR(VLOOKUP(IskanjeUčencev,PrisotnostAvgusta[],31,FALSE),\"\")","v":"P"},{"$f":"IFERROR(VLOOKUP(IskanjeUčencev,PrisotnostAvgusta[],32,FALSE),\"\")","v":"P"},{"$f":"IFERROR(VLOOKUP(IskanjeUčencev,PrisotnostAvgusta[],33,FALSE),\"\")","v":"P"}]
[null,"September",1,2,3,4,5,6,7,8,9,10,11,12,13,14,15,16,17,18,19,20,21,22,23,24,25,26,27,28,29,30,null,{"$f":"COUNTIF($D19:$AH19,Koda1)","v":0},{"$f":"COUNTIF($D19:$AH19,Koda2)","v":0},{"$f":"COUNTIF($D19:$AH19,Koda3)","v":0},{"$f":"COUNTIF($D19:$AH19,Koda4)","v":0}]
[null,null,{"$f":"IFERROR(VLOOKUP(IskanjeUčencev,PrisotnostSeptembra[],3,FALSE),\"\")","v":""},{"$f":"IFERROR(VLOOKUP(IskanjeUčencev,PrisotnostSeptembra[],4,FALSE),\"\")","v":""},{"$f":"IFERROR(VLOOKUP(IskanjeUčencev,PrisotnostSeptembra[],5,FALSE),\"\")","v":""},{"$f":"IFERROR(VLOOKUP(IskanjeUčencev,PrisotnostSeptembra[],6,FALSE),\"\")","v":""},{"$f":"IFERROR(VLOOKUP(IskanjeUčencev,PrisotnostSeptembra[],7,FALSE),\"\")","v":""},{"$f":"IFERROR(VLOOKUP(IskanjeUčencev,PrisotnostSeptembra[],8,FALSE),\"\")","v":""},{"$f":"IFERROR(VLOOKUP(IskanjeUčencev,PrisotnostSeptembra[],9,FALSE),\"\")","v":""},{"$f":"IFERROR(VLOOKUP(IskanjeUčencev,PrisotnostSeptembra[],10,FALSE),\"\")","v":""},{"$f":"IFERROR(VLOOKUP(IskanjeUčencev,PrisotnostSeptembra[],11,FALSE),\"\")","v":""},{"$f":"IFERROR(VLOOKUP(IskanjeUčencev,PrisotnostSeptembra[],12,FALSE),\"\")","v":""},{"$f":"IFERROR(VLOOKUP(IskanjeUčencev,PrisotnostSeptembra[],13,FALSE),\"\")","v":""},{"$f":"IFERROR(VLOOKUP(IskanjeUčencev,PrisotnostSeptembra[],14,FALSE),\"\")","v":""},{"$f":"IFERROR(VLOOKUP(IskanjeUčencev,PrisotnostSeptembra[],15,FALSE),\"\")","v":""},{"$f":"IFERROR(VLOOKUP(IskanjeUčencev,PrisotnostSeptembra[],16,FALSE),\"\")","v":""},{"$f":"IFERROR(VLOOKUP(IskanjeUčencev,PrisotnostSeptembra[],17,FALSE),\"\")","v":""},{"$f":"IFERROR(VLOOKUP(IskanjeUčencev,PrisotnostSeptembra[],18,FALSE),\"\")","v":""},{"$f":"IFERROR(VLOOKUP(IskanjeUčencev,PrisotnostSeptembra[],19,FALSE),\"\")","v":""},{"$f":"IFERROR(VLOOKUP(IskanjeUčencev,PrisotnostSeptembra[],20,FALSE),\"\")","v":""},{"$f":"IFERROR(VLOOKUP(IskanjeUčencev,PrisotnostSeptembra[],21,FALSE),\"\")","v":""},{"$f":"IFERROR(VLOOKUP(IskanjeUčencev,PrisotnostSeptembra[],22,FALSE),\"\")","v":""},{"$f":"IFERROR(VLOOKUP(IskanjeUčencev,PrisotnostSeptembra[],23,FALSE),\"\")","v":""},{"$f":"IFERROR(VLOOKUP(IskanjeUčencev,PrisotnostSeptembra[],24,FALSE),\"\")","v":""},{"$f":"IFERROR(VLOOKUP(IskanjeUčencev,PrisotnostSeptembra[],25,FALSE),\"\")","v":""},{"$f":"IFERROR(VLOOKUP(IskanjeUčencev,PrisotnostSeptembra[],26,FALSE),\"\")","v":""},{"$f":"IFERROR(VLOOKUP(IskanjeUčencev,PrisotnostSeptembra[],27,FALSE),\"\")","v":""},{"$f":"IFERROR(VLOOKUP(IskanjeUčencev,PrisotnostSeptembra[],28,FALSE),\"\")","v":""},{"$f":"IFERROR(VLOOKUP(IskanjeUčencev,PrisotnostSeptembra[],29,FALSE),\"\")","v":""},{"$f":"IFERROR(VLOOKUP(IskanjeUčencev,PrisotnostSeptembra[],30,FALSE),\"\")","v":""},{"$f":"IFERROR(VLOOKUP(IskanjeUčencev,PrisotnostSeptembra[],31,FALSE),\"\")","v":""},{"$f":"IFERROR(VLOOKUP(IskanjeUčencev,PrisotnostSeptembra[],32,FALSE),\"\")","v":""}]
[null,"Oktober",1,2,3,4,5,6,7,8,9,10,11,12,13,14,15,16,17,18,19,20,21,22,23,24,25,26,27,28,29,30,31,{"$f":"COUNTIF($D21:$AH21,Koda1)","v":0},{"$f":"COUNTIF($D21:$AH21,Koda2)","v":0},{"$f":"COUNTIF($D21:$AH21,Koda3)","v":0},{"$f":"COUNTIF($D21:$AH21,Koda4)","v":0}]
[null,null,{"$f":"IFERROR(VLOOKUP(IskanjeUčencev,PrisotnostOktobra[],3,FALSE),\"\")","v":""},{"$f":"IFERROR(VLOOKUP(IskanjeUčencev,PrisotnostOktobra[],4,FALSE),\"\")","v":""},{"$f":"IFERROR(VLOOKUP(IskanjeUčencev,PrisotnostOktobra[],5,FALSE),\"\")","v":""},{"$f":"IFERROR(VLOOKUP(IskanjeUčencev,PrisotnostOktobra[],6,FALSE),\"\")","v":""},{"$f":"IFERROR(VLOOKUP(IskanjeUčencev,PrisotnostOktobra[],7,FALSE),\"\")","v":""},{"$f":"IFERROR(VLOOKUP(IskanjeUčencev,PrisotnostOktobra[],8,FALSE),\"\")","v":""},{"$f":"IFERROR(VLOOKUP(IskanjeUčencev,PrisotnostOktobra[],9,FALSE),\"\")","v":""},{"$f":"IFERROR(VLOOKUP(IskanjeUčencev,PrisotnostOktobra[],10,FALSE),\"\")","v":""},{"$f":"IFERROR(VLOOKUP(IskanjeUčencev,PrisotnostOktobra[],11,FALSE),\"\")","v":""},{"$f":"IFERROR(VLOOKUP(IskanjeUčencev,PrisotnostOktobra[],12,FALSE),\"\")","v":""},{"$f":"IFERROR(VLOOKUP(IskanjeUčencev,PrisotnostOktobra[],13,FALSE),\"\")","v":""},{"$f":"IFERROR(VLOOKUP(IskanjeUčencev,PrisotnostOktobra[],14,FALSE),\"\")","v":""},{"$f":"IFERROR(VLOOKUP(IskanjeUčencev,PrisotnostOktobra[],15,FALSE),\"\")","v":""},{"$f":"IFERROR(VLOOKUP(IskanjeUčencev,PrisotnostOktobra[],16,FALSE),\"\")","v":""},{"$f":"IFERROR(VLOOKUP(IskanjeUčencev,PrisotnostOktobra[],17,FALSE),\"\")","v":""},{"$f":"IFERROR(VLOOKUP(IskanjeUčencev,PrisotnostOktobra[],18,FALSE),\"\")","v":""},{"$f":"IFERROR(VLOOKUP(IskanjeUčencev,PrisotnostOktobra[],19,FALSE),\"\")","v":""},{"$f":"IFERROR(VLOOKUP(IskanjeUčencev,PrisotnostOktobra[],20,FALSE),\"\")","v":""},{"$f":"IFERROR(VLOOKUP(IskanjeUčencev,PrisotnostOktobra[],21,FALSE),\"\")","v":""},{"$f":"IFERROR(VLOOKUP(IskanjeUčencev,PrisotnostOktobra[],22,FALSE),\"\")","v":""},{"$f":"IFERROR(VLOOKUP(IskanjeUčencev,PrisotnostOktobra[],23,FALSE),\"\")","v":""},{"$f":"IFERROR(VLOOKUP(IskanjeUčencev,PrisotnostOktobra[],24,FALSE),\"\")","v":""},{"$f":"IFERROR(VLOOKUP(IskanjeUčencev,PrisotnostOktobra[],25,FALSE),\"\")","v":""},{"$f":"IFERROR(VLOOKUP(IskanjeUčencev,PrisotnostOktobra[],26,FALSE),\"\")","v":""},{"$f":"IFERROR(VLOOKUP(IskanjeUčencev,PrisotnostOktobra[],27,FALSE),\"\")","v":""},{"$f":"IFERROR(VLOOKUP(IskanjeUčencev,PrisotnostOktobra[],28,FALSE),\"\")","v":""},{"$f":"IFERROR(VLOOKUP(IskanjeUčencev,PrisotnostOktobra[],29,FALSE),\"\")","v":""},{"$f":"IFERROR(VLOOKUP(IskanjeUčencev,PrisotnostOktobra[],30,FALSE),\"\")","v":""},{"$f":"IFERROR(VLOOKUP(IskanjeUčencev,PrisotnostOktobra[],31,FALSE),\"\")","v":""},{"$f":"IFERROR(VLOOKUP(IskanjeUčencev,PrisotnostOktobra[],32,FALSE),\"\")","v":""},{"$f":"IFERROR(VLOOKUP(IskanjeUčencev,PrisotnostOktobra[],33,FALSE),\"\")","v":""}]
[null,"November",1,2,3,4,5,6,7,8,9,10,11,12,13,14,15,16,17,18,19,20,21,22,23,24,25,26,27,28,29,30,null,{"$f":"COUNTIF($D23:$AH23,Koda1)","v":0},{"$f":"COUNTIF($D23:$AH23,Koda2)","v":0},{"$f":"COUNTIF($D23:$AH23,Koda3)","v":0},{"$f":"COUNTIF($D23:$AH23,Koda4)","v":0}]
[null,null,{"$f":"IFERROR(VLOOKUP(IskanjeUčencev,PrisotnostNovembra[],3,FALSE),\"\")","v":""},{"$f":"IFERROR(VLOOKUP(IskanjeUčencev,PrisotnostNovembra[],4,FALSE),\"\")","v":""},{"$f":"IFERROR(VLOOKUP(IskanjeUčencev,PrisotnostNovembra[],5,FALSE),\"\")","v":""},{"$f":"IFERROR(VLOOKUP(IskanjeUčencev,PrisotnostNovembra[],6,FALSE),\"\")","v":""},{"$f":"IFERROR(VLOOKUP(IskanjeUčencev,PrisotnostNovembra[],7,FALSE),\"\")","v":""},{"$f":"IFERROR(VLOOKUP(IskanjeUčencev,PrisotnostNovembra[],8,FALSE),\"\")","v":""},{"$f":"IFERROR(VLOOKUP(IskanjeUčencev,PrisotnostNovembra[],9,FALSE),\"\")","v":""},{"$f":"IFERROR(VLOOKUP(IskanjeUčencev,PrisotnostNovembra[],10,FALSE),\"\")","v":""},{"$f":"IFERROR(VLOOKUP(IskanjeUčencev,PrisotnostNovembra[],11,FALSE),\"\")","v":""},{"$f":"IFERROR(VLOOKUP(IskanjeUčencev,PrisotnostNovembra[],12,FALSE),\"\")","v":""},{"$f":"IFERROR(VLOOKUP(IskanjeUčencev,PrisotnostNovembra[],13,FALSE),\"\")","v":""},{"$f":"IFERROR(VLOOKUP(IskanjeUčencev,PrisotnostNovembra[],14,FALSE),\"\")","v":""},{"$f":"IFERROR(VLOOKUP(IskanjeUčencev,PrisotnostNovembra[],15,FALSE),\"\")","v":""},{"$f":"IFERROR(VLOOKUP(IskanjeUčencev,PrisotnostNovembra[],16,FALSE),\"\")","v":""},{"$f":"IFERROR(VLOOKUP(IskanjeUčencev,PrisotnostNovembra[],17,FALSE),\"\")","v":""},{"$f":"IFERROR(VLOOKUP(IskanjeUčencev,PrisotnostNovembra[],18,FALSE),\"\")","v":""},{"$f":"IFERROR(VLOOKUP(IskanjeUčencev,PrisotnostNovembra[],19,FALSE),\"\")","v":""},{"$f":"IFERROR(VLOOKUP(IskanjeUčencev,PrisotnostNovembra[],20,FALSE),\"\")","v":""},{"$f":"IFERROR(VLOOKUP(IskanjeUčencev,PrisotnostNovembra[],21,FALSE),\"\")","v":""},{"$f":"IFERROR(VLOOKUP(IskanjeUčencev,PrisotnostNovembra[],22,FALSE),\"\")","v":""},{"$f":"IFERROR(VLOOKUP(IskanjeUčencev,PrisotnostNovembra[],23,FALSE),\"\")","v":""},{"$f":"IFERROR(VLOOKUP(IskanjeUčencev,PrisotnostNovembra[],24,FALSE),\"\")","v":""},{"$f":"IFERROR(VLOOKUP(IskanjeUčencev,PrisotnostNovembra[],25,FALSE),\"\")","v":""},{"$f":"IFERROR(VLOOKUP(IskanjeUčencev,PrisotnostNovembra[],26,FALSE),\"\")","v":""},{"$f":"IFERROR(VLOOKUP(IskanjeUčencev,PrisotnostNovembra[],27,FALSE),\"\")","v":""},{"$f":"IFERROR(VLOOKUP(IskanjeUčencev,PrisotnostNovembra[],28,FALSE),\"\")","v":""},{"$f":"IFERROR(VLOOKUP(IskanjeUčencev,PrisotnostNovembra[],29,FALSE),\"\")","v":""},{"$f":"IFERROR(VLOOKUP(IskanjeUčencev,PrisotnostNovembra[],30,FALSE),\"\")","v":""},{"$f":"IFERROR(VLOOKUP(IskanjeUčencev,PrisotnostNovembra[],31,FALSE),\"\")","v":""},{"$f":"IFERROR(VLOOKUP(IskanjeUčencev,PrisotnostNovembra[],32,FALSE),\"\")","v":""}]
[null,"December",1,2,3,4,5,6,7,8,9,10,11,12,13,14,15,16,17,18,19,20,21,22,23,24,25,26,27,28,29,30,31,{"$f":"COUNTIF($D25:$AH25,Koda1)","v":0},{"$f":"COUNTIF($D25:$AH25,Koda2)","v":0},{"$f":"COUNTIF($D25:$AH25,Koda3)","v":0},{"$f":"COUNTIF($D25:$AH25,Koda4)","v":0}]
[null,null,{"$f":"IFERROR(VLOOKUP(IskanjeUčencev,PrisotnostDecembra[],3,FALSE),\"\")","v":""},{"$f":"IFERROR(VLOOKUP(IskanjeUčencev,PrisotnostDecembra[],4,FALSE),\"\")","v":""},{"$f":"IFERROR(VLOOKUP(IskanjeUčencev,PrisotnostDecembra[],5,FALSE),\"\")","v":""},{"$f":"IFERROR(VLOOKUP(IskanjeUčencev,PrisotnostDecembra[],6,FALSE),\"\")","v":""},{"$f":"IFERROR(VLOOKUP(IskanjeUčencev,PrisotnostDecembra[],7,FALSE),\"\")","v":""},{"$f":"IFERROR(VLOOKUP(IskanjeUčencev,PrisotnostDecembra[],8,FALSE),\"\")","v":""},{"$f":"IFERROR(VLOOKUP(IskanjeUčencev,PrisotnostDecembra[],9,FALSE),\"\")","v":""},{"$f":"IFERROR(VLOOKUP(IskanjeUčencev,PrisotnostDecembra[],10,FALSE),\"\")","v":""},{"$f":"IFERROR(VLOOKUP(IskanjeUčencev,PrisotnostDecembra[],11,FALSE),\"\")","v":""},{"$f":"IFERROR(VLOOKUP(IskanjeUčencev,PrisotnostDecembra[],12,FALSE),\"\")","v":""},{"$f":"IFERROR(VLOOKUP(IskanjeUčencev,PrisotnostDecembra[],13,FALSE),\"\")","v":""},{"$f":"IFERROR(VLOOKUP(IskanjeUčencev,PrisotnostDecembra[],14,FALSE),\"\")","v":""},{"$f":"IFERROR(VLOOKUP(IskanjeUčencev,PrisotnostDecembra[],15,FALSE),\"\")","v":""},{"$f":"IFERROR(VLOOKUP(IskanjeUčencev,PrisotnostDecembra[],16,FALSE),\"\")","v":""},{"$f":"IFERROR(VLOOKUP(IskanjeUčencev,PrisotnostDecembra[],17,FALSE),\"\")","v":""},{"$f":"IFERROR(VLOOKUP(IskanjeUčencev,PrisotnostDecembra[],18,FALSE),\"\")","v":""},{"$f":"IFERROR(VLOOKUP(IskanjeUčencev,PrisotnostDecembra[],19,FALSE),\"\")","v":""},{"$f":"IFERROR(VLOOKUP(IskanjeUčencev,PrisotnostDecembra[],20,FALSE),\"\")","v":""},{"$f":"IFERROR(VLOOKUP(IskanjeUčencev,PrisotnostDecembra[],21,FALSE),\"\")","v":""},{"$f":"IFERROR(VLOOKUP(IskanjeUčencev,PrisotnostDecembra[],22,FALSE),\"\")","v":""},{"$f":"IFERROR(VLOOKUP(IskanjeUčencev,PrisotnostDecembra[],23,FALSE),\"\")","v":""},{"$f":"IFERROR(VLOOKUP(IskanjeUčencev,PrisotnostDecembra[],24,FALSE),\"\")","v":""},{"$f":"IFERROR(VLOOKUP(IskanjeUčencev,PrisotnostDecembra[],25,FALSE),\"\")","v":""},{"$f":"IFERROR(VLOOKUP(IskanjeUčencev,PrisotnostDecembra[],26,FALSE),\"\")","v":""},{"$f":"IFERROR(VLOOKUP(IskanjeUčencev,PrisotnostDecembra[],27,FALSE),\"\")","v":""},{"$f":"IFERROR(VLOOKUP(IskanjeUčencev,PrisotnostDecembra[],28,FALSE),\"\")","v":""},{"$f":"IFERROR(VLOOKUP(IskanjeUčencev,PrisotnostDecembra[],29,FALSE),\"\")","v":""},{"$f":"IFERROR(VLOOKUP(IskanjeUčencev,PrisotnostDecembra[],30,FALSE),\"\")","v":""},{"$f":"IFERROR(VLOOKUP(IskanjeUčencev,PrisotnostDecembra[],31,FALSE),\"\")","v":""},{"$f":"IFERROR(VLOOKUP(IskanjeUčencev,PrisotnostDecembra[],32,FALSE),\"\")","v":""},{"$f":"IFERROR(VLOOKUP(IskanjeUčencev,PrisotnostDecembra[],33,FALSE),\"\")","v":""}]
[null,"Januar",1,2,3,4,5,6,7,8,9,10,11,12,13,14,15,16,17,18,19,20,21,22,23,24,25,26,27,28,29,30,31,{"$f":"COUNTIF($D27:$AH27,Koda1)","v":0},{"$f":"COUNTIF($D27:$AH27,Koda2)","v":0},{"$f":"COUNTIF($D27:$AH27,Koda3)","v":0},{"$f":"COUNTIF($D27:$AH27,Koda4)","v":0}]
[null,null,{"$f":"IFERROR(VLOOKUP(IskanjeUčencev,PrisotnostJanuarja[],3,FALSE),\"\")","v":""},{"$f":"IFERROR(VLOOKUP(IskanjeUčencev,PrisotnostJanuarja[],4,FALSE),\"\")","v":""},{"$f":"IFERROR(VLOOKUP(IskanjeUčencev,PrisotnostJanuarja[],5,FALSE),\"\")","v":""},{"$f":"IFERROR(VLOOKUP(IskanjeUčencev,PrisotnostJanuarja[],6,FALSE),\"\")","v":""},{"$f":"IFERROR(VLOOKUP(IskanjeUčencev,PrisotnostJanuarja[],7,FALSE),\"\")","v":""},{"$f":"IFERROR(VLOOKUP(IskanjeUčencev,PrisotnostJanuarja[],8,FALSE),\"\")","v":""},{"$f":"IFERROR(VLOOKUP(IskanjeUčencev,PrisotnostJanuarja[],9,FALSE),\"\")","v":""},{"$f":"IFERROR(VLOOKUP(IskanjeUčencev,PrisotnostJanuarja[],10,FALSE),\"\")","v":""},{"$f":"IFERROR(VLOOKUP(IskanjeUčencev,PrisotnostJanuarja[],11,FALSE),\"\")","v":""},{"$f":"IFERROR(VLOOKUP(IskanjeUčencev,PrisotnostJanuarja[],12,FALSE),\"\")","v":""},{"$f":"IFERROR(VLOOKUP(IskanjeUčencev,PrisotnostJanuarja[],13,FALSE),\"\")","v":""},{"$f":"IFERROR(VLOOKUP(IskanjeUčencev,PrisotnostJanuarja[],14,FALSE),\"\")","v":""},{"$f":"IFERROR(VLOOKUP(IskanjeUčencev,PrisotnostJanuarja[],15,FALSE),\"\")","v":""},{"$f":"IFERROR(VLOOKUP(IskanjeUčencev,PrisotnostJanuarja[],16,FALSE),\"\")","v":""},{"$f":"IFERROR(VLOOKUP(IskanjeUčencev,PrisotnostJanuarja[],17,FALSE),\"\")","v":""},{"$f":"IFERROR(VLOOKUP(IskanjeUčencev,PrisotnostJanuarja[],18,FALSE),\"\")","v":""},{"$f":"IFERROR(VLOOKUP(IskanjeUčencev,PrisotnostJanuarja[],19,FALSE),\"\")","v":""},{"$f":"IFERROR(VLOOKUP(IskanjeUčencev,PrisotnostJanuarja[],20,FALSE),\"\")","v":""},{"$f":"IFERROR(VLOOKUP(IskanjeUčencev,PrisotnostJanuarja[],21,FALSE),\"\")","v":""},{"$f":"IFERROR(VLOOKUP(IskanjeUčencev,PrisotnostJanuarja[],22,FALSE),\"\")","v":""},{"$f":"IFERROR(VLOOKUP(IskanjeUčencev,PrisotnostJanuarja[],23,FALSE),\"\")","v":""},{"$f":"IFERROR(VLOOKUP(IskanjeUčencev,PrisotnostJanuarja[],24,FALSE),\"\")","v":""},{"$f":"IFERROR(VLOOKUP(IskanjeUčencev,PrisotnostJanuarja[],25,FALSE),\"\")","v":""},{"$f":"IFERROR(VLOOKUP(IskanjeUčencev,PrisotnostJanuarja[],26,FALSE),\"\")","v":""},{"$f":"IFERROR(VLOOKUP(IskanjeUčencev,PrisotnostJanuarja[],27,FALSE),\"\")","v":""},{"$f":"IFERROR(VLOOKUP(IskanjeUčencev,PrisotnostJanuarja[],28,FALSE),\"\")","v":""},{"$f":"IFERROR(VLOOKUP(IskanjeUčencev,PrisotnostJanuarja[],29,FALSE),\"\")","v":""},{"$f":"IFERROR(VLOOKUP(IskanjeUčencev,PrisotnostJanuarja[],30,FALSE),\"\")","v":""},{"$f":"IFERROR(VLOOKUP(IskanjeUčencev,PrisotnostJanuarja[],31,FALSE),\"\")","v":""},{"$f":"IFERROR(VLOOKUP(IskanjeUčencev,PrisotnostJanuarja[],32,FALSE),\"\")","v":""},{"$f":"IFERROR(VLOOKUP(IskanjeUčencev,PrisotnostJanuarja[],33,FALSE),\"\")","v":""}]
[null,"Februar",1,2,3,4,5,6,7,8,9,10,11,12,13,14,15,16,17,18,19,20,21,22,23,24,25,26,27,28,29,null,null,{"$f":"COUNTIF($D29:$AH29,Koda1)","v":0},{"$f":"COUNTIF($D29:$AH29,Koda2)","v":0},{"$f":"COUNTIF($D29:$AH29,Koda3)","v":0},{"$f":"COUNTIF($D29:$AH29,Koda4)","v":0}]
[null,null,{"$f":"IFERROR(VLOOKUP(IskanjeUčencev,PrisotnostFebruarja[],3,FALSE),\"\")","v":""},{"$f":"IFERROR(VLOOKUP(IskanjeUčencev,PrisotnostFebruarja[],4,FALSE),\"\")","v":""},{"$f":"IFERROR(VLOOKUP(IskanjeUčencev,PrisotnostFebruarja[],5,FALSE),\"\")","v":""},{"$f":"IFERROR(VLOOKUP(IskanjeUčencev,PrisotnostFebruarja[],6,FALSE),\"\")","v":""},{"$f":"IFERROR(VLOOKUP(IskanjeUčencev,PrisotnostFebruarja[],7,FALSE),\"\")","v":""},{"$f":"IFERROR(VLOOKUP(IskanjeUčencev,PrisotnostFebruarja[],8,FALSE),\"\")","v":""},{"$f":"IFERROR(VLOOKUP(IskanjeUčencev,PrisotnostFebruarja[],9,FALSE),\"\")","v":""},{"$f":"IFERROR(VLOOKUP(IskanjeUčencev,PrisotnostFebruarja[],10,FALSE),\"\")","v":""},{"$f":"IFERROR(VLOOKUP(IskanjeUčencev,PrisotnostFebruarja[],11,FALSE),\"\")","v":""},{"$f":"IFERROR(VLOOKUP(IskanjeUčencev,PrisotnostFebruarja[],12,FALSE),\"\")","v":""},{"$f":"IFERROR(VLOOKUP(IskanjeUčencev,PrisotnostFebruarja[],13,FALSE),\"\")","v":""},{"$f":"IFERROR(VLOOKUP(IskanjeUčencev,PrisotnostFebruarja[],14,FALSE),\"\")","v":""},{"$f":"IFERROR(VLOOKUP(IskanjeUčencev,PrisotnostFebruarja[],15,FALSE),\"\")","v":""},{"$f":"IFERROR(VLOOKUP(IskanjeUčencev,PrisotnostFebruarja[],16,FALSE),\"\")","v":""},{"$f":"IFERROR(VLOOKUP(IskanjeUčencev,PrisotnostFebruarja[],17,FALSE),\"\")","v":""},{"$f":"IFERROR(VLOOKUP(IskanjeUčencev,PrisotnostFebruarja[],18,FALSE),\"\")","v":""},{"$f":"IFERROR(VLOOKUP(IskanjeUčencev,PrisotnostFebruarja[],19,FALSE),\"\")","v":""},{"$f":"IFERROR(VLOOKUP(IskanjeUčencev,PrisotnostFebruarja[],20,FALSE),\"\")","v":""},{"$f":"IFERROR(VLOOKUP(IskanjeUčencev,PrisotnostFebruarja[],21,FALSE),\"\")","v":""},{"$f":"IFERROR(VLOOKUP(IskanjeUčencev,PrisotnostFebruarja[],22,FALSE),\"\")","v":""},{"$f":"IFERROR(VLOOKUP(IskanjeUčencev,PrisotnostFebruarja[],23,FALSE),\"\")","v":""},{"$f":"IFERROR(VLOOKUP(IskanjeUčencev,PrisotnostFebruarja[],24,FALSE),\"\")","v":""},{"$f":"IFERROR(VLOOKUP(IskanjeUčencev,PrisotnostFebruarja[],25,FALSE),\"\")","v":""},{"$f":"IFERROR(VLOOKUP(IskanjeUčencev,PrisotnostFebruarja[],26,FALSE),\"\")","v":""},{"$f":"IFERROR(VLOOKUP(IskanjeUčencev,PrisotnostFebruarja[],27,FALSE),\"\")","v":""},{"$f":"IFERROR(VLOOKUP(IskanjeUčencev,PrisotnostFebruarja[],28,FALSE),\"\")","v":""},{"$f":"IFERROR(VLOOKUP(IskanjeUčencev,PrisotnostFebruarja[],29,FALSE),\"\")","v":""},{"$f":"IFERROR(VLOOKUP(IskanjeUčencev,PrisotnostFebruarja[],30,FALSE),\"\")","v":""},{"$f":"IFERROR(VLOOKUP(IskanjeUčencev,PrisotnostFebruarja[],31,FALSE),\"\")","v":""}]
[null,"Marec",1,2,3,4,5,6,7,8,9,10,11,12,13,14,15,16,17,18,19,20,21,22,23,24,25,26,27,28,29,30,31,{"$f":"COUNTIF($D31:$AH31,Koda1)","v":0},{"$f":"COUNTIF($D31:$AH31,Koda2)","v":0},{"$f":"COUNTIF($D31:$AH31,Koda3)","v":0},{"$f":"COUNTIF($D31:$AH31,Koda4)","v":0}]
[null,null,{"$f":"IFERROR(VLOOKUP(IskanjeUčencev,PrisotnostMarca[],3,FALSE),\"\")","v":""},{"$f":"IFERROR(VLOOKUP(IskanjeUčencev,PrisotnostMarca[],4,FALSE),\"\")","v":""},{"$f":"IFERROR(VLOOKUP(IskanjeUčencev,PrisotnostMarca[],5,FALSE),\"\")","v":""},{"$f":"IFERROR(VLOOKUP(IskanjeUčencev,PrisotnostMarca[],6,FALSE),\"\")","v":""},{"$f":"IFERROR(VLOOKUP(IskanjeUčencev,PrisotnostMarca[],7,FALSE),\"\")","v":""},{"$f":"IFERROR(VLOOKUP(IskanjeUčencev,PrisotnostMarca[],8,FALSE),\"\")","v":""},{"$f":"IFERROR(VLOOKUP(IskanjeUčencev,PrisotnostMarca[],9,FALSE),\"\")","v":""},{"$f":"IFERROR(VLOOKUP(IskanjeUčencev,PrisotnostMarca[],10,FALSE),\"\")","v":""},{"$f":"IFERROR(VLOOKUP(IskanjeUčencev,PrisotnostMarca[],11,FALSE),\"\")","v":""},{"$f":"IFERROR(VLOOKUP(IskanjeUčencev,PrisotnostMarca[],12,FALSE),\"\")","v":""},{"$f":"IFERROR(VLOOKUP(IskanjeUčencev,PrisotnostMarca[],13,FALSE),\"\")","v":""},{"$f":"IFERROR(VLOOKUP(IskanjeUčencev,PrisotnostMarca[],14,FALSE),\"\")","v":""},{"$f":"IFERROR(VLOOKUP(IskanjeUčencev,PrisotnostMarca[],15,FALSE),\"\")","v":""},{"$f":"IFERROR(VLOOKUP(IskanjeUčencev,PrisotnostMarca[],16,FALSE),\"\")","v":""},{"$f":"IFERROR(VLOOKUP(IskanjeUčencev,PrisotnostMarca[],17,FALSE),\"\")","v":""},{"$f":"IFERROR(VLOOKUP(IskanjeUčencev,PrisotnostMarca[],18,FALSE),\"\")","v":""},{"$f":"IFERROR(VLOOKUP(IskanjeUčencev,PrisotnostMarca[],19,FALSE),\"\")","v":""},{"$f":"IFERROR(VLOOKUP(IskanjeUčencev,PrisotnostMarca[],20,FALSE),\"\")","v":""},{"$f":"IFERROR(VLOOKUP(IskanjeUčencev,PrisotnostMarca[],21,FALSE),\"\")","v":""},{"$f":"IFERROR(VLOOKUP(IskanjeUčencev,PrisotnostMarca[],22,FALSE),\"\")","v":""},{"$f":"IFERROR(VLOOKUP(IskanjeUčencev,PrisotnostMarca[],23,FALSE),\"\")","v":""},{"$f":"IFERROR(VLOOKUP(IskanjeUčencev,PrisotnostMarca[],24,FALSE),\"\")","v":""},{"$f":"IFERROR(VLOOKUP(IskanjeUčencev,PrisotnostMarca[],25,FALSE),\"\")","v":""},{"$f":"IFERROR(VLOOKUP(IskanjeUčencev,PrisotnostMarca[],26,FALSE),\"\")","v":""},{"$f":"IFERROR(VLOOKUP(IskanjeUčencev,PrisotnostMarca[],27,FALSE),\"\")","v":""},{"$f":"IFERROR(VLOOKUP(IskanjeUčencev,PrisotnostMarca[],28,FALSE),\"\")","v":""},{"$f":"IFERROR(VLOOKUP(IskanjeUčencev,PrisotnostMarca[],29,FALSE),\"\")","v":""},{"$f":"IFERROR(VLOOKUP(IskanjeUčencev,PrisotnostMarca[],30,FALSE),\"\")","v":""},{"$f":"IFERROR(VLOOKUP(IskanjeUčencev,PrisotnostMarca[],31,FALSE),\"\")","v":""},{"$f":"IFERROR(VLOOKUP(IskanjeUčencev,PrisotnostMarca[],32,FALSE),\"\")","v":""},{"$f":"IFERROR(VLOOKUP(IskanjeUčencev,PrisotnostMarca[],33,FALSE),\"\")","v":""}]
[null,"April",1,2,3,4,5,6,7,8,9,10,11,12,13,14,15,16,17,18,19,20,21,22,23,24,25,26,27,28,29,30,null,{"$f":"COUNTIF($D33:$AH33,Koda1)","v":0},{"$f":"COUNTIF($D33:$AH33,Koda2)","v":0},{"$f":"COUNTIF($D33:$AH33,Koda3)","v":0},{"$f":"COUNTIF($D33:$AH33,Koda4)","v":0}]
[null,null,{"$f":"IFERROR(VLOOKUP(IskanjeUčencev,PrisotnostAprila[],3,FALSE),\"\")","v":""},{"$f":"IFERROR(VLOOKUP(IskanjeUčencev,PrisotnostAprila[],4,FALSE),\"\")","v":""},{"$f":"IFERROR(VLOOKUP(IskanjeUčencev,PrisotnostAprila[],5,FALSE),\"\")","v":""},{"$f":"IFERROR(VLOOKUP(IskanjeUčencev,PrisotnostAprila[],6,FALSE),\"\")","v":""},{"$f":"IFERROR(VLOOKUP(IskanjeUčencev,PrisotnostAprila[],7,FALSE),\"\")","v":""},{"$f":"IFERROR(VLOOKUP(IskanjeUčencev,PrisotnostAprila[],8,FALSE),\"\")","v":""},{"$f":"IFERROR(VLOOKUP(IskanjeUčencev,PrisotnostAprila[],9,FALSE),\"\")","v":""},{"$f":"IFERROR(VLOOKUP(IskanjeUčencev,PrisotnostAprila[],10,FALSE),\"\")","v":""},{"$f":"IFERROR(VLOOKUP(IskanjeUčencev,PrisotnostAprila[],11,FALSE),\"\")","v":""},{"$f":"IFERROR(VLOOKUP(IskanjeUčencev,PrisotnostAprila[],12,FALSE),\"\")","v":""},{"$f":"IFERROR(VLOOKUP(IskanjeUčencev,PrisotnostAprila[],13,FALSE),\"\")","v":""},{"$f":"IFERROR(VLOOKUP(IskanjeUčencev,PrisotnostAprila[],14,FALSE),\"\")","v":""},{"$f":"IFERROR(VLOOKUP(IskanjeUčencev,PrisotnostAprila[],15,FALSE),\"\")","v":""},{"$f":"IFERROR(VLOOKUP(IskanjeUčencev,PrisotnostAprila[],16,FALSE),\"\")","v":""},{"$f":"IFERROR(VLOOKUP(IskanjeUčencev,PrisotnostAprila[],17,FALSE),\"\")","v":""},{"$f":"IFERROR(VLOOKUP(IskanjeUčencev,PrisotnostAprila[],18,FALSE),\"\")","v":""},{"$f":"IFERROR(VLOOKUP(IskanjeUčencev,PrisotnostAprila[],19,FALSE),\"\")","v":""},{"$f":"IFERROR(VLOOKUP(IskanjeUčencev,PrisotnostAprila[],20,FALSE),\"\")","v":""},{"$f":"IFERROR(VLOOKUP(IskanjeUčencev,PrisotnostAprila[],21,FALSE),\"\")","v":""},{"$f":"IFERROR(VLOOKUP(IskanjeUčencev,PrisotnostAprila[],22,FALSE),\"\")","v":""},{"$f":"IFERROR(VLOOKUP(IskanjeUčencev,PrisotnostAprila[],23,FALSE),\"\")","v":""},{"$f":"IFERROR(VLOOKUP(IskanjeUčencev,PrisotnostAprila[],24,FALSE),\"\")","v":""},{"$f":"IFERROR(VLOOKUP(IskanjeUčencev,PrisotnostAprila[],25,FALSE),\"\")","v":""},{"$f":"IFERROR(VLOOKUP(IskanjeUčencev,PrisotnostAprila[],26,FALSE),\"\")","v":""},{"$f":"IFERROR(VLOOKUP(IskanjeUčencev,PrisotnostAprila[],27,FALSE),\"\")","v":""},{"$f":"IFERROR(VLOOKUP(IskanjeUčencev,PrisotnostAprila[],28,FALSE),\"\")","v":""},{"$f":"IFERROR(VLOOKUP(IskanjeUčencev,PrisotnostAprila[],29,FALSE),\"\")","v":""},{"$f":"IFERROR(VLOOKUP(IskanjeUčencev,PrisotnostAprila[],30,FALSE),\"\")","v":""},{"$f":"IFERROR(VLOOKUP(IskanjeUčencev,PrisotnostAprila[],31,FALSE),\"\")","v":""},{"$f":"IFERROR(VLOOKUP(IskanjeUčencev,PrisotnostAprila[],32,FALSE),\"\")","v":""}]
[null,"Maj",1,2,3,4,5,6,7,8,9,10,11,12,13,14,15,16,17,18,19,20,21,22,23,24,25,26,27,28,29,30,31,{"$f":"COUNTIF($D35:$AH35,Koda1)","v":0},{"$f":"COUNTIF($D35:$AH35,Koda2)","v":0},{"$f":"COUNTIF($D35:$AH35,Koda3)","v":0},{"$f":"COUNTIF($D35:$AH35,Koda4)","v":0}]
[null,null,{"$f":"IFERROR(VLOOKUP(IskanjeUčencev,PrisotnostMaja[],3,FALSE),\"\")","v":""},{"$f":"IFERROR(VLOOKUP(IskanjeUčencev,PrisotnostMaja[],4,FALSE),\"\")","v":""},{"$f":"IFERROR(VLOOKUP(IskanjeUčencev,PrisotnostMaja[],5,FALSE),\"\")","v":""},{"$f":"IFERROR(VLOOKUP(IskanjeUčencev,PrisotnostMaja[],6,FALSE),\"\")","v":""},{"$f":"IFERROR(VLOOKUP(IskanjeUčencev,PrisotnostMaja[],7,FALSE),\"\")","v":""},{"$f":"IFERROR(VLOOKUP(IskanjeUčencev,PrisotnostMaja[],8,FALSE),\"\")","v":""},{"$f":"IFERROR(VLOOKUP(IskanjeUčencev,PrisotnostMaja[],9,FALSE),\"\")","v":""},{"$f":"IFERROR(VLOOKUP(IskanjeUčencev,PrisotnostMaja[],10,FALSE),\"\")","v":""},{"$f":"IFERROR(VLOOKUP(IskanjeUčencev,PrisotnostMaja[],11,FALSE),\"\")","v":""},{"$f":"IFERROR(VLOOKUP(IskanjeUčencev,PrisotnostMaja[],12,FALSE),\"\")","v":""},{"$f":"IFERROR(VLOOKUP(IskanjeUčencev,PrisotnostMaja[],13,FALSE),\"\")","v":""},{"$f":"IFERROR(VLOOKUP(IskanjeUčencev,PrisotnostMaja[],14,FALSE),\"\")","v":""},{"$f":"IFERROR(VLOOKUP(IskanjeUčencev,PrisotnostMaja[],15,FALSE),\"\")","v":""},{"$f":"IFERROR(VLOOKUP(IskanjeUčencev,PrisotnostMaja[],16,FALSE),\"\")","v":""},{"$f":"IFERROR(VLOOKUP(IskanjeUčencev,PrisotnostMaja[],17,FALSE),\"\")","v":""},{"$f":"IFERROR(VLOOKUP(IskanjeUčencev,PrisotnostMaja[],18,FALSE),\"\")","v":""},{"$f":"IFERROR(VLOOKUP(IskanjeUčencev,PrisotnostMaja[],19,FALSE),\"\")","v":""},{"$f":"IFERROR(VLOOKUP(IskanjeUčencev,PrisotnostMaja[],20,FALSE),\"\")","v":""},{"$f":"IFERROR(VLOOKUP(IskanjeUčencev,PrisotnostMaja[],21,FALSE),\"\")","v":""},{"$f":"IFERROR(VLOOKUP(IskanjeUčencev,PrisotnostMaja[],22,FALSE),\"\")","v":""},{"$f":"IFERROR(VLOOKUP(IskanjeUčencev,PrisotnostMaja[],23,FALSE),\"\")","v":""},{"$f":"IFERROR(VLOOKUP(IskanjeUčencev,PrisotnostMaja[],24,FALSE),\"\")","v":""},{"$f":"IFERROR(VLOOKUP(IskanjeUčencev,PrisotnostMaja[],25,FALSE),\"\")","v":""},{"$f":"IFERROR(VLOOKUP(IskanjeUčencev,PrisotnostMaja[],26,FALSE),\"\")","v":""},{"$f":"IFERROR(VLOOKUP(IskanjeUčencev,PrisotnostMaja[],27,FALSE),\"\")","v":""},{"$f":"IFERROR(VLOOKUP(IskanjeUčencev,PrisotnostMaja[],28,FALSE),\"\")","v":""},{"$f":"IFERROR(VLOOKUP(IskanjeUčencev,PrisotnostMaja[],29,FALSE),\"\")","v":""},{"$f":"IFERROR(VLOOKUP(IskanjeUčencev,PrisotnostMaja[],30,FALSE),\"\")","v":""},{"$f":"IFERROR(VLOOKUP(IskanjeUčencev,PrisotnostMaja[],31,FALSE),\"\")","v":""},{"$f":"IFERROR(VLOOKUP(IskanjeUčencev,PrisotnostMaja[],32,FALSE),\"\")","v":""},{"$f":"IFERROR(VLOOKUP(IskanjeUčencev,PrisotnostMaja[],33,FALSE),\"\")","v":""}]
[null,"Junij",1,2,3,4,5,6,7,8,9,10,11,12,13,14,15,16,17,18,19,20,21,22,23,24,25,26,27,28,29,30,null,{"$f":"COUNTIF($D37:$AH37,Koda1)","v":0},{"$f":"COUNTIF($D37:$AH37,Koda2)","v":0},{"$f":"COUNTIF($D37:$AH37,Koda3)","v":0},{"$f":"COUNTIF($D37:$AH37,Koda4)","v":0}]
[null,null,{"$f":"IFERROR(VLOOKUP(IskanjeUčencev,PrisotnostJunija[],3,FALSE),\"\")","v":""},{"$f":"IFERROR(VLOOKUP(IskanjeUčencev,PrisotnostJunija[],4,FALSE),\"\")","v":""},{"$f":"IFERROR(VLOOKUP(IskanjeUčencev,PrisotnostJunija[],5,FALSE),\"\")","v":""},{"$f":"IFERROR(VLOOKUP(IskanjeUčencev,PrisotnostJunija[],6,FALSE),\"\")","v":""},{"$f":"IFERROR(VLOOKUP(IskanjeUčencev,PrisotnostJunija[],7,FALSE),\"\")","v":""},{"$f":"IFERROR(VLOOKUP(IskanjeUčencev,PrisotnostJunija[],8,FALSE),\"\")","v":""},{"$f":"IFERROR(VLOOKUP(IskanjeUčencev,PrisotnostJunija[],9,FALSE),\"\")","v":""},{"$f":"IFERROR(VLOOKUP(IskanjeUčencev,PrisotnostJunija[],10,FALSE),\"\")","v":""},{"$f":"IFERROR(VLOOKUP(IskanjeUčencev,PrisotnostJunija[],11,FALSE),\"\")","v":""},{"$f":"IFERROR(VLOOKUP(IskanjeUčencev,PrisotnostJunija[],12,FALSE),\"\")","v":""},{"$f":"IFERROR(VLOOKUP(IskanjeUčencev,PrisotnostJunija[],13,FALSE),\"\")","v":""},{"$f":"IFERROR(VLOOKUP(IskanjeUčencev,PrisotnostJunija[],14,FALSE),\"\")","v":""},{"$f":"IFERROR(VLOOKUP(IskanjeUčencev,PrisotnostJunija[],15,FALSE),\"\")","v":""},{"$f":"IFERROR(VLOOKUP(IskanjeUčencev,PrisotnostJunija[],16,FALSE),\"\")","v":""},{"$f":"IFERROR(VLOOKUP(IskanjeUčencev,PrisotnostJunija[],17,FALSE),\"\")","v":""},{"$f":"IFERROR(VLOOKUP(IskanjeUčencev,PrisotnostJunija[],18,FALSE),\"\")","v":""},{"$f":"IFERROR(VLOOKUP(IskanjeUčencev,PrisotnostJunija[],19,FALSE),\"\")","v":""},{"$f":"IFERROR(VLOOKUP(IskanjeUčencev,PrisotnostJunija[],20,FALSE),\"\")","v":""},{"$f":"IFERROR(VLOOKUP(IskanjeUčencev,PrisotnostJunija[],21,FALSE),\"\")","v":""},{"$f":"IFERROR(VLOOKUP(IskanjeUčencev,PrisotnostJunija[],22,FALSE),\"\")","v":""},{"$f":"IFERROR(VLOOKUP(IskanjeUčencev,PrisotnostJunija[],23,FALSE),\"\")","v":""},{"$f":"IFERROR(VLOOKUP(IskanjeUčencev,PrisotnostJunija[],24,FALSE),\"\")","v":""},{"$f":"IFERROR(VLOOKUP(IskanjeUčencev,PrisotnostJunija[],25,FALSE),\"\")","v":""},{"$f":"IFERROR(VLOOKUP(IskanjeUčencev,PrisotnostJunija[],26,FALSE),\"\")","v":""},{"$f":"IFERROR(VLOOKUP(IskanjeUčencev,PrisotnostJunija[],27,FALSE),\"\")","v":""},{"$f":"IFERROR(VLOOKUP(IskanjeUčencev,PrisotnostJunija[],28,FALSE),\"\")","v":""},{"$f":"IFERROR(VLOOKUP(IskanjeUčencev,PrisotnostJunija[],29,FALSE),\"\")","v":""},{"$f":"IFERROR(VLOOKUP(IskanjeUčencev,PrisotnostJunija[],30,FALSE),\"\")","v":""},{"$f":"IFERROR(VLOOKUP(IskanjeUčencev,PrisotnostJunija[],31,FALSE),\"\")","v":""},{"$f":"IFERROR(VLOOKUP(IskanjeUčencev,PrisotnostJunija[],32,FALSE),\"\")","v":""}]
[null,"Julij",1,2,3,4,5,6,7,8,9,10,11,12,13,14,15,16,17,18,19,20,21,22,23,24,25,26,27,28,29,30,31,{"$f":"COUNTIF($D39:$AH39,Koda1)","v":0},{"$f":"COUNTIF($D39:$AH39,Koda2)","v":0},{"$f":"COUNTIF($D39:$AH39,Koda3)","v":0},{"$f":"COUNTIF($D39:$AH39,Koda4)","v":0}]
[null,null,{"$f":"IFERROR(VLOOKUP(IskanjeUčencev,PrisotnostJulija[],3,FALSE),\"\")","v":""},{"$f":"IFERROR(VLOOKUP(IskanjeUčencev,PrisotnostJulija[],4,FALSE),\"\")","v":""},{"$f":"IFERROR(VLOOKUP(IskanjeUčencev,PrisotnostJulija[],5,FALSE),\"\")","v":""},{"$f":"IFERROR(VLOOKUP(IskanjeUčencev,PrisotnostJulija[],6,FALSE),\"\")","v":""},{"$f":"IFERROR(VLOOKUP(IskanjeUčencev,PrisotnostJulija[],7,FALSE),\"\")","v":""},{"$f":"IFERROR(VLOOKUP(IskanjeUčencev,PrisotnostJulija[],8,FALSE),\"\")","v":""},{"$f":"IFERROR(VLOOKUP(IskanjeUčencev,PrisotnostJulija[],9,FALSE),\"\")","v":""},{"$f":"IFERROR(VLOOKUP(IskanjeUčencev,PrisotnostJulija[],10,FALSE),\"\")","v":""},{"$f":"IFERROR(VLOOKUP(IskanjeUčencev,PrisotnostJulija[],11,FALSE),\"\")","v":""},{"$f":"IFERROR(VLOOKUP(IskanjeUčencev,PrisotnostJulija[],12,FALSE),\"\")","v":""},{"$f":"IFERROR(VLOOKUP(IskanjeUčencev,PrisotnostJulija[],13,FALSE),\"\")","v":""},{"$f":"IFERROR(VLOOKUP(IskanjeUčencev,PrisotnostJulija[],14,FALSE),\"\")","v":""},{"$f":"IFERROR(VLOOKUP(IskanjeUčencev,PrisotnostJulija[],15,FALSE),\"\")","v":""},{"$f":"IFERROR(VLOOKUP(IskanjeUčencev,PrisotnostJulija[],16,FALSE),\"\")","v":""},{"$f":"IFERROR(VLOOKUP(IskanjeUčencev,PrisotnostJulija[],17,FALSE),\"\")","v":""},{"$f":"IFERROR(VLOOKUP(IskanjeUčencev,PrisotnostJulija[],18,FALSE),\"\")","v":""},{"$f":"IFERROR(VLOOKUP(IskanjeUčencev,PrisotnostJulija[],19,FALSE),\"\")","v":""},{"$f":"IFERROR(VLOOKUP(IskanjeUčencev,PrisotnostJulija[],20,FALSE),\"\")","v":""},{"$f":"IFERROR(VLOOKUP(IskanjeUčencev,PrisotnostJulija[],21,FALSE),\"\")","v":""},{"$f":"IFERROR(VLOOKUP(IskanjeUčencev,PrisotnostJulija[],22,FALSE),\"\")","v":""},{"$f":"IFERROR(VLOOKUP(IskanjeUčencev,PrisotnostJulija[],23,FALSE),\"\")","v":""},{"$f":"IFERROR(VLOOKUP(IskanjeUčencev,PrisotnostJulija[],24,FALSE),\"\")","v":""},{"$f":"IFERROR(VLOOKUP(IskanjeUčencev,PrisotnostJulija[],25,FALSE),\"\")","v":""},{"$f":"IFERROR(VLOOKUP(IskanjeUčencev,PrisotnostJulija[],26,FALSE),\"\")","v":""},{"$f":"IFERROR(VLOOKUP(IskanjeUčencev,PrisotnostJulija[],27,FALSE),\"\")","v":""},{"$f":"IFERROR(VLOOKUP(IskanjeUčencev,PrisotnostJulija[],28,FALSE),\"\")","v":""},{"$f":"IFERROR(VLOOKUP(IskanjeUčencev,PrisotnostJulija[],29,FALSE),\"\")","v":""},{"$f":"IFERROR(VLOOKUP(IskanjeUčencev,PrisotnostJulija[],30,FALSE),\"\")","v":""},{"$f":"IFERROR(VLOOKUP(IskanjeUčencev,PrisotnostJulija[],31,FALSE),\"\")","v":""},{"$f":"IFERROR(VLOOKUP(IskanjeUčencev,PrisotnostJulija[],32,FALSE),\"\")","v":""},{"$f":"IFERROR(VLOOKUP(IskanjeUčencev,PrisotnostJulija[],33,FALSE),\"\")","v":""}]
[{"$nulls":30},"Skupaj",null,null,{"$f":"SUM(AH16:AH39)","v":0},{"$f":"SUM(AI16:AI39)","v":1},{"$f":"SUM(AJ16:AJ39)","v":0},{"$f":"SUM(AK16:AK39)","v":19}]